Workbook

Sheet Overview
A1: Colorado Water Project Cost Estimating Tool
Y4: Introduction
Y5: The Colorado Water Project Cost Estimating Tool is intended to provide a common technical framework for BRTs to utilize when developing their Basin Implementation Plans. This tool builds on previous SWSI cost estimation methods as well as other tools developed for planning-level cost estimation to provide an accessible and user-friendly tool for basin roundtables to use in developing high-level cost estimates of projects and methods. In addition, the use of this tool provides costs presented in a manner that enables easy comparison by CWCB. As this tool is used, it may be adjusted over time to improve the function and costs databases as more project information and costs are collected. Each project module varies in complexity and level of detail based on the amount of data available to support development of cost curves and the required input information to define specific project-type characteristics. User Note: For the tool to function properly, User must enable Macros in Excel. For help navigating the tool, user should refer to the Quick Reference Guide.
A44: Disclaimer
A45: This tool was developed for the purpose of preparing regional water planning-level cost estimates only. It is not intended to be used in lieu of professional engineering design or cost estimation. Results of this tool should be carefully reviewed by construction professionals, professional engineers or other knowledgeable professionals prior to implementation of a project. Any use of the Colorado Water Project Cost Estimating Tool and results will be at the User's own risk and without liability of legal exposure to the Colorado Water Conservation Board and CDM Smith, Inc.

Sheet Global Inputs
A2: G l o b a l I n p u t s
C4: CWCB Colorado Water Project Cost Estimating Tool
C5: Input Key
C6: 0 | D6: User Input
C7: 0 | D7: Informational Data*
C8: 0 | D8: Default Value, Adjustable by User
C9: 0 | D9: Calculated Values, Not to be Adjusted
C10: *This tool provides a means of collecting cost data for various projects throughout the state of Colorado. Some information may not currently factor into costing of a project, but is useful for understanding the components of the project.
C11: User to please provide as much information as possible regarding their proposed project.
C13: Project Information
D14: Project Name:
D15: Project ID:
D16: Project Need Addressed (check all that apply):
D17: Basin:
D18: Location:
D20: Cost Estimator:
D21: Checked By:
D22: Calculation Date: | E22: =TODAY() -> 2018-12-17
E24: Modules Utilized
E25: Pipelines | F25: Well Fields | G25: Reservoirs | H25: Treatment | I25: Water Rights | J25: Streams & Habitats | K25: Ditches and Diversions
C27: Project Start (MONTH-YY)
C28: Project Completion (MONTH-YY)
C29: Construction Period | F29: =IF(AND(ISBLANK(F27),ISBLANK(F28)),"-",YEARFRAC(F27,F28,1)) -> - | G29: years
C30: Base Construction Cost Time Period | F30: 2017
C31: Project Construction Start Time Period | F31: 2017
C32: Estimated Project Useful Life | F32: 50 | G32: years
C33: Annual-Average Water Supply Yield | G33: ac-ft/yr
C35: Project Development Costs
C36: Engineering Services | G36: 0.2 | H36: % of Capital Costs
C37: Surveying | G37: 0.01 | H37: % of Capital Costs
C38: Legal Service | G38: 0.1 | H38: % of Capital Costs
C39: Financing and Bond Assistance | G39: 0.01 | H39: % of Capital Costs
C40: Environmental and Cultural Studies | G40: 0.01 | H40: % of Capital Costs
C41: Required Land Acquisition | H41: acres
C42: Land Acquisition Cost | H42: $ per acre
C43: Permitting | G43: 0.01 | H43: % of Capital Costs
C44: Interest During Construction | G44: 0.04
C46: Annual Costs
C47: Debt Service | G47: 0.055 | H47: % of Capital Costs
C48: Debt Service (Non-Reservoirs) Period | G48: 20 | H48: Years
C49: Debt Service (Reservoirs) Period | G49: 40 | H49: Years
C50: Operations & Maintenance (Pipelines & Well Fields) | G50: 0.01 | H50: % of Capital Costs
C51: Operations & Maintenance (Pump Stations) | G51: 0.025 | H51: % of Capital Costs
C52: Operations & Maintenance (Reservoirs) | G52: 0.015 | H52: % of Capital Costs
C53: Operations & Maintenance (Ditches and Diversions & Streams and Habitat) | G53: 0.01 | H53: % of Capital Costs
C54: Rate of Return on Investments | G54: 0.01
C55: Annual Interest Rate (Non-Reservoirs) | G55: 0.055
C56: Annual Interest Rate (Reservoirs) | G56: 0.055
C57: Power Costs | G57: 0.11 | H57: $ per kilowatt-hour
C59: Pumps
C60: Power Connection Costs - Pump Stations | G60: 150 | H60: $ per horsepower

Sheet Pipelines
A3: P i p e l i n e s
C6: Pipeline and Pump Station Parameters
C7: Pipeline Module may be used for all projects with a pipeline component. The main elements of a pipeline project include the pipeline, pump stations and storage at the pump station. Three segments are available to cost out different pipe/pump parameters.
C9: Project Information
C10: =IF(ISBLANK(Project_Name),"Enter Project Name in Global Inputs",Project_Name) -> Enter Project Name in Global Inputs
C11: =IF(ISBLANK(Project_ID),"Enter Project ID in Global Inputs",Project_ID) -> Enter Project ID in Global Inputs
C12: =IF(ISBLANK(Basin_Name),"Enter Basin Name in Global Inputs",Basin_Name) -> Enter Basin Name in Global Inputs
C13: =IF(ISBLANK(Cost_Estimator),"Enter Cost Estimator in Global Inputs",Cost_Estimator) -> Enter Cost Estimator in Global Inputs
C15: Assumptions
C16: - Based on typical water composition, terrain and use in Colorado, Ductile Iron Pipe is assumed for all pipeline calculations and costing.
C17: - Calculations and costs assume an average of 6ft of cover over the length of the pipeline.
C18: - Calculations and costs assume an average of 2500ft between valves in the pipeline. Bends are not considered.
C19: - The number of pump stations needed is estimated based on the total dynamic head over the entire pipeline divided by the maximum allowable head, and the power required is evenly divided over the number of pump stations.
C20: - If user selects "Intake" as pump type, first pump is assumed intake and any additional required pumps for the segment are assumed to be booster pumps
C21: - Storage requirements are provided by the user, but a recommended value is 10% of the average daily flow
C22: -Use of multiple segments is not required and only necessary if there is a change in project yield, peaking factor or diameter along the pipeline length. Multiple segments may also be used if the user wants to control the number and distribution of pump stations along the project. Inputs or calculations do not transfer from one segment to another. They can, however, be used as independent calculations that combine into a single, total cost estimate.
C24: Abbreviations
C25: ac-ft/yr | D25: - | E25: acre feet per year
C26: cfs | D26: - | E26: cubic feet per year
C27: ft | D27: - | E27: feet
C28: ft-msl | D28: - | E28: feet - mean sea level
C29: fps | D29: - | E29: feet per second
C30: HP | D30: - | E30: horsepower
C31: HGL | D31: - | E31: Hydraulic Grade Line
C32: in | D32: - | E32: inches
C33: kW-hr | D33: - | E33: kilowatt-hour
C34: MG | D34: - | E34: million gallons
C35: mgd | D35: - | E35: million gallons per day
C36: psi | D36: - | E36: pounds per square inch
C37: TDH | D37: - | E37: Total Dynamic Head
C39: Pipe Segment 1
E41: Pipeline Information
G42: Ground Elevation (ft-msl) | H42: Environment | J42: Water Delivered | K42: Desired Head at End of Pipe (psi) | L42: Maximum Pipeline Pressure (psi)
E43: Pipeline Start | J43: Raw
E44: Pipeline End
E46: Pipeline Diameter
E47: If desired discharge and velocity are known and required diameter is unknown
E48: Total Project Yield | I48: ac-ft/yr
E49: Peaking Factor, PF
E50: Peak Flow through Pipeline, q | H50: =G62*MGD_CFS -> 0 | I50: cfs
E51: Velocity of Flow, V | H51: 5 | I51: fps | J51: =IF(H51<>5,"Default Value = 5","") -> 
E52: Required Diameter | H52: =IFERROR(((4*H50/(H51*PI()))^0.5)*FT_IN,"-") -> 0 | I52: in
E54: Pipe Hydraulics
E55: Nominal Pipe Size, d | I55: in | J55: If pipe diameter was determined using the Pipeline Diameter calculator, round up to the nearest pipe size
E56: Pipeline Length, L | I56: ft
E57: Hazen-Williams C Factor | H57: 140 | I57: =IF(H57<>140,"Default Value = 140 or Link to reference table ---->","") ->  | L57: Click Here for C Factor Roughness Reference Table
E58: Maintenance Downtime | H58: 0.05 | I58: for Uniform Delivery, PF = 1 | K58: =IF(H58<>0.05,"Default Value = 5%","") -> 
E60: Flow
E61: Average Flow (mgd) | F61: Average Flow (cfs) | G61: Peak Flow (mgd) | H61: Peak Flow (cfs) | I61: Velocity (fps)
E62: =$H$48/MG_ACFT/YR_DAY -> 0 | F62: =E62*MGD_CFS -> 0 | G62: =IF(Pipe_PF1>1,E62*Pipe_PF1,E62/(1-Pipe_DT1)) -> 0 | H62: =G62*MGD_CFS -> 0 | I62: =IFERROR($H$62*4/PI()/(Pipe_d1/FT_IN)^2,"-") -> -
E64: Pump Station Hydraulics
E65: Pump Type
E66: Pump Efficiency | H66: 0.7 | I66: (Mechanical & Electrical) | K66: =IF(H66<>0.7,"Default Value = 0.7","") -> 
E68: Pump Requirements
E69: Static Head (ft) | F69: Total Dynamic Head (ft) | G69: Total Power Needs (HP) | H69: Number of Pump Stations Needed in Series | I69: HP per Pump Station | J69: HP Needed for Average Flow | K69: Total Pumping Energy (kW-hr) | L69: Storage Volume Requirement (MG)
E70: =(G44-G43)+(K44/FTH20_PSI) -> 0 | F70: =IFERROR(E70+(10.4*Pipe_L1*(G62*MG_GAL/DAY_MIN)^1.852)/(Pipe_C1^1.852*Pipe_d1^4.8655),"-") -> - | G70: =IFERROR((F70*G62*MG_GAL/DAY_MIN)/(gpmft_HP*$H66),"-") -> - | H70: =IFERROR(IF(F70<0,0,ROUNDUP(F70/(L43/FTH20_PSI),0)),"-") -> - | I70: =IFERROR(G70/H70,"-") -> - | J70: =IF(F70<0,0,IFERROR((F70*E62*MG_GAL/DAY_MIN)/(gpmft_HP*$H66),"-")) -> - | K70: =IFERROR(IF(ISERR(J70),0,(J70*HP_kW*(YR_DAY-(YR_DAY*Pipe_DT1)) *DAY_HR)),"-") -> -
H71: =IF(E70<0,"Gravity System","") -> 
C73: Pipe Segment 2
E75: Pipeline Information
G76: Ground Elevation [ft-msl] | H76: Environment | J76: Water Delivered | K76: Residual Head at End of Pipe (psi) | L76: Maximum Pipeline Pressure (psi)
E77: Pipeline Start | J77: Raw
E78: Pipeline End
E80: Pipeline Diameter
E81: If desired discharge and velocity are known and required diameter is unknown
E82: Total Project Yield | I82: ac-ft/yr
E83: Peaking Factor, PF
E84: Peak Flow through Pipeline, q | H84: =G96*MGD_CFS -> 0 | I84: cfs
E85: Velocity of Flow, V | H85: 5 | I85: fps | J85: =IF(H85<>5,"Default Value = 5","") -> 
E86: Required Diameter | H86: =IFERROR(((4*H84/(H85*PI()))^0.5)*FT_IN,"-") -> 0 | I86: in
E88: Pipe Hydraulics
E89: Nominal Pipe Size, d | I89: in | J89: If pipe diameter was determined using the Pipeline Diameter calculator, round up to the nearest pipe size
E90: Pipeline Length, L | I90: ft
E91: Hazen-Williams C Factor | H91: 140 | I91: =IF(H91<>140,"Default Value = 140 or Link to reference table ---->","") ->  | L91: Click Here for C Factor Roughness Reference Table
E92: Maintenance Downtime | H92: 0.05 | I92: for Uniform Delivery, PF = 1 | K92: =IF(H92<>0.05,"Default Value = 5%","") -> 
E94: Flow
E95: Average Flow (mgd) | F95: Average Flow (cfs) | G95: Peak Flow (mgd) | H95: Peak Flow (cfs) | I95: Velocity (fps)
E96: =H82/MG_ACFT/YR_DAY -> 0 | F96: =E96*MGD_CFS -> 0 | G96: =IF(Pipe_PF2>1,E96*Pipe_PF2,E96/(1-Pipe_DT2)) -> 0 | H96: =G96*MGD_CFS -> 0 | I96: =IFERROR(H96*4/PI()/(Pipe_d2/FT_IN)^2,"-") -> -
E98: Pump Station Hydraulics
E99: Pump Type | I99: =IF(AND($H$65="intake",H99="intake"),"Intake pump already selected for Segment 1, confirm this is another intake or switch to booster pump","") -> 
E100: Pump Efficiency | H100: 0.7 | I100: (Mechanical & Electrical) | K100: =IF(H100<>0.7,"Default Value = 0.7","") -> 
E102: Pump Requirements
E103: Static Head (ft) | F103: Total Dynamic Head (ft) | G103: Total Power Needs (HP) | H103: Number of Pump Stations Needed in Series | I103: HP per Pump Station | J103: HP Needed for Average Flow | K103: Total Pumping Energy (kW-hr) | L103: Storage Volume Requirement (MG)
E104: =(Grnd_Elev_End2-Grnd_Elev_Start2)+(K78/FTH20_PSI) -> 0 | F104: =IFERROR(E104+(10.4*Pipe_L2*(G96*MG_GAL/DAY_MIN)^1.852)/(Pipe_C2^1.852*Pipe_d2^4.8655),"-") -> - | G104: =IFERROR((F104*G96*MG_GAL/DAY_MIN)/(gpmft_HP*$H100),"-") -> - | H104: =IFERROR(IF(F104<0,0,ROUNDUP(F104/(L77/FTH20_PSI),0)),"-") -> - | I104: =IFERROR(G104/H104,"-") -> - | J104: =IF(F104<0,0,IFERROR((F104*E96*MG_GAL/DAY_MIN)/(gpmft_HP*$H100),"-")) -> - | K104: =IFERROR(IF(ISERR(J104),0,(J104*HP_kW*(YR_DAY-(YR_DAY*Pipe_DT2)) *DAY_HR)),"-") -> -
H105: =IF(E104<0,"Gravity System","") -> 
C107: Pipe Segment 3
E109: Pipeline Information
G110: Ground Elevation [ft-msl] | H110: Environment | J110: Water Delivered | K110: Residual Head at End of Pipe (psi) | L110: Maximum Pipeline Pressure (psi)
E111: Pipeline Start
E112: Pipeline End
E114: Pipeline Diameter
E115: If desired discharge and velocity are known and required diameter is unknown
E116: Total Project Yield | I116: ac-ft/yr
E117: Peaking Factor, PF
E118: Peak Flow through Pipeline, q | H118: =G130*MGD_CFS -> 0 | I118: cfs
E119: Velocity of Flow, V | H119: 5 | I119: fps | J119: =IF(H119<>5,"Default Value = 5","") -> 
E120: Required Diameter | H120: =IFERROR(((4*H118/(H119*PI()))^0.5)*FT_IN,"-") -> 0 | I120: in
E122: Pipe Hydraulics
E123: Nominal Pipe Size, d | I123: in | J123: If pipe diameter was determined using the Pipeline Diameter calculator, round up to the nearest pipe size
E124: Pipeline Length, L | I124: ft
E125: Hazen-Williams C Factor | H125: 140 | I125: =IF(H125<>140,"Default Value = 140 or Link to reference table ---->","") ->  | L125: Click Here for C Factor Roughness Reference Table
E126: Maintenance Downtime | H126: 0.05 | I126: for Uniform Delivery, PF = 1 | K126: =IF(H126<>0.05,"Default Value = 5%","") -> 
E128: Flow
E129: Average Flow (mgd) | F129: Average Flow (cfs) | G129: Peak Flow (mgd) | H129: Peak Flow (cfs) | I129: Velocity (fps)
E130: =H116/MG_ACFT/YR_DAY -> 0 | F130: =E130*MGD_CFS -> 0 | G130: =IF(Pipe_PF3>1,E130*Pipe_PF3,E130/(1-Pipe_DT3)) -> 0 | H130: =G130*MGD_CFS -> 0 | I130: =IFERROR(H130*4/PI()/(Pipe_d3/FT_IN)^2,"-") -> -
E132: Pump Station Hydraulics
E133: Pump Type | I133: =IF(AND($H$65="intake",H133="intake"),"Intake pump already selected for Segment 1, confirm this is another intake or switch to booster pump","") -> 
E134: Pump Efficiency | H134: 0.7 | I134: (Mechanical & Electrical) | K134: =IF(H134<>0.7,"Default Value = 0.7","") -> 
E136: Pump Requirements
E137: Static Head (ft) | F137: Total Dynamic Head (ft) | G137: Total Power Needs (HP) | H137: Number of Pump Stations Needed in Series | I137: HP per Pump Station | J137: HP Needed for Average Flow | K137: Total Pumping Energy (kW-hr) | L137: Storage Volume Requirement (MG)
E138: =(G112-G111)+(K112/FTH20_PSI) -> 0 | F138: =IFERROR(E138+(10.4*Pipe_L3*(G130*MG_GAL/DAY_MIN)^1.852)/(Pipe_C3^1.852*Pipe_d3^4.8655),"-") -> - | G138: =IFERROR((F138*G130*MG_GAL/DAY_MIN)/(gpmft_HP*$H134),"-") -> - | H138: =IFERROR(IF(F138<0,0,ROUNDUP(F138/(L111/FTH20_PSI),0)),"-") -> - | I138: =IFERROR(G138/H138,"-") -> - | J138: =IF(F138<0,0,IFERROR((F138*E130*MG_GAL/DAY_MIN)/(gpmft_HP*$H134),"-")) -> - | K138: =IFERROR(IF(ISERR(J138),0,(J138*HP_kW *(YR_DAY-(YR_DAY*Pipe_DT3)) *DAY_HR)),"-") -> -
H139: =IF(E138<0,"Gravity System","") -> 

Sheet Well Fields
A3: W e l l F i e l d s
C6: Well Fields Parameters | J6: Well Field Reference Schematic
C7: Module may be used for public water supply, irrigation or ASR well fields. Use schematic to the right and user guide to understand the various inputs. | M7: Legend
C9: Project Information
C10: =IF(ISBLANK(Project_Name),"Enter Project Name in Global Inputs",Project_Name) -> Enter Project Name in Global Inputs | M10: Symbol | N10: Description | O10: Relevant Calculations
C11: =IF(ISBLANK(Project_ID),"Enter Project ID in Global Inputs",Project_ID) -> Enter Project ID in Global Inputs | N11: Main Transmission Pipe | O11: Calculated Well Parameters
C12: =IF(ISBLANK(Basin_Name),"Enter Basin Name in Global Inputs",Basin_Name) -> Enter Basin Name in Global Inputs | O12: Well Field Piping Parameters
C13: =IF(ISBLANK(Cost_Estimator),"Enter Cost Estimator in Global Inputs",Cost_Estimator) -> Enter Cost Estimator in Global Inputs | N13: Well Collector Pipe
C15: Assumptions | N15: Well | O15: Well Hydraulics
C16: - Operational parameters are not considered | O16: Well Parameters
C17: - Well Field consists of a main transmission line with wells connecting individually to that line; the pipelines from the well to the main transmission line are short enough to be negligible in the costs. If the user requires costs for these lines, the Pipelines Module may be used, or additional external costs may be added in the Costing Module.
C18: - There is a booster pump at each Transmission Line node unless the power needed is zero | O18: Well Field Pump Parameters
C19: - Calculated well depth assumes an additional 50 feet below the drawdown level; this value is hard-coded and not adjustable by the user. | N19: Node | O19: Calculated Well Parameters
C20: - Calculations regarding capacity and depth per well assume uniformity across the well field, but the user may input more detailed information if available.
C21: - ASR well fields are included and assumed to be constructed similar to other well fields. Greater cost curves are used to differentiate the cost of an ASR project. Additional assumptions for ASR well fields include the following: | O21: Booster Pump Parameters
C22: 1. Transmission of the water to be injected from the source to the well field is not included. This may be costed separately using the Pipelines Module. 2. The tool only includes the costs for new wells. Retro-fitting existing wells to be used for ASR has a lower cost and should be considered on a case-by-case basis. 3. Pre- or post-treatment costs are not included. User may consider using the Treatment Module for additional treatment costs. 4. Recharge is assumed as a gravity feed into the well. Additional cost of pumps and operations would need to be added if recharge water must be pumped into the well under pressure. | N22: Final Delivery Point (at node n) | O22: Calculated Well Parameters
C24: Abbreviations
C25: ac-ft/yr | D25: - | E25: acre feet per year
C26: cfs | D26: - | E26: cubic feet per year
C27: ft | D27: - | E27: feet
C28: ft-msl | D28: - | E28: feet - mean sea level
C29: fps | D29: - | E29: feet per second
C30: gpm | D30: - | E30: gallons per minute
C31: HP | D31: - | E31: horsepower
C32: in | D32: - | E32: inches
C33: kW-hr | D33: - | E33: kilowatt-hour
C34: psi | D34: - | E34: pounds per square inch
C35: TDH | D35: - | E35: Total Dynamic Head
A39: Well and Pump Calculator and Cost Inputs
C41: Well Field Information | F41: Well and Pump Hydraulics | J41: Calculated Well Parameters | O41: Well Parameter Cost Inputs User inputs can use calculated parameters or be user defined, but should match or exceed the calculated capacity requirements
C42: Well Type: | G42: Average Flow Per Well (gpm): | J42: Required Wells | K42: Well Head Elevation (ft-msl) | L42: Calculated Depth (ft)* | M42: Calculated Peak Capacity (gpm) | O42: Well Number | P42: Calculated Depth (ft)* | Q42: Calculated Peak Capacity (gpm) | R42: Quantity
C43: Average Static water elevation (ft-msl): | G43: Peak Flow Per Well (gpm): | H43: =IF(ISBLANK(H42),"-",(D47*H42)) -> - | J43: =IF($H$46>0,1,"") ->  | L43: =IF(OR(J43="",K43=""),"",(K43-($D$43-$D$44))+50) ->  | M43: =IF(J43="","",$H$43) ->  | O43: =IF(P43="","",1) ->  | R43: 1
C44: Drawdown (ft): | G44: Average Flow Per Well (cfs): | H44: =IF(ISBLANK(H42),"-",(H42/CFS_GPM)) -> - | J44: =IF($H$46>1,2,"") ->  | L44: =IF(OR(J44="",K44=""),"",(K44-($D$43-$D$44))+50) ->  | O44: =IF(P44="","",2) ->  | R44: 1
C45: Total Project Yield (ac-ft/yr): | G45: Peak Flow Per Well (cfs): | H45: =IFERROR(H43/CFS_GPM,"-") -> - | J45: =IF($H$46>2,3,"") ->  | O45: =IF(P45="","",3) ->  | R45: 1
C46: Average Daily Well Field Yield (mgd): | D46: =D45*AC_SQFT*CF_GAL/YR_DAY/MG_GAL -> 0 | G46: Number of Required Active Wells: | H46: =IFERROR(ROUNDUP((D46*D47*MG_GAL/DAY_MIN)/H43,0),0) -> 0 | J46: =IF($H$46>3,4,"") ->  | O46: =IF(P46="","",4) ->  | R46: 1
C47: Peaking Factor: | G47: % Operating Time: | H47: =IFERROR(D46/(H46*H43*DAY_MIN/MG_GAL),"-") -> - | J47: =IF($H$46>4,5,"") ->  | O47: =IF(P47="","",5) ->  | R47: 1
C48: Well Column Velocity (fps): | D48: 8 | E48: =IF(D48<>8,"Default Value = 8","") ->  | G48: Average Well Head Elevation (ft-msl): | H48: =IFERROR(AVERAGEIF(K43:K52,">0"),"-") -> - | J48: =IF($H$46>5,6,"") ->  | O48: =IF(P48="","",6) ->  | R48: 1
C49: Elevation of Delivery Point (ft-msl): | G49: Average Depth to GW (ft): | H49: =IFERROR(H48-D43,"-") -> - | J49: =IF($H$46>6,7,"") ->  | O49: =IF(P49="","",7) ->  | R49: 1
C50: Residual Head at Delivery Point (psi): | G50: Well Column Losses (ft): | H50: =IFERROR((10.4*AVERAGE(P43:P52)*H43^1.852)/(D52^1.852*(24*(H45/(D48*PI()))^0.5)^4.8655),"-") -> - | J50: =IF($H$46>7,8,"") ->  | O50: =IF(P50="","",8) ->  | R50: 1
C51: Efficiency (Mechanical & Electrical): | D51: 0.7 | E51: =IF(D51<>0.7,"Default Value = 0.7","") ->  | G51: Average TDH (ft): | H51: =IFERROR(H49+D44+H50,"-") -> - | J51: =IF($H$46>8,9,"") ->  | O51: =IF(P51="","",9) ->  | R51: 1
C52: Hazen Williams C Factor: | D52: 140 | E52: =IF(D52<>140,"Default Value = 140","") ->  | G52: Average Well Pump Requirement (HP): | H52: =IFERROR((H51*H42)/(gpmft_HP*$D$51),"-") -> - | J52: =IF($H$46>9,10,"") ->  | O52: =IF(P52="","",10) ->  | R52: 1
C53: Click Here for C Factor Roughness Reference Table | G53: Total Well Pump Requirement (HP): | H53: =IFERROR(H52*H46,"-") -> - | J53: *Assumes 50 feet below the drawdown level | O53: Total Well Field Capacity (gpm) | Q53: =IF(SUM(Q43:Q52)=0,"-",SUMPRODUCT(Q43:Q52,R43:R52)) -> - | R53: =IF(Q53<Q54,"INCREASE WELL FIELD CAPACITY","") -> 
G54: Average Energy Usage per Well (kW-hr): | H54: =IFERROR(ROUND(H52*HP_kW*YR_HR*H47,-2),"-") -> - | O54: Total Required Well Field Capacity (gpm) | Q54: =IFERROR(H43*H46,"-") -> -
G55: Total Energy Usage for All Wells (kW-hr): | H55: =IFERROR(ROUND(H54*H46,-2),"-") -> -
A57: Pipeline Calculator and Cost Inputs
C59: Well Field Piping Parameters Calculates required pipe diameter and booster pump capacity for conveying water along main well field transmission line to delivery point | K59: Well Field Piping Parameter Cost Inputs Pull from user inputs in Well Field Piping Parameters table
C60: US Node/ Pipe Number | D60: Flow (gpm) | E60: Peak Flow (cfs) | F60: Computed Diameter for 5 fps (in) | G60: Selected Diameter (in) | H60: Velocity (fps) | I60: Length (ft) | K60: Pipe Size (in) | L60: Environment | M60: Pipe Length (ft)
C61: =IF(O43="","",O43) ->  | D61: =IF(Q43="","",Q43) ->  | E61: =IF(D61="","",D61/CFS_GPM) ->  | F61: =IF(E61="","",((4*E61/(5*PI()))^0.5)*FT_IN) ->  | H61: =IFERROR(IF(C61="","",E61*4/PI()/(G61/FT_IN)^2),"-") ->  | K61: =IF(ISBLANK(G61),"",G61) ->  | M61: =IF(ISBLANK(I61),"",I61) -> 
C62: =IF(O44="","",O44) ->  | D62: =IF(Q44="","",Q44+D61) ->  | J62: =IF(AND(ISNUMBER(G62),G62<G61),"CHECK DIAMETER","") ->  | L62: =IF(OR(K62="",ISBLANK(L61)),"",L61) -> 
C63: =IF(O45="","",O45) ->  | D63: =IF(Q45="","",Q45+D62) ->  | J63: =IF(AND(ISNUMBER(G63),G63<G62),"CHECK DIAMETER","") ->  | L63: =IF(K63="","",L62) -> 
C72: Totals | E72: =LOOKUP(2,1/(($E$61:$E$70)<>0),$E$61:$E$70) ->  | I72: =SUM(I61:I70) -> 0
A74: Booster Pump Calculator and Cost Inputs
P75: =IF(ISBLANK(H75),"",K90*0.746*8760*$J$13) -> 
C76: Well Field Pipeline Booster Pump Requirements | N76: Booster Pump Parameters
C77: Calculates required booster pump capacity for conveying water along main well field transmission line to delivery point | N77: User inputs can use Calculated Booster Pump Inputs or be User-defined, but should match or exceed the Total Required Capacity and TDH requirements
C78: US Node/ Pipe Number | D78: Capacity (gpm) | E78: Well Head Elevation (ft-msl) | F78: DS Well/ Pipe Node | G78: DS Elevation Well/Pipe (ft) | H78: Elevation Delta (ft) | I78: Segment Pipe Head Loss (ft) | J78: TDH (ft) | K78: Power (HP) | L78: Energy (kW-hr) | N78: Pump Number | O78: Pump Capacity (gpm) | P78: Pump TDH (ft) | Q78: Power (HP) | R78: Energy (kW-hr)
C79: =IF(C61="","",C61) ->  | D79: =IF(D61="","",D61) ->  | F79: =IF(C61="","",C62) ->  | G79: =IF(E80="",IF(E79="","",$D$49),E80) ->  | H79: =IF(E79="","",G79-E79) ->  | I79: =IFERROR(IF(C61="","",(10.4*I61*(D61)^1.852)/(WellHazenWill^1.852*G61^4.8655)),"") ->  | J79: =IFERROR(IF(C79="","",IF(I79+H79<0,0,I79+H79)),"") ->  | K79: =IFERROR(IF(C79="","",(D79*J79)/(gpmft_HP*$D$51)),"") ->  | L79: =IFERROR(IF(C79="","",K79*HP_kW*YR_HR*$H$47),"") ->  | N79: 1 | Q79: =IF(O79="","",(O79*P79)/(gpmft_HP*$D$51)) ->  | R79: =IFERROR(Q79*0.746*8760*$H$47,"-") -> -
G80: =IF(E81="",IF(E80="","",$D$49),E81) ->  | H80: =IF(E80="","",G80-E80) ->  | I80: =IFERROR(IF(C62="","",(10.4*I62*(D62)^1.852)/(WellHazenWill^1.852*G62^4.8655)),"") ->  | J80: =IFERROR(IF(C80="","",IF(I80+H80<0,0,I80+H80)),"") ->  | N80: 2 | R80: -
N81: 3 | R81: -
G82: =IF(E83="",IF(E82="","",$D$49),E83) ->  | N82: 4 | R82: -
G83: =IF(E84="",IF(E83="","",$D$49),E84) ->  | K83: =IFERROR(IF(C83="","",(D83*J83)/(gpmft_HP*$D$51)),"") ->  | N83: 5 | R83: -
N84: 6 | R84: -
G85: =IF(E86="",IF(E85="","",$D$49),E86) ->  | N85: 7 | R85: =IFERROR(Q85*0.746*8760*$H$47,"-") -> -
N86: 8 | R86: -
N87: 9 | R87: -
F88: =IF(C70="","","Delivery Point") ->  | N88: 10 | R88: -
N89: Total | O89: =IF(SUM(O79:O88)=0,"-",SUM(O79:O88)) -> - | P89: =IF(SUM(P79:P88)=0,"-",SUM(P79:P88)) -> - | Q89: =IFERROR(IF(O89="","",(O89*0.0023)*P89/8.8/0.8),"-") -> - | R89: =IFERROR(Q89*0.746*8760*$H$47,"-") -> -
C90: Totals | H90: =_xlfn.IFNA(LOOKUP(2,1/(($H$79:$H$88)<""),$H$79:$H$88),"-") -> - | J90: =IF(SUM(J79:J88)=0,"-",SUM(J79:J88)) -> - | K90: =IF(SUM(K79:K88)=0,"-",SUM(K79:K88)) -> - | L90: =IF(SUM(L79:L88)=0,"-",SUM(L79:L88)) -> - | N90: Total Required | O90: =Q54 -> - | P90: =J90 -> -
O91: =IF(O90="-","",IF(O89<O90,"INCREASE PUMP CAPACITY","")) ->  | P91: =IF(P90="-","",IF(P89<P90,"INSUFFICIENT TDH","")) -> 
C92: Maximum Pipeline Pressure (psi) | D92: =IFERROR((J90)*FTH20_PSI+D50,"-") -> -
C93: Calculated Number of Booster Pumps | D93: =IFERROR(ROUNDUP((J90*FTH20_PSI/D92),0),0) -> 0

Sheet Reservoirs
A3: R e s e r v o i r s
C6: Reservoir Parameters
C7: Module may be used for new reservoir, reservoir expansion, or reservoir rehabilitation projects.
C9: Project Information
C10: =IF(ISBLANK(Project_Name),"Enter Project Name in Global Inputs",Project_Name) -> Enter Project Name in Global Inputs
C11: =IF(ISBLANK(Project_ID),"Enter Project ID in Global Inputs",Project_ID) -> Enter Project ID in Global Inputs
C12: =IF(ISBLANK(Basin_Name),"Enter Basin Name in Global Inputs",Basin_Name) -> Enter Basin Name in Global Inputs
C13: =IF(ISBLANK(Cost_Estimator),"Enter Cost Estimator in Global Inputs",Cost_Estimator) -> Enter Cost Estimator in Global Inputs
C15: Assumptions
C16: - Only in-line reservoir options (new and expansion) are included.
C17: - Transmission of water from a natural source to the basin is not included. Users may cost out a project requiring reservoir transmission by combining costs from the Pipelines Module with the cost of reservoir construction.
C18: - Land acquisition is estimated by the user in the Global Inputs Module. Most reservoir projects will require land acquisition. The user should include an estimate of land area required in the Global Inputs Module.
C19: - Only New Storage Volume is used for Cost Estimation
C20: - Hydropower does not affect total project cost
C22: Abbreviations
C23: ac-ft | D23: - | E23: acre-Feet
C24: gpm | D24: - | E24: gallons per minute
C25: HP | D25: - | E25: horsepower
C26: kW-hrs | D26: - | E26: Kilowatt-Hours
C29: Reservoir Project Parameters
C30: Project Type
C31: New Storage Volume | G31: ac-ft
C32: Existing Storage (enter 0 if New Reservoir project) | G32: ac-ft | H32: =IF(AND(F30="Reservoir Expansion",OR(F32="",F32=0)),"EXISTING STORAGE EXPECTED","") -> 
C33: Total Storage (informational) | F33: =F31+F32 -> 0 | G33: ac-ft
C35: Reservoir Rehabilitation Project Parameters
C36: Reservoir Rehabilitation Project Description
C37: User-Defined Reservoir Rehabiliation Cost | G37: Click Here for Reservoir Rehab Cost Data Table
C39: Hydropower Option
C40: Not factored into cost estimation
C41: Height of Falling Water | G41: ft
C42: Discharge | G42: gpm
C43: Turbine Efficiency | F43: 0.9 | G43: =IF(F43<>0.9,"Default Value = 0.9","") ->  | H43: Encompasses mechanical and electrical efficiency used in calculating power and energy production
C44: Power | F44: =IFERROR((F41*F42)/(3960*F43),"-") -> 0 | G44: HP
C45: Annual Turbine Use Percentage | F45: 0.6 | G45: =IF(F45<>0.6,"Default Value = 0.6","") ->  | H45: Percent of time over the year that a hydropower generation station will be utilized
C46: Estimated Annual Energy Production | F46: =IFERROR(F44*0.7355*F45*365*24,"-") -> 0 | G46: kW-hrs

Sheet Treatment
A3: T r e a t m e n t
C6: Treatment Project Parameters
C7: Module may be used for water treatment projects. Users may leverage reference table at bottom of module to select treatment type based on project goals.
C9: Project Information
C10: =IF(ISBLANK(Project_Name),"Enter Project Name in Global Inputs",Project_Name) -> Enter Project Name in Global Inputs
C11: =IF(ISBLANK(Project_ID),"Enter Project ID in Global Inputs",Project_ID) -> Enter Project ID in Global Inputs
C12: =IF(ISBLANK(Basin_Name),"Enter Basin Name in Global Inputs",Basin_Name) -> Enter Basin Name in Global Inputs
C13: =IF(ISBLANK(Cost_Estimator),"Enter Cost Estimator in Global Inputs",Cost_Estimator) -> Enter Cost Estimator in Global Inputs
C15: Assumptions
C16: - There are eight water treatment technologies provided in the tool. While the tool provides references to aid the user in determining the appropriate technology, it is assumed the user will be able to identify the appropriate technology for their community. The reference table is not intended for final treatment technology decision-making, but as a guiding tool for planning-level cost estimating.
C17: - Reference Table treatment thresholds were developed assuming end use of treated water is for potable uses. The tool may be used for the purposes of planning a non-potable reuse project; however, the water quality requirements for non-potable uses vary significantly depending on the industry. The most typical use of water treatment facilities is to meet municipal water need, and therefore was assumed to be the end-use for the purposes of this tool.
C18: - Operations and Maintenance Costs are calculated for each type of treatment and include and estimation of energy requirements, therefore energy for treatment is not calculated separately
C19: - Treatment costs were created assuming a range of accuracy of +50% and -30
C22: Abbreviations
C23: gpd | D23: - | E23: gallons per day
C24: MCL | D24: - | E24: Maximum Contaminant Levels
C25: mgd | D25: - | E25: million gallons per day
C26: mg/L | E26: milligrams per liter
C27: NTU | E27: Nephelometric Turbidity Unit
C28: oocysts/L | D28: - | E28: bacteria indicating oocysts per Liter
C29: TOC | D29: - | E29: Total Organic Carbon
C31: Treatment Type
C33: Treatment Capacity
C34: Average Day Demand | G34: mgd
C35: Peaking Factor
C36: Required Capacity | F36: =F34*F35 -> 0 | G36: mgd
C39: Reference Table
C40: Treatment Type | D40: Drivers/Thresholds for Treatment | K40: Drivers/Approximate Numeric Thresholds for Treatment | R40: Source Water Characteristics
D41: Pathogens | E41: TOC | F41: Suspended Solids & Turbidity | G41: Salinity | H41: Hardness | I41: Nutrients/Taste & Odor | J41: Emerging Contaminants | K41: Cryptosporidium (oocysts/L) | L41: TOC (mg/L) | M41: Turbidity (NTU) | N41: Chloride (mg/L) | O41: Hardness as CaCO3 (mg/L) | P41: Threshold Odor Number | Q41: Emerging Contaminants
C42: Direct Filtration1 | D42: LOW | E42: LOW | F42: LOW | G42: LOW | H42: LOW | I42: LOW | J42: LOW | K42: < 0.075 (Bin 1) | L42: < 3 | M42: < 10 | N42: < 250 | O42: < 150 | P42: < 3 | Q42: Not Detected or < Action Levels/MCLs | R42: Pristine water quality, consistent with few excursions.
C43: Conventional1 | D43: MED | E43: MED | F43: MED | G43: LOW | H43: LOW | I43: LOW | J43: LOW | K43: < 0.075 to < 1.0 (Bins 1 or 2) | L43: > 3 | M43: > 10 | N43: < 250 | O43: < 150 | P43: < 3 | Q43: Not Detected or < Action Levels/MCLs | R43: Moderate-high quality water, moderate to high frequency of excursions.
C44: Conventional + Enhanced Coagulation | D44: MED | E44: MED-HIGH | F44: MED-HIGH | G44: LOW | H44: LOW | I44: LOW | J44: LOW | K44: <0.075 to < 1.0 (Bins 1 or 2) | L44: > 3 | M44: > 10 | N44: < 250 | O44: < 150 | P44: < 3 | Q44: Not Detected or < Action Levels/MCLs | R44: High natural organic matter (NOM is precursor material to disinfection by-products, aka DBPs).
C45: Conventional + Lime Softening | D45: MED | E45: MED-HIGH | F45: MED-HIGH | G45: LOW | H45: HIGH | I45: LOW | J45: LOW | K45: <0.075 to < 1.0 (Bins 1 or 2) | L45: > 3 | M45: > 10 | N45: > 250 | O45: > 150 | P45: < 3 | Q45: Not Detected or < Action Levels/MCLs | R45: High hardness in source water, often accompanied by high NOM, turbidity, and other treatment challenges.
C46: Conventional + Ozone/UV | D46: MED-HIGH | E46: MED-HIGH | F46: MED-HIGH | G46: LOW | H46: LOW | I46: MED-HIGH | J46: MED-HIGH | K46: < 0.075 to > 3.0 (Bins 1 thru 4) | L46: > 3 | M46: > 10 | N46: < 250 | O46: < 150 | P46: > 3 | Q46: Detected > MCLs or Action Levels | R46: High natural organic matter (precursors to DBPs), high NOM and/or increased levels of pathogens, increased levels of bromide, moderate to severe taste and odor, potential for contaminants of emerging concern (CECs).
C47: Conventional + GAC | D47: MED | E47: MED-HIGH | F47: MED-HIGH | G47: LOW | H47: LOW | I47: MED-HIGH | J47: MED-HIGH | K47: < 0.075 to < 1.0 (Bins 1 or 2) | L47: > 3 | M47: > 10 | N47: < 250 | O47: < 150 | P47: < 3 | Q47: Detected > MCLs or Action Levels | R47: Similar to Conventional + Ozone, but with lower risk of pathogens in source water.
C48: Conventional + Membranes | D48: MED-HIGH | E48: MED-HIGH | F48: MED-HIGH | G48: LOW | H48: LOW | I48: LOW | J48: LOW | K48: < 0.075 to > 3.0 (Bins 1 thru 4) | L48: > 3 | M48: > 10 | N48: < 250 | O48: < 150 | P48: < 3 | Q48: Not Detected or < Action Levels/MCLs | R48: High pathogens and/or NOM.
C49: Conventional + Nanofiltration/Reverse Osmosis | D49: MED-HIGH | E49: MED-HIGH | F49: MED-HIGH | G49: MED-HIGH | H49: MED-HIGH | I49: MED-HIGH | J49: MED-HIGH | K49: < 0.075 to > 3.0 (Bins 1 thru 4) | L49: > 3 | M49: > 10 | N49: > 250 | O49: > 150 | P49: > 3 | Q49: Detected > MCLs or Action Levels | R49: Treats all of the challenging characteristics listed above for NOM removal, disinfection, softening, CECs, and salinity removal. Not always effective for taste and odor issues.
C50: 1 Direct filtration and conventional treatment can include granular media and MF/UF. MF/UF would add approximately $0.50-1.00 per gpd
C51: 2 Operational costs include: power, labor, chemicals, residuals handling/disposal, consumables such as GAC/membrane replacement
C52: 3 Emerging contaminants include: arsenic, radiologicals, pharmaceuticals, etc.

Sheet Water Rights
A3: W a t e r R i g h t s
C6: Water Rights Parameters
C7: Module does not perform any calculations for water rights - depends on user developed cost data.
C9: Project Information
C10: =IF(ISBLANK(Project_Name),"Enter Project Name in Global Inputs",Project_Name) -> Enter Project Name in Global Inputs
C11: =IF(ISBLANK(Project_ID),"Enter Project ID in Global Inputs",Project_ID) -> Enter Project ID in Global Inputs
C12: =IF(ISBLANK(Basin_Name),"Enter Basin Name in Global Inputs",Basin_Name) -> Enter Basin Name in Global Inputs
C13: =IF(ISBLANK(Cost_Estimator),"Enter Cost Estimator in Global Inputs",Cost_Estimator) -> Enter Cost Estimator in Global Inputs
C15: Assumptions
C16: - Water right cost is all-inclusive
C19: Water Rights Inputs
C20: User Unit Cost Input | G20: $ / ac-ft
C21: Total Required Annual Project Yield (Consumptive) | G21: ac-ft / year
C22: Total Calculated Cost | F22: =F20*F21 -> 0 | G22: Total cost of water right

Sheet Ditches & Diversions
A3: D i t c h e s & D i v e r s i o n s
Q5: Disclaimer
C6: Ditch and Diversion Parameters | Q6: Cost data is currently limited for Ditches and Diversions projects. For the purposes of tool improvement, the User should provide all known information. Recommended Diversion Structure Cost is based on limited data points, varying diversion structure types and geometries, and diversion structure capacities estimated based on peak diversion structure capacity from the Colorado Decision Support System (CDSS) website. Therefore, these costs are recommendations and the user should use discretion before selecting these costs. The user should review the Reference Table for actual project costs used to develop the curve to determine if the cost is appropriate for their proposed project.
C7: Module may be used for any project with diversion, headgate, or ditch components.
C9: Project Information
C10: =IF(ISBLANK(Project_Name),"Enter Project Name in Global Inputs",Project_Name) -> Enter Project Name in Global Inputs
C11: =IF(ISBLANK(Project_ID),"Enter Project ID in Global Inputs",Project_ID) -> Enter Project ID in Global Inputs
C12: =IF(ISBLANK(Basin_Name),"Enter Basin Name in Global Inputs",Basin_Name) -> Enter Basin Name in Global Inputs
C13: =IF(ISBLANK(Cost_Estimator),"Enter Cost Estimator in Global Inputs",Cost_Estimator) -> Enter Cost Estimator in Global Inputs
C15: Assumptions
C16: - Ditch Rehabilitation projects are characterized by installation of upgraded or improved lining material and do not incorporate changes to ditch capacity
C17: - A tool developed by the Natural Resources Conservation Service (NRCS) was used to develop costing curves for discharge versus cost of material per linear foot. The use of this tool required the following assumptions:
C18: 1. For ditches with trapezoidal geometry the following is assumed: 1) Ditch side slopes are consistently 2 ft/ft, 2) Trapezoidal itches include a 0.5ft freeboard, 3) The average slope over the length of the ditch is 0.15%
C19: 2. For closed conduit ditches the following is assumed: 1) Conduits have 4 feet of soil cover, 2) The average slope over the length of the conduit is 0.15%
C20: 3. Manning’s roughness values are assumed as follows: Concrete: 0.013; Synthetic: 0.022; DIP: 0.013; PVC: 0.009
C22: Abbreviations
C23: cfs | D23: - | E23: cubic feet per second
C24: lf | D24: - | E24: linear feet
C26: Project Options
C27: Project Components
C28: Maximum Diversion Capacity | G28: cfs
C30: Diversion and Headgate Structure
C31: Type of Diversion Structure (informational)
C32: Maximum Diversion Capacity | F32: =IF(F28="","",F28) ->  | G32: cfs
C33: Recommended Cost of Diversion Structure | F33: =IFERROR(ROUND(interp(F32,Table7[Discharge (cfs)],Table7[Cost of Diversion]),-3),"") ->  | H33: Click Here for Diversion Cost Data Table
C34: Selected Diversion Structure Cost | G34: =IF(AND(F33<>"",F34=""),"User must enter cost here","") -> 
C36: Ditch Structure (Conveyance)
C37: Type of Project
C38: Type of Ditch
C39: Required Ditch Capacity | F39: =IF(DD_MaxDivCap="","",IF(OR($F$27="Ditch",$F$27="Ditch and Diversion Structure"),$F$28,"")) ->  | G39: cfs
C40: Length | G40: lf

Sheet Streams & Habitat
A3: S t r e a m s & H a b i t a t
C6: Streams and Habitat Parameters
C7: Module may be used for improvement and/or restoration projects.
C9: Project Information
C10: =IF(ISBLANK(Project_Name),"Enter Project Name in Global Inputs",Project_Name) -> Enter Project Name in Global Inputs
C11: =IF(ISBLANK(Project_ID),"Enter Project ID in Global Inputs",Project_ID) -> Enter Project ID in Global Inputs
C12: =IF(ISBLANK(Basin_Name),"Enter Basin Name in Global Inputs",Basin_Name) -> Enter Basin Name in Global Inputs
C13: =IF(ISBLANK(Cost_Estimator),"Enter Cost Estimator in Global Inputs",Cost_Estimator) -> Enter Cost Estimator in Global Inputs
C15: Assumptions
C16: - For the purposes of this tool, urban environments are considered those where the stream restoration takes part within an incorporated area and commercial or residential development has occurred adjacent to the riparian buffer.
C17: - Streams and Habitat costs compound with Level of Restoration. For example, Level 3 costs include Level 1 and Level 2 costs.
C18: - Restoration level categorized based on typical components of a restoration project. Users may perform multiple cost analysis to remove restoration components from projects.
C20: Abbreviations
C21: ft | D21: - | E21: feet
C22: lf | D22: - | E22: linear feet
C25: Stream and Habitat Inputs
C26: Stream Width Range | F26: ft
C27: Stream Environment
C28: Length of Restoration | F28: lf
C29: Level of Restoration
C32: Reference Table
C33: Level of Restoration | D33: General Description | E33: Typical Components
C34: Level 1 | D34: Riparian restoration | E34: Grading; revegetation
C35: Level 2 | D35: Level 1 + bank stabilization | E35: Riprap; root wads; log jams
C36: Level 3 | D36: Level 2 + in-channel structures | E36: Riffles; rock vanes; boulder weirs
C37: Level 4 | D37: Level 3 + channel realignment | E37: Channel realignment

Sheet User-Specified Project
A3: U s e r - S p e c i f i e d P r o j e c t
C7: Project Information
C8: =IF(ISBLANK(Project_Name),"Enter Project Name in Global Inputs",Project_Name) -> Enter Project Name in Global Inputs
C9: =IF(ISBLANK(Project_ID),"Enter Project ID in Global Inputs",Project_ID) -> Enter Project ID in Global Inputs
C10: =IF(ISBLANK(Basin_Name),"Enter Basin Name in Global Inputs",Basin_Name) -> Enter Basin Name in Global Inputs
C11: =IF(ISBLANK(Cost_Estimator),"Enter Cost Estimator in Global Inputs",Cost_Estimator) -> Enter Cost Estimator in Global Inputs
C13: Assumptions
C14: - Users with projects that do not fit into the category of the provided modules may submit their project through the User-Specified Project module.
C15: - The user is assumed to either have procured a professional to develop a project cost or has used a different costing mechanism to develop planning-level, or better, costs.
C16: - In the Project Description field, the User should provide a description of the project, what needs are met by the project, total yield and any major project components that contribute to cost.
C19: User-Specified Project Input
C20: Project Description
C28: Total Project Yield | F28: ac-ft/yr
C29: User Cost Input | F29: Total Capital Cost of Project Construction
C30: User Cost Input | F30: Annual Project Operations & Maintenance Costs

Sheet Costing Module
A3: C o s t i n g M o d u l e
C6: Costing Data and Summary
C7: To link back to an individual module, click the Module Title on the left
C9: Project Information
C10: =IF(ISBLANK(Project_Name),"Enter Project Name in Global Inputs",Project_Name) -> Enter Project Name in Global Inputs
C11: =IF(ISBLANK(Project_ID),"Enter Project ID in Global Inputs",Project_ID) -> Enter Project ID in Global Inputs
C12: =IF(ISBLANK(Basin_Name),"Enter Basin Name in Global Inputs",Basin_Name) -> Enter Basin Name in Global Inputs
C13: =IF(ISBLANK(Cost_Estimator),"Enter Cost Estimator in Global Inputs",Cost_Estimator) -> Enter Cost Estimator in Global Inputs
C16: Pipelines Project | D16: Pipes
D17: Segment | E17: Pipe Size (in) | F17: Environment | G17: Unit Cost | H17: Pipe Length (ft) | J17: External Cost Est. | K17: Cost
D18: 1 | E18: =IF(ISBLANK(Pipe_d1),"-",Pipe_d1) -> - | F18: =IF(ISBLANK(Pipelines!H43),"-",Pipelines!H43) -> - | G18: =_xlfn.IFNA(INDEX('Module References'!$J$45:$K$68,MATCH($E18,'Module References'!$G$45:$G$68,0),MATCH($F18,'Module References'!$J$44:$K$44,0)),"-") -> - | H18: =IF(ISBLANK(Pipe_L1),"-",Pipe_L1) -> - | K18: =IFERROR(IF(ISBLANK(J18),G18*H18,J18),"-") -> -
D19: 2 | E19: =IF(ISBLANK(Pipe_d2),"-",Pipe_d2) -> - | F19: =IF(ISBLANK(Pipelines!H77),"-",Pipelines!H77) -> - | G19: =_xlfn.IFNA(INDEX('Module References'!$J$45:$K$68,MATCH($E19,'Module References'!$G$45:$G$68,0),MATCH($F19,'Module References'!$J$44:$K$44,0)),"-") -> - | H19: =IF(ISBLANK(Pipe_L2),"-",Pipe_L2) -> - | K19: =IFERROR(IF(ISBLANK(J19),G19*H19,J19),"-") -> -
D20: 3 | E20: =IF(ISBLANK(Pipe_d3),"-",Pipe_d3) -> - | F20: =IF(ISBLANK(Pipelines!H111),"-",Pipelines!H111) -> - | G20: =_xlfn.IFNA(INDEX('Module References'!$J$45:$K$68,MATCH($E20,'Module References'!$G$45:$G$68,0),MATCH($F20,'Module References'!$J$44:$K$44,0)),"-") -> - | H20: =IF(ISBLANK(Pipe_L3),"-",Pipe_L3) -> - | K20: =IFERROR(IF(ISBLANK(J20),G20*H20,J20),"-") -> -
D22: Intake Pumps
D23: Segment | E23: Facility Size (HP) | F23: Intake Pump Required? | G23: Unit Cost | H23: Quantity | I23: Energy (kW-hr) | J23: External Cost Est. | K23: Cost
D24: 1 | E24: =IF(PumpType1="Intake",Pipelines!I70,"-") -> - | F24: =IF(ISBLANK(Pipelines!H65),"-",IF(Pipelines!H65="Intake","Yes","No")) -> - | G24: =IFERROR(IF(F24="Yes",interp(E24,'Module References'!$M$45:$M$73,'Module References'!$P$45:$P$73)*1000000,"-"),"-") -> - | H24: =IF(Pipelines!H70=0,"Gravity System",IF(Pipelines!H70="-","-",IF(F24="No",0,1))) -> - | I24: =IF(H24="Gravity System","-",IF(F24="Yes",(H24/Pipelines!H70)*Pipelines!K70,"-")) -> - | K24: =IF(I24<0,"-",IFERROR(IF(ISBLANK(J24),G24*H24,J24),"-")) -> -
D25: 2 | E25: =IF(PumpType2="Intake",Pipelines!I104,"-") -> - | F25: =IF(ISBLANK(Pipelines!H99),"-",IF(Pipelines!H99="Intake","Yes","No")) -> - | G25: =IFERROR(IF(F25="Yes",interp(E25,'Module References'!$M$45:$M$73,'Module References'!$P$45:$P$73)*1000000,"-"),"-") -> - | H25: =IF(Pipelines!H104=0,"Gravity System",IF(Pipelines!H104="-","-",IF(F25="No",0,1))) -> - | I25: =IF(H25="Gravity System","-",IF(F25="Yes",(H25/Pipelines!H104)*Pipelines!K104,"-")) -> - | K25: =IF(I25<0,"-",IFERROR(IF(ISBLANK(J25),G25*H25,J25),"-")) -> -
D26: 3 | E26: =IF(PumpType3="Intake",Pipelines!I138,"-") -> - | F26: =IF(ISBLANK(Pipelines!H133),"-",IF(Pipelines!H133="Intake","Yes","No")) -> - | G26: =IFERROR(IF(F26="Yes",interp(E26,'Module References'!$M$45:$M$73,'Module References'!$P$45:$P$73)*1000000,"-"),"-") -> - | H26: =IF(Pipelines!H138=0,"Gravity System",IF(Pipelines!H138="-","-",IF(F26="No",0,1))) -> - | I26: =IF(H26="Gravity System","-",IF(F26="Yes",(H26/Pipelines!H138)*Pipelines!K138,"-")) -> - | K26: -
D27: Booster Pumps
D28: Segment | E28: Facility Size (HP) | F28: Booster Pump Required? | G28: Unit Cost | H28: Quantity | I28: Energy (kW-hr) | J28: External Cost Est. | K28: Cost
D29: 1 | E29: =IF(ISBLANK(Pipelines!H65),"-",IF(OR(Pipelines!H65="Booster",Pipelines!H70>1),Pipelines!I70,"-")) -> - | F29: =IF(ISBLANK(Pipelines!H65),"-",IF(OR(Pipelines!H65="Booster",Pipelines!H70>1),"Yes","No")) -> - | G29: =IFERROR(interp(E29,'Module References'!$M$45:$M$73,'Module References'!$Q$45:$Q$73)*1000000,"-") -> - | H29: =IFERROR(IF(Pipelines!H70=0,"Gravity System",IF(Pipelines!H70-H24>0,Pipelines!H70-H24,"-")),"-") -> - | I29: =IF(H29="Gravity System","-",IF(F29="Yes",(H29/Pipelines!H70)*Pipelines!K70,"-")) -> - | K29: =IF(I29<0,"-",IFERROR(IF(ISBLANK(J29),G29*H29,J29),"-")) -> -
D30: 2 | E30: =IF(ISBLANK(Pipelines!H99),"-",IF(OR(Pipelines!H99="Booster",Pipelines!H104>1),Pipelines!I104,"-")) -> - | F30: =IF(ISBLANK(Pipelines!H99),"-",IF(OR(Pipelines!H99="Booster",Pipelines!H104>1),"Yes","No")) -> - | G30: =IFERROR(interp(E30,'Module References'!$M$45:$M$73,'Module References'!$Q$45:$Q$73)*1000000,"-") -> - | H30: =IFERROR(IF(Pipelines!H104=0,"Gravity System",IF(Pipelines!H104-H25>0,Pipelines!H104-H25,"-")),"-") -> - | I30: =IF(H30="Gravity System","-",IF(F30="Yes",(H30/Pipelines!H104)*Pipelines!K104,"-")) -> - | K30: =IF(I30<0,"-",IFERROR(IF(ISBLANK(J30),G30*H30,J30),"-")) -> -
D31: 3 | E31: =IF(ISBLANK(Pipelines!H133),"-",IF(OR(Pipelines!H133="Booster",Pipelines!H138>1),Pipelines!I138,"-")) -> - | F31: =IF(ISBLANK(Pipelines!H133),"-",IF(OR(Pipelines!H133="Booster",Pipelines!H138>1),"Yes","No")) -> - | G31: =IFERROR(interp(E31,'Module References'!$M$45:$M$73,'Module References'!$Q$45:$Q$73)*1000000,"-") -> - | H31: =IFERROR(IF(Pipelines!H138=0,"Gravity System",IF(Pipelines!H138-H26>0,Pipelines!H138-H26,"-")),"-") -> - | I31: =IF(H31="Gravity System","-",IF(F31="Yes",(H31/Pipelines!H138)*Pipelines!K138,"-")) -> - | K31: -
D32: Associated Storage
D33: Segment | E33: Storage (MG) | J33: External Cost Est. | K33: Cost
D34: 1 | E34: =IF(Pipelines!L70=0,"-",Pipelines!L70) -> - | K34: =IFERROR(IF(ISBLANK(J34),interp(E34,'Module References'!$S$45:$S$62,'Module References'!$U$45:$U$62),J34),"-") -> -
D35: 2 | E35: =IF(Pipelines!L104=0,"-",Pipelines!L104) -> - | K35: =IFERROR(IF(ISBLANK(J35),interp(E35,'Module References'!$S$45:$S$62,'Module References'!$U$45:$U$62),J35),"-") -> -
D36: 3 | E36: =IF(Pipelines!L138=0,"-",Pipelines!L138) -> - | K36: =IFERROR(IF(ISBLANK(J36),interp(E36,'Module References'!$S$45:$S$62,'Module References'!$U$45:$U$62),J36),"-") -> -
D37: Total Pipelines Project Cost | K37: =IFERROR(SUM(K18:K20,K24:K26,K29:K31,K34:K36),0) -> 0
C39: Well Field Project | D39: Well Field Piping
D40: Segment | E40: Pipe Size (in) | F40: Environment | G40: Unit Cost | H40: Pipe Length (ft) | J40: External Cost Est. | K40: Cost
D41: 1 | E41: =IF('Well Fields'!K61="","-",'Well Fields'!K61) -> - | F41: =IF(ISBLANK('Well Fields'!L61),"-",'Well Fields'!L61) -> - | G41: =_xlfn.IFNA(INDEX('Module References'!$J$45:$K$68,MATCH($E41,'Module References'!$G$45:$G$68,0),MATCH($F41,'Module References'!$J$44:$K$44,0)),"-") -> - | H41: =IF('Well Fields'!M61="","-",'Well Fields'!M61) -> - | K41: =IFERROR(IF(ISBLANK('Well Fields'!M61),"-",IF(ISBLANK(J41),G41*H41,J41)),"-") -> -
D42: 2 | E42: =IF('Well Fields'!K62="","-",'Well Fields'!K62) -> - | F42: =IF('Well Fields'!L62="","-",'Well Fields'!L62) -> - | G42: =_xlfn.IFNA(INDEX('Module References'!$J$45:$K$68,MATCH($E42,'Module References'!$G$45:$G$68,0),MATCH($F42,'Module References'!$J$44:$K$44,0)),"-") -> - | H42: =IF('Well Fields'!M62="","-",'Well Fields'!M62) -> - | K42: =IFERROR(IF(ISBLANK('Well Fields'!M62),"-",IF(ISBLANK(J42),G42*H42,J42)),"-") -> -
D43: 3 | E43: =IF('Well Fields'!K63="","-",'Well Fields'!K63) -> - | F43: =IF('Well Fields'!L63="","-",'Well Fields'!L63) -> - | G43: =_xlfn.IFNA(INDEX('Module References'!$J$45:$K$68,MATCH($E43,'Module References'!$G$45:$G$68,0),MATCH($F43,'Module References'!$J$44:$K$44,0)),"-") -> - | H43: =IF('Well Fields'!M63="","-",'Well Fields'!M63) -> - | K43: =IFERROR(IF(ISBLANK('Well Fields'!M63),"-",IF(ISBLANK(J43),G43*H43,J43)),"-") -> -
D44: 4 | E44: =IF('Well Fields'!K64="","-",'Well Fields'!K64) -> - | F44: =IF('Well Fields'!L64="","-",'Well Fields'!L64) -> - | G44: =_xlfn.IFNA(INDEX('Module References'!$J$45:$K$68,MATCH($E44,'Module References'!$G$45:$G$68,0),MATCH($F44,'Module References'!$J$44:$K$44,0)),"-") -> - | H44: =IF('Well Fields'!M64="","-",'Well Fields'!M64) -> - | K44: =IFERROR(IF(ISBLANK('Well Fields'!M64),"-",IF(ISBLANK(J44),G44*H44,J44)),"-") -> -
D45: 5 | E45: =IF('Well Fields'!K65="","-",'Well Fields'!K65) -> - | F45: =IF('Well Fields'!L65="","-",'Well Fields'!L65) -> - | G45: =_xlfn.IFNA(INDEX('Module References'!$J$45:$K$68,MATCH($E45,'Module References'!$G$45:$G$68,0),MATCH($F45,'Module References'!$J$44:$K$44,0)),"-") -> - | H45: =IF('Well Fields'!M65="","-",'Well Fields'!M65) -> - | K45: =IFERROR(IF(ISBLANK('Well Fields'!M65),"-",IF(ISBLANK(J45),G45*H45,J45)),"-") -> -
D46: 6 | E46: =IF('Well Fields'!K66="","-",'Well Fields'!K66) -> - | F46: =IF('Well Fields'!L66="","-",'Well Fields'!L66) -> - | G46: =_xlfn.IFNA(INDEX('Module References'!$J$45:$K$68,MATCH($E46,'Module References'!$G$45:$G$68,0),MATCH($F46,'Module References'!$J$44:$K$44,0)),"-") -> - | H46: =IF('Well Fields'!M66="","-",'Well Fields'!M66) -> - | K46: =IFERROR(IF(ISBLANK('Well Fields'!M66),"-",IF(ISBLANK(J46),G46*H46,J46)),"-") -> -
D47: 7 | E47: =IF('Well Fields'!K67="","-",'Well Fields'!K67) -> - | F47: =IF('Well Fields'!L67="","-",'Well Fields'!L67) -> - | G47: =_xlfn.IFNA(INDEX('Module References'!$J$45:$K$68,MATCH($E47,'Module References'!$G$45:$G$68,0),MATCH($F47,'Module References'!$J$44:$K$44,0)),"-") -> - | H47: =IF('Well Fields'!M67="","-",'Well Fields'!M67) -> - | K47: =IFERROR(IF(ISBLANK('Well Fields'!M67),"-",IF(ISBLANK(J47),G47*H47,J47)),"-") -> -
D48: 8 | E48: =IF('Well Fields'!K68="","-",'Well Fields'!K68) -> - | F48: =IF('Well Fields'!L68="","-",'Well Fields'!L68) -> - | G48: =_xlfn.IFNA(INDEX('Module References'!$J$45:$K$68,MATCH($E48,'Module References'!$G$45:$G$68,0),MATCH($F48,'Module References'!$J$44:$K$44,0)),"-") -> - | H48: =IF('Well Fields'!M68="","-",'Well Fields'!M68) -> - | K48: =IFERROR(IF(ISBLANK('Well Fields'!M68),"-",IF(ISBLANK(J48),G48*H48,J48)),"-") -> -
D49: 9 | E49: =IF('Well Fields'!K69="","-",'Well Fields'!K69) -> - | F49: =IF('Well Fields'!L69="","-",'Well Fields'!L69) -> - | G49: =_xlfn.IFNA(INDEX('Module References'!$J$45:$K$68,MATCH($E49,'Module References'!$G$45:$G$68,0),MATCH($F49,'Module References'!$J$44:$K$44,0)),"-") -> - | H49: =IF('Well Fields'!M69="","-",'Well Fields'!M69) -> - | K49: =IFERROR(IF(ISBLANK('Well Fields'!M69),"-",IF(ISBLANK(J49),G49*H49,J49)),"-") -> -
D50: 10 | E50: =IF('Well Fields'!K70="","-",'Well Fields'!K70) -> - | F50: =IF('Well Fields'!L70="","-",'Well Fields'!L70) -> - | G50: =_xlfn.IFNA(INDEX('Module References'!$J$45:$K$68,MATCH($E50,'Module References'!$G$45:$G$68,0),MATCH($F50,'Module References'!$J$44:$K$44,0)),"-") -> - | H50: =IF('Well Fields'!M70="","-",'Well Fields'!M70) -> - | K50: =IFERROR(IF(ISBLANK('Well Fields'!M70),"-",IF(ISBLANK(J50),G50*H50,J50)),"-") -> -
D51: Wells
D52: Well Type | E52: Depth | F52: Capacity (gpm) | G52: Well Cost | I52: Energy, Total Well Field (kW-hr) | J52: External Cost Est. | K52: Cost
D53: =IF(ISBLANK('Well Fields'!$D$42),"-",'Well Fields'!$D$42) -> - | E53: =IF('Well Fields'!P43=0,"-",'Well Fields'!P43) -> - | F53: =IF('Well Fields'!Q43=0,"-",'Well Fields'!Q43) -> - | G53: =IFERROR(IF(ISBLANK('Well Fields'!O43),0,IF(D53="Public Supply Wells",interp('Costing Module'!E53,'Module References'!$C$87:$C$93,'Module References'!$P$87:$P$93),IF(D53="ASR Wells",interp('Costing Module'!E53,'Module References'!$C$94:$C$100,'Module References'!$P$94:$P$100),interp('Costing Module'!E53,'Module References'!$C$101:$C$107,'Module References'!$P$101:$P$107)))),"-") -> - | I53: =IF(ISNUMBER(F54),"-",IF(ISNUMBER(F53),'Well Fields'!$H$55,"-")) -> - | K53: =IFERROR(IF(ISBLANK('Well Fields'!K43),"-",IF(ISBLANK(J53),G53,J53)),"-") -> -
D54: =IF(ISBLANK('Well Fields'!$D$42),"-",'Well Fields'!$D$42) -> - | E54: =IF('Well Fields'!P44=0,"-",'Well Fields'!P44) -> - | F54: =IF('Well Fields'!Q44=0,"-",'Well Fields'!Q44) -> - | G54: =IFERROR(IF(ISBLANK('Well Fields'!O44),0,IF(D54="Public Supply Wells",interp('Costing Module'!E54,'Module References'!$C$87:$C$93,'Module References'!$Q$87:$Q$93),IF(D54="ASR Wells",interp('Costing Module'!E54,'Module References'!$C$94:$C$100,'Module References'!$Q$94:$Q$100),interp('Costing Module'!E54,'Module References'!$C$101:$C$107,'Module References'!$Q$101:$Q$107)))),"-") -> - | I54: =IF(ISNUMBER(F55),"-",IF(ISNUMBER(F54),'Well Fields'!$H$55,"-")) -> - | K54: =IFERROR(IF(ISBLANK('Well Fields'!K44),"-",IF(ISBLANK(J54),G54,J54)),"-") -> -
D55: =IF(ISBLANK('Well Fields'!$D$42),"-",'Well Fields'!$D$42) -> - | E55: =IF('Well Fields'!P45=0,"-",'Well Fields'!P45) -> - | F55: =IF('Well Fields'!Q45=0,"-",'Well Fields'!Q45) -> - | G55: =IFERROR(IF(ISBLANK('Well Fields'!O45),0,IF(D55="Public Supply Wells",interp('Costing Module'!E55,'Module References'!$C$87:$C$93,'Module References'!$R$87:$R$93),IF(D55="ASR Wells",interp('Costing Module'!E55,'Module References'!$C$94:$C$100,'Module References'!$R$94:$R$100),interp('Costing Module'!E55,'Module References'!$C$101:$C$107,'Module References'!$R$101:$R$107)))),"-") -> - | I55: =IF(ISNUMBER(F56),"-",IF(ISNUMBER(F55),'Well Fields'!$H$55,"-")) -> - | K55: =IFERROR(IF(ISBLANK('Well Fields'!K45),"-",IF(ISBLANK(J55),G55,J55)),"-") -> -
D56: =IF(ISBLANK('Well Fields'!$D$42),"-",'Well Fields'!$D$42) -> - | E56: =IF('Well Fields'!P46=0,"-",'Well Fields'!P46) -> - | F56: =IF('Well Fields'!Q46=0,"-",'Well Fields'!Q46) -> - | G56: =IFERROR(IF(ISBLANK('Well Fields'!O46),0,IF(D56="Public Supply Wells",interp('Costing Module'!E56,'Module References'!$C$87:$C$93,'Module References'!$S$87:$S$93),IF(D56="ASR Wells",interp('Costing Module'!E56,'Module References'!$C$94:$C$100,'Module References'!$S$94:$S$100),interp('Costing Module'!E56,'Module References'!$C$101:$C$107,'Module References'!$S$101:$S$107)))),"-") -> - | I56: =IF(ISNUMBER(F57),"-",IF(ISNUMBER(F56),'Well Fields'!$H$55,"-")) -> - | K56: =IFERROR(IF(ISBLANK('Well Fields'!K46),"-",IF(ISBLANK(J56),G56,J56)),"-") -> -
D57: =IF(ISBLANK('Well Fields'!$D$42),"-",'Well Fields'!$D$42) -> - | E57: =IF('Well Fields'!P47=0,"-",'Well Fields'!P47) -> - | F57: =IF('Well Fields'!Q47=0,"-",'Well Fields'!Q47) -> - | G57: =IFERROR(IF(ISBLANK('Well Fields'!O47),0,IF(D57="Public Supply Wells",interp('Costing Module'!E57,'Module References'!$C$87:$C$93,'Module References'!$T$87:$T$93),IF(D57="ASR Wells",interp('Costing Module'!E57,'Module References'!$C$94:$C$100,'Module References'!$T$94:$T$100),interp('Costing Module'!E57,'Module References'!$C$101:$C$107,'Module References'!$T$101:$T$107)))),"-") -> - | I57: =IF(ISNUMBER(F58),"-",IF(ISNUMBER(F57),'Well Fields'!$H$55,"-")) -> - | K57: =IFERROR(IF(ISBLANK('Well Fields'!K47),"-",IF(ISBLANK(J57),G57,J57)),"-") -> -
D58: =IF(ISBLANK('Well Fields'!$D$42),"-",'Well Fields'!$D$42) -> - | E58: =IF('Well Fields'!P48=0,"-",'Well Fields'!P48) -> - | F58: =IF('Well Fields'!Q48=0,"-",'Well Fields'!Q48) -> - | G58: =IFERROR(IF(ISBLANK('Well Fields'!O48),0,IF(D58="Public Supply Wells",interp('Costing Module'!E58,'Module References'!$C$87:$C$93,'Module References'!$U$87:$U$93),IF(D58="ASR Wells",interp('Costing Module'!E58,'Module References'!$C$94:$C$100,'Module References'!$U$94:$U$100),interp('Costing Module'!E58,'Module References'!$C$101:$C$107,'Module References'!$U$101:$U$107)))),"-") -> - | I58: =IF(ISNUMBER(F59),"-",IF(ISNUMBER(F58),'Well Fields'!$H$55,"-")) -> - | K58: =IFERROR(IF(ISBLANK('Well Fields'!K48),"-",IF(ISBLANK(J58),G58,J58)),"-") -> -
D59: =IF(ISBLANK('Well Fields'!$D$42),"-",'Well Fields'!$D$42) -> - | E59: =IF('Well Fields'!P49=0,"-",'Well Fields'!P49) -> - | F59: =IF('Well Fields'!Q49=0,"-",'Well Fields'!Q49) -> - | G59: =IFERROR(IF(ISBLANK('Well Fields'!O43),0,IF(D59="Public Supply Wells",interp('Costing Module'!E59,'Module References'!$C$87:$C$93,'Module References'!$V$87:$V$93),IF(D59="ASR Wells",interp('Costing Module'!E59,'Module References'!$C$94:$C$100,'Module References'!$V$94:$V$100),interp('Costing Module'!E59,'Module References'!$C$101:$C$107,'Module References'!$V$101:$V$107)))),"-") -> - | I59: =IF(ISNUMBER(F60),"-",IF(ISNUMBER(F59),'Well Fields'!$H$55,"-")) -> - | K59: =IFERROR(IF(ISBLANK('Well Fields'!K49),"-",IF(ISBLANK(J59),G59,J59)),"-") -> -
D60: =IF(ISBLANK('Well Fields'!$D$42),"-",'Well Fields'!$D$42) -> - | E60: =IF('Well Fields'!P50=0,"-",'Well Fields'!P50) -> - | F60: =IF('Well Fields'!Q50=0,"-",'Well Fields'!Q50) -> - | G60: =IFERROR(IF(ISBLANK('Well Fields'!O43),0,IF(D60="Public Supply Wells",interp('Costing Module'!E60,'Module References'!$C$87:$C$93,'Module References'!$W$87:$W$93),IF(D60="ASR Wells",interp('Costing Module'!E60,'Module References'!$C$94:$C$100,'Module References'!$W$94:$W$100),interp('Costing Module'!E60,'Module References'!$C$101:$C$107,'Module References'!$W$101:$W$107)))),"-") -> - | I60: =IF(ISNUMBER(F61),"-",IF(ISNUMBER(F60),'Well Fields'!$H$55,"-")) -> - | K60: =IFERROR(IF(ISBLANK('Well Fields'!K50),"-",IF(ISBLANK(J60),G60,J60)),"-") -> -
D61: =IF(ISBLANK('Well Fields'!$D$42),"-",'Well Fields'!$D$42) -> - | E61: =IF('Well Fields'!P51=0,"-",'Well Fields'!P51) -> - | F61: =IF('Well Fields'!Q51=0,"-",'Well Fields'!Q51) -> - | G61: =IFERROR(IF(ISBLANK('Well Fields'!O43),0,IF(D61="Public Supply Wells",interp('Costing Module'!E61,'Module References'!$C$87:$C$93,'Module References'!$X$87:$X$93),IF(D61="ASR Wells",interp('Costing Module'!E61,'Module References'!$C$94:$C$100,'Module References'!$X$94:$X$100),interp('Costing Module'!E61,'Module References'!$C$101:$C$107,'Module References'!$X$101:$X$107)))),"-") -> - | I61: =IF(ISNUMBER(F62),"-",IF(ISNUMBER(F61),'Well Fields'!$H$55,"-")) -> - | K61: =IFERROR(IF(ISBLANK('Well Fields'!K51),"-",IF(ISBLANK(J61),G61,J61)),"-") -> -
D62: =IF(ISBLANK('Well Fields'!$D$42),"-",'Well Fields'!$D$42) -> - | E62: =IF('Well Fields'!P52=0,"-",'Well Fields'!P52) -> - | F62: =IF('Well Fields'!Q52=0,"-",'Well Fields'!Q52) -> - | G62: =IFERROR(IF(ISBLANK('Well Fields'!O43),0,IF(D62="Public Supply Wells",interp('Costing Module'!E62,'Module References'!$C$87:$C$93,'Module References'!$Y$87:$Y$93),IF(D62="ASR Wells",interp('Costing Module'!E62,'Module References'!$C$94:$C$100,'Module References'!$Y$94:$Y$100),interp('Costing Module'!E62,'Module References'!$C$101:$C$107,'Module References'!$Y$101:$Y$107)))),"-") -> - | I62: =IF(ISNUMBER(F63),"-",IF(ISNUMBER(F62),'Well Fields'!$H$55,"-")) -> - | K62: =IFERROR(IF(ISBLANK('Well Fields'!K52),"-",IF(ISBLANK(J62),G62,J62)),"-") -> -
D63: Booster Pumps
D64: Pump Number | E64: Facility Size (HP) | F64: Pump Type | G64: Unit Cost | H64: Quantity | I64: Energy (kW-hr) | J64: External Cost Est. | K64: Cost
D65: ='Well Fields'!N79 -> 1 | E65: =IF('Well Fields'!Q79="","-",'Well Fields'!Q79) -> - | F65: =IF(ISNUMBER(E65),"Booster","-") -> - | G65: =IFERROR(interp(E65,'Module References'!$M$45:$M$73,'Module References'!$Q$45:$Q$73)*MG_GAL,"-") -> - | H65: =IF(ISNUMBER(E65),1,"-") -> - | I65: =IF('Well Fields'!R79<>0,'Well Fields'!R79,"-") -> - | K65: =IF(I65<0,"-",IFERROR(IF('Well Fields'!Q79=0,"-",IF(ISBLANK(J65),G65*H65,J65)),"-")) -> -
D66: ='Well Fields'!N80 -> 2 | E66: =IF('Well Fields'!Q80="","-",'Well Fields'!Q80) -> - | F66: =IF(ISNUMBER(E66),"Booster","-") -> - | G66: =IFERROR(interp(E66,'Module References'!$M$45:$M$73,'Module References'!$Q$45:$Q$73)*MG_GAL,"-") -> - | H66: =IF(ISNUMBER(E66),1,"-") -> - | I66: =IF('Well Fields'!R80<>0,'Well Fields'!R80,"-") -> - | K66: =IF(I66<0,"-",IFERROR(IF('Well Fields'!Q80=0,"-",IF(ISBLANK(J66),G66*H66,J66)),"-")) -> -
D67: ='Well Fields'!N81 -> 3 | E67: =IF('Well Fields'!Q81="","-",'Well Fields'!Q81) -> - | F67: - | G67: =IFERROR(interp(E67,'Module References'!$M$45:$M$73,'Module References'!$Q$45:$Q$73)*MG_GAL,"-") -> - | H67: - | I67: =IF('Well Fields'!R81<>0,'Well Fields'!R81,"-") -> - | K67: =IF(I67<0,"-",IFERROR(IF('Well Fields'!Q81=0,"-",IF(ISBLANK(J67),G67*H67,J67)),"-")) -> -
D68: ='Well Fields'!N82 -> 4 | E68: =IF('Well Fields'!Q82="","-",'Well Fields'!Q82) -> - | F68: - | G68: =IFERROR(interp(E68,'Module References'!$M$45:$M$73,'Module References'!$Q$45:$Q$73)*MG_GAL,"-") -> - | H68: - | I68: =IF('Well Fields'!R82<>0,'Well Fields'!R82,"-") -> - | K68: =IF(I68<0,"-",IFERROR(IF('Well Fields'!Q82=0,"-",IF(ISBLANK(J68),G68*H68,J68)),"-")) -> -
D69: ='Well Fields'!N83 -> 5 | E69: =IF('Well Fields'!Q83="","-",'Well Fields'!Q83) -> - | F69: - | G69: =IFERROR(interp(E69,'Module References'!$M$45:$M$73,'Module References'!$Q$45:$Q$73)*MG_GAL,"-") -> - | H69: - | I69: =IF('Well Fields'!R83<>0,'Well Fields'!R83,"-") -> - | K69: =IF(I69<0,"-",IFERROR(IF('Well Fields'!Q83=0,"-",IF(ISBLANK(J69),G69*H69,J69)),"-")) -> -
D70: ='Well Fields'!N84 -> 6 | E70: =IF('Well Fields'!Q84="","-",'Well Fields'!Q84) -> - | F70: - | G70: =IFERROR(interp(E70,'Module References'!$M$45:$M$73,'Module References'!$Q$45:$Q$73)*MG_GAL,"-") -> - | H70: - | I70: =IF('Well Fields'!R84<>0,'Well Fields'!R84,"-") -> - | K70: =IF(I70<0,"-",IFERROR(IF('Well Fields'!Q84=0,"-",IF(ISBLANK(J70),G70*H70,J70)),"-")) -> -
D71: ='Well Fields'!N85 -> 7 | E71: =IF('Well Fields'!Q85="","-",'Well Fields'!Q85) -> - | F71: - | G71: =IFERROR(interp(E71,'Module References'!$M$45:$M$73,'Module References'!$Q$45:$Q$73)*MG_GAL,"-") -> - | H71: - | I71: =IF('Well Fields'!R85<>0,'Well Fields'!R85,"-") -> - | K71: =IF(I71<0,"-",IFERROR(IF('Well Fields'!Q85=0,"-",IF(ISBLANK(J71),G71*H71,J71)),"-")) -> -
D72: ='Well Fields'!N86 -> 8 | E72: =IF('Well Fields'!Q86="","-",'Well Fields'!Q86) -> - | F72: - | G72: =IFERROR(interp(E72,'Module References'!$M$45:$M$73,'Module References'!$Q$45:$Q$73)*MG_GAL,"-") -> - | H72: - | I72: =IF('Well Fields'!R86<>0,'Well Fields'!R86,"-") -> - | K72: =IF(I72<0,"-",IFERROR(IF('Well Fields'!Q86=0,"-",IF(ISBLANK(J72),G72*H72,J72)),"-")) -> -
D73: ='Well Fields'!N87 -> 9 | E73: =IF('Well Fields'!Q87="","-",'Well Fields'!Q87) -> - | F73: - | G73: =IFERROR(interp(E73,'Module References'!$M$45:$M$73,'Module References'!$Q$45:$Q$73)*MG_GAL,"-") -> - | H73: - | I73: =IF('Well Fields'!R87<>0,'Well Fields'!R87,"-") -> - | K73: =IF(I73<0,"-",IFERROR(IF('Well Fields'!Q87=0,"-",IF(ISBLANK(J73),G73*H73,J73)),"-")) -> -
D74: ='Well Fields'!N88 -> 10 | E74: =IF('Well Fields'!Q88="","-",'Well Fields'!Q88) -> - | F74: - | G74: =IFERROR(interp(E74,'Module References'!$M$45:$M$73,'Module References'!$Q$45:$Q$73)*MG_GAL,"-") -> - | H74: - | I74: =IF('Well Fields'!R88<>0,'Well Fields'!R88,"-") -> - | K74: =IF(I74<0,"-",IFERROR(IF('Well Fields'!Q88=0,"-",IF(ISBLANK(J74),G74*H74,J74)),"-")) -> -
D75: Total Well Field Project Cost | K75: =IFERROR(SUM(K41:K50,K53:K62,K65:K74),0) -> 0
C77: Treatment Project | D77: Treatment Project Capital Costs
D78: Treatment Type | F78: Capacity (MGD) | G78: Capital Cost | J78: External Cost Est. | K78: Cost
D79: =IF(ISBLANK(Treatment!F31),"-",Treatment!F31) -> - | F79: =IF(Treatment!F36=0,"-",Treatment!F36) -> - | G79: =IF(F79="-","-",IF(D79='Module References'!S167,interp('Costing Module'!F79,'Module References'!$B$119:$B$135,'Module References'!$K$119:$K$135),IF('Costing Module'!D79='Module References'!S168,interp('Costing Module'!F79,'Module References'!$B$119:$B$135,'Module References'!$L$119:$L$135),IF(D79='Module References'!S169,interp(F79,'Module References'!$B$119:$B$135,'Module References'!$M$119:$M$135),IF(D79='Module References'!S170,interp(F79,'Module References'!$B$119:$B$135,'Module References'!$N$119:$N$135),IF(D79='Module References'!S171,interp(F79,'Module References'!$B$119:$B$135,'Module References'!$O$119:$O$135),IF(D79='Module References'!S172,interp('Costing Module'!F79,'Module References'!$B$119:$B$135,'Module References'!$P$119:$P$135),IF(D79='Module References'!S173,interp('Costing Module'!F79,'Module References'!$B$119:$B$135,'Module References'!$Q$119:$Q$135),IF(D79='Module References'!S174,interp('Costing Module'!F79,'Module References'!$B$119:$B$135,'Module References'!$R$119:$R$135),0))))))))*1000) -> - | K79: =IF(G79=0,"-",IFERROR(IF(ISBLANK(J79),G79,J79),"-")) -> -
D80: Treatment Project Annual O&M Costs
D81: Treatment Type | F81: Capacity (MGD) | G81: Annual Cost | J81: External Cost Est. | K81: Cost
D82: =IF(ISBLANK(Treatment!F31),"-",Treatment!F31) -> - | F82: =IF(Treatment!F36=0,"-",Treatment!F36) -> - | G82: =IF(F82="-","-",IF(D82='Module References'!S167,interp('Costing Module'!F82,'Module References'!$B$119:$B$135,'Module References'!$AC$119:$AC$135),IF('Costing Module'!D82='Module References'!S168,interp('Costing Module'!F82,'Module References'!$B$119:$B$135,'Module References'!$AD$119:$AD$135),IF(D82='Module References'!S169,interp(F82,'Module References'!$B$119:$B$135,'Module References'!$AE$119:$AE$135),IF(D82='Module References'!S170,interp(F82,'Module References'!$B$119:$B$135,'Module References'!$AF$119:$AF$135),IF(D82='Module References'!S171,interp(F82,'Module References'!$B$119:$B$135,'Module References'!$AG$119:$AG$135),IF(D82='Module References'!S172,interp('Costing Module'!F82,'Module References'!$B$119:$B$135,'Module References'!$AH$119:$AH$135),IF(D82='Module References'!S173,interp('Costing Module'!F82,'Module References'!$B$119:$B$135,'Module References'!$AI$119:$AI$135),IF(D82='Module References'!S174,interp('Costing Module'!F82,'Module References'!$B$119:$B$135,'Module References'!AJ119:AJ135),0))))))))*1000) -> - | K82: =IF(G82=0,"-",IFERROR(IF(ISBLANK(J82),G82,J82),"-")) -> -
D83: Total Treatment Capital Project Cost | K83: =IF(K79="-",0,K79) -> 0
C85: Reservoir Project | D85: Reservoir Project Costs
D86: Reservoir Project Type | F86: New Capacity (ac-ft) | J86: External Cost Est. | K86: Cost
D87: =IF(ISBLANK(Reservoirs!F30),"-",Reservoirs!F30) -> - | F87: =IF(ISBLANK(Reservoirs!F31),"-",Reservoirs!F31) -> - | K87: =IFERROR(IF(ISBLANK(J87),IF('Costing Module'!D87='Module References'!B182,interp(F87,'Module References'!E181:E204,'Module References'!H181:H204),interp(F87,'Module References'!E181:E204,'Module References'!I181:I204))*1000000,J87),"-") -> -
D88: Reservoir Rehabilitation Project Costs
D89: Reservoir Rehab Project | G89: User-Specified Cost | J89: External Cost Est. | K89: Cost
D90: =IFERROR(IF(Rehab_Cost="","-","Yes"),"-") -> - | G90: =IFERROR(IF(Rehab_Cost="","-",Rehab_Cost),"-") -> - | K90: =IF(G90=0,"-",IFERROR(IF(ISBLANK(J90),G90,J90),"-")) -> -
D91: Total Reservoir Project Cost | K91: =IF(SUM(K87,K90)="-",0,SUM(K87,K90)) -> 0
C93: Water Rights Project | D93: Water Rights Project Costs
D94: External Cost Estimate | K94: =IF('Water Rights'!F22<>0,'Water Rights'!F22,"-") -> -
D95: Total Water Rights Project Cost | K95: =IF(K94="-",0,K94) -> 0
C97: Ditches and Diversions Project | D97: Ditch Project Costs
D98: Type of Ditch Project | E98: Type of Ditch | G98: Maximum Discharge (cfs) | H98: Unit Cost | I98: Length (lf) | J98: External Cost Est. | K98: Cost
D99: =IF(ISBLANK('Ditches & Diversions'!$F$37),"-",'Ditches & Diversions'!$F$37) -> - | E99: =IF(ISBLANK('Ditches & Diversions'!$F$38),"-",'Ditches & Diversions'!$F$38) -> - | G99: =IF(ISBLANK('Ditches & Diversions'!$F$39),"-",'Ditches & Diversions'!$F$39) ->  | H99: =IFERROR(IF(D99='Module References'!F218,IF(E99='Module References'!D218,interp('Costing Module'!G99,'Module References'!H217:H238,'Module References'!N217:N238),IF(E99='Module References'!D219,interp('Costing Module'!G99,'Module References'!H217:H238,'Module References'!O217:O238),IF(E99='Module References'!D220,interp('Costing Module'!G99,'Module References'!H217:H238,'Module References'!P217:P238),IF(E99='Module References'!D221,interp('Costing Module'!G99,'Module References'!H217:H238,'Module References'!Q217:Q238),IF(E99='Module References'!D222,interp('Costing Module'!G99,'Module References'!H217:H238,'Module References'!R217:R238)))))),IF(E99='Module References'!D218,interp('Costing Module'!G99,'Module References'!T217:T238,'Module References'!Z217:Z238),IF(E99='Module References'!D219,interp('Costing Module'!G99,'Module References'!T217:T238,'Module References'!AA217:AA238),IF(E99='Module References'!D220,interp('Costing Module'!G99,'Module References'!T217:T238,'Module References'!AB217:AB238),IF(E99='Module References'!D221,interp('Costing Module'!G99,'Module References'!T217:T238,'Module References'!AC217:AC238),IF(E99='Module References'!D222,interp('Costing Module'!G99,'Module References'!T217:T238,'Module References'!AD217:AD238),"-")))))),"-") -> - | I99: =IF(ISBLANK('Ditches & Diversions'!$F$40),"-",'Ditches & Diversions'!$F$40) -> - | K99: =IFERROR(IF(ISBLANK(J99),H99*I99,'Costing Module'!J99),"-") -> -
D100: Diversion Project Costs
D101: Type of Diversion | G101: Maximum Discharge (cfs) | J101: External Cost Est.
D102: =IF(DD_DivType="","-",DD_DivType) -> - | G102: =IF(ISBLANK('Ditches & Diversions'!$F$39),"-",'Ditches & Diversions'!$F$39) ->  | K102: =IFERROR(IF(ISBLANK(J102),'Ditches & Diversions'!F34,J102),"-") -> 0
D103: Total Ditches & Diversions Project Cost | K103: =IFERROR(SUM(K99,K102),0) -> 0
C105: Streams and Habitat Project | D105: Streams and Habitat Project Costs
D106: Stream Width (ft) | E106: Environment | F106: Level of Restoration | G106: Unit Cost | H106: Quantity (lf) | J106: External Cost Est. | K106: Cost
D107: =IF('Streams & Habitat'!E29='Costing Module'!F107,'Streams & Habitat'!E26,"-") -> - | E107: =IF('Streams & Habitat'!E29='Costing Module'!F107,'Streams & Habitat'!E27,"-") -> - | F107: Level 1 | G107: =IF(D107="-","-",INDEX(Table416[[Rural]:[Urban]],MATCH(1,(D107=Table416[Width Range])*(F107=Table416[Restoration Level]),0),MATCH(E107,Table416[[#Headers],[Rural]:[Urban]],0))) -> - | H107: =IF('Streams & Habitat'!E29='Costing Module'!F107,'Streams & Habitat'!E28,"-") -> - | K107: =IFERROR(IF(ISBLANK(J107),G107*H107,J107),"-") -> -
D108: =IF('Streams & Habitat'!E29='Costing Module'!F108,'Streams & Habitat'!E26,"-") -> - | E108: =IF('Streams & Habitat'!E29='Costing Module'!F108,'Streams & Habitat'!E27,"-") -> - | F108: Level 2 | G108: =IF(D108="-","-",INDEX(Table416[[Rural]:[Urban]],MATCH(1,(D108=Table416[Width Range])*(F108=Table416[Restoration Level]),0),MATCH(E108,Table416[[#Headers],[Rural]:[Urban]],0))) -> - | H108: =IF(F108='Streams & Habitat'!E29,'Streams & Habitat'!E28,"-") -> - | K108: =IFERROR(IF(ISBLANK(J108),G108*H108,J108),"-") -> -
D109: =IF('Streams & Habitat'!E29='Costing Module'!F109,'Streams & Habitat'!E26,"-") -> - | E109: =IF('Streams & Habitat'!E29='Costing Module'!F109,'Streams & Habitat'!E27,"-") -> - | F109: Level 3 | G109: =IF(D109="-","-",INDEX(Table416[[Rural]:[Urban]],MATCH(1,(D109=Table416[Width Range])*(F109=Table416[Restoration Level]),0),MATCH(E109,Table416[[#Headers],[Rural]:[Urban]],0))) -> - | H109: =IF(F109='Streams & Habitat'!E29,'Streams & Habitat'!E28,"-") -> - | K109: -
D110: =IF('Streams & Habitat'!E29='Costing Module'!F110,'Streams & Habitat'!E26,"-") -> - | E110: =IF('Streams & Habitat'!E29='Costing Module'!F110,'Streams & Habitat'!E27,"-") -> - | F110: Level 4 | G110: =IF(D110="-","-",INDEX(Table416[[Rural]:[Urban]],MATCH(1,(D110=Table416[Width Range])*(F110=Table416[Restoration Level]),0),MATCH(E110,Table416[[#Headers],[Rural]:[Urban]],0))) -> - | H110: =IF(F110='Streams & Habitat'!E29,'Streams & Habitat'!E28,"-") -> - | K110: -
D111: Total Streams and Habitat Project Cost | K111: =IFERROR(SUM(K107:K110),0) -> 0
C113: User-specified Project | D113: User-Specified Project Costs
D114: External Capital Cost Estimate | K114: =IF('User-Specified Project'!E29<>0,'User-Specified Project'!E29,"-") -> -
D115: External O&M Cost Estimate | K115: =IF('User-Specified Project'!E30<>0,'User-Specified Project'!E30,"-") -> -
D116: Total User-Specified Capital Project Cost | K116: =IF(K114="-",0,K114) -> 0
D118: Additional External Costs
D119: Additional Line Item | E119: Related Module | F119: Line Item Description | K119: Item Cost
D126: Total Additional Project Costs | K126: =IFERROR(SUM(K120:K125),0) -> 0

Sheet Cost Summary Sheet
A2: C o s t S u m m a r y S h e e t
C5: =IF(ISBLANK(Project_Name),"Enter Project Name in Global Inputs",Project_Name) -> Enter Project Name in Global Inputs
C6: =IF(ISBLANK(Project_ID),"Enter Project ID in Global Inputs",Project_ID) -> Enter Project ID in Global Inputs
C7: =IF(ISBLANK(Basin_Name),"Enter Basin Name in Global Inputs",Basin_Name) -> Enter Basin Name in Global Inputs
C8: ="Cost Analysis Computed by " & Cost_Estimator -> Cost Analysis Computed by
C9: =TODAY() -> 2018-12-17
C10: Capital Construction Costs
D12: ='Costing Module'!D37:J37 -> Total Pipelines Project Cost | H12: =IFERROR(ROUND('Costing Module'!K37,-3),0) -> 0
D13: ='Costing Module'!D75:J75 -> Total Well Field Project Cost | H13: =IFERROR(ROUND('Costing Module'!K75,-3),0) -> 0
D14: ='Costing Module'!D83:J83 -> Total Treatment Capital Project Cost | H14: =IFERROR(ROUND('Costing Module'!K83,-3),0) -> 0
D15: ='Costing Module'!D103:J103 -> Total Ditches & Diversions Project Cost | H15: =IFERROR(ROUND('Costing Module'!K103,-3),0) -> 0
D16: ='Costing Module'!D111:J111 -> Total Streams and Habitat Project Cost | H16: =IFERROR(ROUND('Costing Module'!K111,-3),0) -> 0
D17: ='Costing Module'!D116:J116 -> Total User-Specified Capital Project Cost | H17: =IFERROR(ROUND('Costing Module'!K116,-3),0) -> 0
D18: ='Costing Module'!D126:J126 -> Total Additional Project Costs | H18: =IFERROR(ROUND('Costing Module'!K126,-3),0) -> 0
E20: Construction Project Costs Subtotal (Non-Reservoir) | H20: =ROUND(SUM(H12:H18),-3) -> 0
D22: ='Costing Module'!D91:J91 -> Total Reservoir Project Cost | H22: =IFERROR(ROUND('Costing Module'!K91,-3),0) -> 0
E24: Construction Reservoir Project Cost Subtotal | H24: =ROUND(SUM(H22),-3) -> 0
C25: Project Development Costs
D27: Land Acquisition | H27: =ROUND(IF('Global Inputs'!$H$42='Module References'!$H$4,'Global Inputs'!$G$41*'Global Inputs'!$G$42,'Global Inputs'!$G$42),-3) -> 0
D28: ='Costing Module'!D95:J95 -> Total Water Rights Project Cost | H28: =IFERROR(ROUND('Costing Module'!K95,-3),0) -> 0
C30: Non-Reservoir Project Development Costs
D32: ='Global Inputs'!$C$36 -> Engineering Services | H32: =ROUND('Global Inputs'!G36*$H$20,-3) -> 0
D33: ='Global Inputs'!$C$37 -> Surveying | H33: =ROUND('Global Inputs'!G37*$H$20,-3) -> 0
D34: ='Global Inputs'!$C$38 -> Legal Service | H34: =ROUND('Global Inputs'!G38*$H$20,-3) -> 0
D35: ='Global Inputs'!$C$39 -> Financing and Bond Assistance | H35: =ROUND('Global Inputs'!G39*$H$20,-3) -> 0
D36: ='Global Inputs'!$C$40 -> Environmental and Cultural Studies | H36: =ROUND('Global Inputs'!G40*$H$20,-3) -> 0
D37: ='Global Inputs'!$C$43 -> Permitting | H37: =ROUND('Global Inputs'!G43*$H$20,-3) -> 0
D38: ='Global Inputs'!$C$44 -> Interest During Construction | H38: =ROUND('Global Inputs'!G44*$H$20,-3) -> 0
D39: ='Global Inputs'!C60 -> Power Connection Costs - Pump Stations | H39: =ROUND('Global Inputs'!$G$60*SUM(SUM('Costing Module'!$E$24:$E$26),SUM('Costing Module'!$E$65:$E$74)),-3) -> 0
E41: Project Development Costs Subtotal (Non-Reservoir) | H41: =ROUND(SUM(H32:H39),-3) -> 0
E43: Total Project Cost (Non-Reservoir) | H43: =ROUND(H41+H20,-3) -> 0
C45: Reservoir Project Development Costs
D47: ='Global Inputs'!$C$36 -> Engineering Services | H47: =ROUND('Global Inputs'!G36*'Cost Summary Sheet'!$H$24,-3) -> 0
D48: ='Global Inputs'!$C$37 -> Surveying | H48: =ROUND('Global Inputs'!G37*'Cost Summary Sheet'!$H$24,-3) -> 0
D49: ='Global Inputs'!$C$38 -> Legal Service | H49: =ROUND('Global Inputs'!G38*'Cost Summary Sheet'!$H$24,-3) -> 0
D50: ='Global Inputs'!$C$39 -> Financing and Bond Assistance | H50: =ROUND('Global Inputs'!G39*'Cost Summary Sheet'!$H$24,-3) -> 0
D51: ='Global Inputs'!$C$40 -> Environmental and Cultural Studies | H51: =ROUND('Global Inputs'!G40*'Cost Summary Sheet'!$H$24,-3) -> 0
D52: ='Global Inputs'!$C$43 -> Permitting | H52: =ROUND('Global Inputs'!G43*'Cost Summary Sheet'!$H$24,-3) -> 0
D53: ='Global Inputs'!$C$44 -> Interest During Construction | H53: =ROUND('Global Inputs'!G44*'Cost Summary Sheet'!$H$24,-3) -> 0
E55: Reservoir Project Development Costs Subtotal | H55: =ROUND(SUM(H47:H53),-3) -> 0
E57: Total Reservoir Project Cost | H57: =ROUND(H55+H24,-3) -> 0
E59: Total Project Cost | H59: =ROUND(SUM(H43,H57),-3) -> 0
E60: Normalized Project Cost (per ac-ft per year) | H60: =IFERROR(H59/'Global Inputs'!$F$33,"-") -> -
C62: Annual Costs
D64: ='Global Inputs'!C48 -> Debt Service (Non-Reservoirs) Period | H64: =ROUND((('Global Inputs'!G47*(1+'Global Inputs'!G47)^'Global Inputs'!G48)/((1+'Global Inputs'!G47)^'Global Inputs'!G48-1))*H43,-3) -> 0
D65: ='Global Inputs'!C49 -> Debt Service (Reservoirs) Period | H65: =ROUND((('Global Inputs'!G47*(1+'Global Inputs'!G47)^'Global Inputs'!G49)/((1+'Global Inputs'!G47)^'Global Inputs'!G49-1))*H57,-3) -> 0
D66: Operations & Maintenance (Pipelines Project) | H66: =ROUND('Global Inputs'!G50*SUM('Costing Module'!K18:K20)+'Global Inputs'!G51*SUM('Costing Module'!K24:K26,'Costing Module'!K29:K31),-3) -> 0
D67: Operations & Maintenance (Well Fields Project) | H67: =ROUND('Global Inputs'!G50*SUM('Costing Module'!K41:K50,'Costing Module'!K53:K62)+'Global Inputs'!G51*SUM('Costing Module'!K65:K74),-3) -> 0
D68: ='Global Inputs'!C52 -> Operations & Maintenance (Reservoirs) | H68: =ROUND('Global Inputs'!G52*'Cost Summary Sheet'!H24,-3) -> 0
D69: Operations & Maintenance (Ditches & Diversions) | H69: =ROUND('Global Inputs'!G53*'Costing Module'!K103,-3) -> 0
D70: Operations & Maintenance (Streams & Habitat) | H70: =ROUND('Global Inputs'!G53*'Costing Module'!K111,-3) -> 0
D71: Operations & Mainteance (Treatment) | H71: =IF('Costing Module'!K82="-",0,ROUND('Costing Module'!K82,-3)) -> 0
D72: Operations & Maintenance (User-Specified) | H72: =IF('Costing Module'!K115="-",0,ROUND('Costing Module'!K115,-3)) -> 0
D73: ='Global Inputs'!C57 -> Power Costs | H73: =ROUND('Global Inputs'!$G$57*SUM('Costing Module'!I24:I26,'Costing Module'!I29:I31,'Costing Module'!I53:I62,'Costing Module'!I65:I74),-3) -> 0
E76: Total Annual Costs | H76: =ROUND(SUM(H64:H73),-3) -> 0

Sheet Module References
A2: Global Inputs Tab
B3: Basins | D3: Supply Needs | F3: Modules | H3: Land Acquisition Costs | J3: CONVERSIONS | O3: INFLATION ADJUSTMENT
B4: Arkansas Basin | D4: Municipal & Industrial | F4: Pipelines | H4: $ per acre | J4: FROM | K4: TO | L4: Conversion Factor | M4: DEFINED NAME
B5: Colorado Basin | D5: Self Supplied Industrial | F5: Well Fields | H5: Total Cost ($) | J5: Feet | K5: Inches | L5: 12 | M5: FT_IN
B6: Gunnison Basin | D6: Agricultural | F6: Reservoirs | J6: Yards | K6: Feet | L6: 3 | M6: YD_FT
B7: Metro and South Platte Basin | D7: Environmental & Recreation | F7: Treatment | J7: Acres | K7: Sq Ft | L7: 43560 | M7: AC_SQFT
B8: North Platte Basin | F8: Water Rights | J8: Sq Mi | K8: Acres | L8: 640 | M8: SQMI_AC
B9: Rio Grande Basin | F9: Ditches & Diversions | J9: Sq Mi | K9: Sq Ft | L9: =5280^2 -> 27878400 | M9: SQMI_SQFT
B10: San Juan/Dolores (Southwest) Basin | F10: Streams & Habitats | J10: MG | K10: gal | L10: =10^6 -> 1000000 | M10: MG_GAL
B11: Yampa-White Basin | F11: Other Costs | J11: CF | K11: gal | L11: 7.48052 | M11: CF_GAL
J12: MG | K12: AC-FT | L12: =10^6/7.48052/43560 -> 3.068883064 | M12: MG_ACFT | P12: Compounding Interest: | Q12: A=P(1+r/n)^nt
J13: AC-FT | K13: CF | L13: =43560 -> 43560 | M13: ACFT_CF | P13: Escalation Rate (r): | Q13: 0.035
A14: Assumptions | J14: Year | K14: Seconds | L14: =365.25*24*3600 -> 31557600 | M14: YR_SEC | P14: Compounding/yr (n): | Q14: 1
J15: Year | K15: Minutes | L15: 525960 | M15: YR_MIN
J16: Year | K16: Hours | L16: 8766 | M16: YR_HR
A17: 1) | B17: All unit costs in 2017 dollars and geographically adjusted to best represent Colorado prices | J17: Year | K17: Days | L17: 365.25 | M17: YR_DAY | O17: Baseline CCI Time Period | P17: ='Global Inputs'!$F$30 -> 2017
J18: Year | K18: Month | L18: 12 | M18: YR_MO | O18: Project CCI Time Period | P18: ='Global Inputs'!$F$31 -> 2017
J19: Days | K19: Seconds | L19: =86400 -> 86400 | M19: DAY_SEC | O19: Time in years (t) | P19: =$P$18-$P$17 -> 0
J20: Days | K20: Minutes | L20: =DAY_SEC/60 -> 1440 | M20: DAY_MIN
J21: Days | K21: Hours | L21: 24 | M21: DAY_HR
J22: Hours | K22: Minutes | L22: 60 | M22: HR_MIN
J23: Hours | K23: Seconds | L23: 3600 | M23: HR_SEC
J24: Minutes | K24: Seconds | L24: 60 | M24: MIN_SEC
J25: MGD | K25: CFY | L25: =L10/L11*L17 -> 48826819.53 | M25: MGD_CFY
J26: MGD | K26: CFS | L26: =10^6/7.48052/86400 -> 1.547228545 | M26: MGD_CFS
J27: CFS | K27: GPM | L27: =60*7.48052 -> 448.8312 | M27: CFS_GPM
J28: FT of Water | K28: PSI | L28: 0.433 | M28: FTH20_PSI
J29: HP | K29: KW | L29: 0.7457 | M29: HP_kW
J30: gpm/ft | K30: HP | L30: 3960 | M30: gpmft_HP
J31: Hazen-Williams k Conversion | K31: US customary units | L31: 1.318 | M31: HazWil_k
A40: Pipelines Module
A41: SHEET PASSWORD: SWSI2017
A42: Environment | B42: Water Delivered | C42: Pressure Classes | D42: Nominal Pipe Diameter | E42: Pump Type | G42: Pipelines | H42: =$P$17 -> 2017 | J42: =$P$18 -> 2017 | M42: Pump Stations | N42: =$P$17 -> 2017 | P42: =$P$18 -> 2017 | S42: Booster Storage | T42: 2017 | U42: =$P$18 -> 2017
G43: Pipe Size | H43: Undeveloped Costs | I43: Developed Costs | J43: Undeveloped Costs | K43: Developed Costs | M43: Pump Station | N43: Intake Pump Station Cost | O43: Booster Pump Station Cost | P43: Intake Pump Station Cost | Q43: Booster Pump Station Cost | S43: Tank Volume | T43: Associated Boost Pump Storage (MG) | U43: Associated Boost Pump Storage (MG)
A44: Urban | B44: Raw | C44: 100 | D44: 4 | E44: Booster | G44: IN | H44: Urban | I44: Rural | J44: Urban | K44: Rural | M44: (HP) | N44: ($-millions) | O44: ($-millions) | P44: ($-millions) | Q44: ($-millions) | S44: (MG) | T44: ($) | U44: ($)
A45: Rural | B45: Treated | C45: 150 | D45: 6 | E45: Intake | G45: 4 | H45: 102.1295471 | I45: 152.6205591 | J45: =H45*(1+($Q$13/$Q$14))^($Q$14*$P$19) -> 102.1295471 | K45: =I45*(1+($Q$13/$Q$14))^($Q$14*$P$19) -> 152.6205591 | M45: 0 | N45: 0 | O45: 0 | P45: =N45*(1+($Q$13/$Q$14))^($Q$14*$P$19) -> 0 | Q45: =O45*(1+($Q$13/$Q$14))^($Q$14*$P$19) -> 0 | S45: 0 | T45: 0 | U45: =T45*(1+($Q$13/$Q$14))^($Q$14*$P$19) -> 0
C46: 200 | D46: 8 | G46: 6 | H46: 107.8671621 | I46: 158.3581741 | J46: 107.8671621 | K46: 158.3581741 | M46: 5 | N46: 0.7687463106 | O46: 0.7115638554 | P46: =N46*(1+($Q$13/$Q$14))^($Q$14*$P$19) -> 0.7687463106 | Q46: =O46*(1+($Q$13/$Q$14))^($Q$14*$P$19) -> 0.7115638554 | S46: 0.05 | T46: 204604.7873 | U46: =T46*(1+($Q$13/$Q$14))^($Q$14*$P$19) -> 204604.7873
C47: 250 | D47: 10 | G47: 8 | H47: 113.6047771 | I47: 164.0957891 | J47: 113.6047771 | K47: 164.0957891 | M47: 10 | N47: 0.8278806421 | O47: 0.782720241 | P47: 0.8278806421 | Q47: 0.782720241 | S47: 0.1 | T47: 221162.4001 | U47: =T47*(1+($Q$13/$Q$14))^($Q$14*$P$19) -> 221162.4001
C48: 300 | D48: 12 | G48: 10 | H48: 119.3423921 | I48: 169.8334041 | J48: 119.3423921 | K48: 169.8334041 | M48: 20 | N48: 0.8870149737 | O48: 0.821856253 | P48: 0.8870149737 | Q48: 0.821856253 | S48: 0.5 | T48: 473074.6527 | U48: 473074.6527
C49: 350 | D49: 14 | G49: 12 | H49: 125.0800071 | I49: 175.5710191 | J49: 125.0800071 | K49: 175.5710191 | M49: 25 | N49: 0.9461493053 | O49: 0.8629490657 | P49: 0.9461493053 | Q49: 0.8629490657 | S49: 1 | T49: 801861.5362 | U49: 801861.5362
D50: 16 | G50: 14 | H50: 137.7027601 | I50: 194.5051486 | J50: 137.7027601 | K50: 194.5051486 | M50: 50 | N50: 1.182686632 | O50: 0.906096519 | P50: 1.182686632 | Q50: 0.906096519 | S50: 1.5 | T50: 1110542.747 | U50: 1110542.747
D51: 18 | G51: 16 | H51: 150.3255131 | I51: 213.4392781 | J51: 150.3255131 | K51: 213.4392781 | M51: 100 | N51: 1.774029947 | O51: 0.9514013449 | P51: 1.774029947 | Q51: 0.9514013449 | S51: 2 | T51: 1419223.958 | U51: 1419223.958
D52: 20 | G52: 18 | H52: 162.9482661 | I52: 244.4223991 | J52: 162.9482661 | K52: 244.4223991 | M52: 200 | N52: 2.365373263 | O52: 1.911671018 | P52: 2.365373263 | Q52: 1.911671018 | S52: 2.5 | T52: 1537492.621 | U52: 1537492.621
D53: 24 | G53: 20 | H53: 175.5710191 | I53: 275.4055201 | J53: 175.5710191 | K53: 275.4055201 | M53: 300 | N53: 2.956716579 | O53: 2.102838119 | P53: 2.956716579 | Q53: 2.102838119 | S53: 3 | T53: 1655761.284 | U53: 1655761.284
D54: 30 | G54: 24 | H54: 200.8165251 | I54: 300.6510262 | J54: 200.8165251 | K54: 300.6510262 | M54: 400 | N54: 3.548059895 | O54: 2.665860821 | P54: 3.548059895 | Q54: 2.665860821 | S54: 3.5 | T54: 1892298.611 | U54: 1892298.611
D55: 36 | G55: 30 | H55: 226.0620311 | I55: 351.1420382 | J55: 226.0620311 | K55: 351.1420382 | M55: 500 | N55: 4.139403211 | O55: 2.740982711 | P55: 4.139403211 | Q55: 2.740982711 | S55: 4 | T55: 2128835.937 | U55: 2128835.937
D56: 42 | G56: 36 | H56: 251.3075371 | I56: 401.6330502 | J56: 251.3075371 | K56: 401.6330502 | M56: 600 | N56: 4.730746527 | O56: 2.8161046 | P56: 4.730746527 | Q56: 2.8161046 | S56: 5 | T56: 2365373.263 | U56: 2365373.263
D57: 48 | G57: 42 | H57: 288.0282732 | I57: 463.5992923 | J57: 288.0282732 | K57: 463.5992923 | M57: 700 | N57: 5.322089842 | O57: 2.89122649 | P57: 5.322089842 | Q57: 2.89122649 | S57: 6 | T57: 2720179.253 | U57: 2720179.253
D58: 54 | G58: 48 | H58: 338.5192852 | I58: 539.3358103 | J58: 338.5192852 | K58: 539.3358103 | M58: 800 | N58: 5.913433158 | O58: 3.406374036 | P58: 5.913433158 | Q58: 3.406374036 | S58: 7 | T58: 3193253.905 | U58: 3193253.905
D59: 60 | G59: 54 | H59: 376.3875442 | I59: 626.5475583 | J59: 376.3875442 | K59: 626.5475583 | M59: 900 | N59: 6.504776474 | O59: 3.536499133 | P59: 6.504776474 | Q59: 3.536499133 | S59: 8 | T59: 3666328.558 | U59: 3666328.558
D60: 64 | G60: 60 | H60: 438.3537862 | I60: 727.5295824 | J60: 438.3537862 | K60: 727.5295824 | M60: 1000 | N60: 7.09611979 | O60: 3.66662423 | P60: 7.09611979 | Q60: 3.66662423 | S60: 10 | T60: 4587641.444 | U60: 4587641.444
D61: 66 | G61: 66 | H61: 501.4675513 | I61: 827.3640835 | J61: 501.4675513 | K61: 827.3640835 | M61: 2000 | N61: 9.934567706 | O61: 4.967875196 | P61: 9.934567706 | Q61: 4.967875196 | S61: 12 | T61: 5734551.805 | U61: 5734551.805
D62: 72 | G62: 72 | H62: 577.2040693 | I62: 952.4440905 | J62: 577.2040693 | K62: 952.4440905 | M62: 3000 | N62: 11.47206033 | O62: 6.269126163 | P62: 11.47206033 | Q62: 6.269126163 | S62: 14 | T62: 6909255.302 | U62: =T62*(1+($Q$13/$Q$14))^($Q$14*$P$19) -> 6909255.302
D63: 78 | G63: 78 | H63: 651.7930644 | I63: 1102.769604 | J63: 651.7930644 | K63: 1102.769604 | M63: 4000 | N63: 13.00955295 | O63: 7.570377129 | P63: 13.00955295 | Q63: 7.570377129
D64: 84 | G64: 84 | H64: 752.7750884 | I64: 1303.586129 | J64: 752.7750884 | K64: 1303.586129 | M64: 5000 | N64: 14.19223958 | O64: 8.871628096 | P64: 14.19223958 | Q64: 8.871628096
D65: 90 | G65: 90 | H65: 877.8550955 | I65: 1504.402654 | J65: 877.8550955 | K65: 1504.402654 | M65: 6000 | N65: 15.37492621 | O65: 10.17287906 | P65: 15.37492621 | Q65: 10.17287906
D66: 96 | G66: 96 | H66: 1002.935103 | I66: 1755.710191 | J66: 1002.935103 | K66: 1755.710191 | M66: 7000 | N66: 16.55761284 | O66: 11.47413003 | P66: 16.55761284 | Q66: 11.47413003
D67: 102 | G67: 102 | H67: 1128.01511 | I67: 2005.870205 | J67: 1128.01511 | K67: 2005.870205 | M67: 8000 | N67: 17.74029947 | O67: 12.77538099 | P67: 17.74029947 | Q67: 12.77538099
D68: 108 | G68: 108 | H68: 1328.831635 | I68: 2257.177742 | J68: 1328.831635 | K68: 2257.177742 | M68: 9000 | N68: 18.92298611 | O68: 14.07663196 | P68: 18.92298611 | Q68: 14.07663196
G69: Italics indicates interpolated value | M69: 30000 | N69: 43.75940537 | O69: 34.06847111 | P69: 43.75940537 | Q69: 34.06847111
M70: 40000 | N70: 55.58627169 | O70: 42.58558889 | P70: 55.58627169 | Q70: 42.58558889
M71: 50000 | N71: 66.23045137 | O71: 53.23198611 | P71: 66.23045137 | Q71: 53.23198611
M72: 60000 | N72: 76.87463106 | O72: 63.87838333 | P72: 76.87463106 | Q72: 63.87838333
M73: 70000 | N73: 88.70149737 | O73: 76.65406 | P73: 88.70149737 | Q73: 76.65406
M74: *Costs were pulled from Texas UCM tool then excalated from 2013 to 2017 dollars with a 3.5% interest rate. This method was chosen because it resulted in the most conservative cost estimates.
A79: Well Field
B81: PSW | C81: Public Supply Wells
B82: ASR | C82: ASR Wells
B83: IRG | C83: Irrigation Wells
D84: =$P$17 -> 2017 | J84: =$P$18 -> 2017 | P84: ADD TITLES
D85: Well Capacity | J85: Well Capacity
B86: Well Type | C86: Well Depth | D86: 100 | E86: 175 | F86: 350 | G86: 700 | H86: 1000 | I86: 1800 | J86: 100 | K86: 175 | L86: 350 | M86: 700 | N86: 1000 | O86: 1800 | P86: ='Costing Module'!F53 -> - | Q86: ='Costing Module'!F54 -> - | R86: ='Costing Module'!F55 -> - | S86: ='Costing Module'!F56 -> - | T86: ='Costing Module'!F57 -> - | U86: ='Costing Module'!F58 -> - | V86: ='Costing Module'!F59 -> - | W86: ='Costing Module'!F60 -> - | X86: ='Costing Module'!F61 -> - | Y86: ='Costing Module'!F62 -> -
B87: PSW | C87: 150 | D87: 142451.0567 | E87: 216250.7025 | F87: 368998.2291 | G87: 417054.335 | H87: 520030.86 | I87: 760309.0241 | J87: =D87*(1+($Q$13/$Q$14))^($Q$14*$P$19) -> 142451.0567 | K87: =E87*(1+($Q$13/$Q$14))^($Q$14*$P$19) -> 216250.7025 | L87: =F87*(1+($Q$13/$Q$14))^($Q$14*$P$19) -> 368998.2291 | M87: =G87*(1+($Q$13/$Q$14))^($Q$14*$P$19) -> 417054.335 | N87: =H87*(1+($Q$13/$Q$14))^($Q$14*$P$19) -> 520030.86 | O87: =I87*(1+($Q$13/$Q$14))^($Q$14*$P$19) -> 760309.0241 | P87: =IF(P$86>0,interp(P$86,$J$86:$O$86,$J87:$O87),0) ->  | Q87: =IF(Q$86>0,interp(Q$86,$J$86:$O$86,$J87:$O87),0) ->  | R87: =IF(R$86>0,interp(R$86,$J$86:$O$86,$J87:$O87),0) ->  | S87: =IF(S$86>0,interp(S$86,$J$86:$O$86,$J87:$O87),0) ->  | T87: =IF(T$86>0,interp(T$86,$J$86:$O$86,$J87:$O87),0) ->  | U87: =IF(U$86>0,interp(U$86,$J$86:$O$86,$J87:$O87),0) ->  | V87: =IF(V$86>0,interp(V$86,$J$86:$O$86,$J87:$O87),0) ->  | W87: =IF(W$86>0,interp(W$86,$J$86:$O$86,$J87:$O87),0) ->  | X87: =IF(X$86>0,interp(X$86,$J$86:$O$86,$J87:$O87),0) ->  | Y87: =IF(Y$86>0,interp(Y$86,$J$86:$O$86,$J87:$O87),0) -> 
B88: PSW | C88: 300 | D88: 192222.0582 | E88: 274603.2783 | F88: 439365.7183 | G88: 502867.7116 | H88: 621291.3067 | I88: 880447.5149 | J88: 192222.0582 | K88: 274603.2783 | L88: 439365.7183 | M88: 502867.7116 | N88: 621291.3067 | O88: 880447.5149 | P88: =IF(P$86>0,interp(P$86,$J$86:$O$86,$J88:$O88),0) ->  | Q88: =IF(Q$86>0,interp(Q$86,$J$86:$O$86,$J88:$O88),0) ->  | R88: =IF(R$86>0,interp(R$86,$J$86:$O$86,$J88:$O88),0) ->  | S88: =IF(S$86>0,interp(S$86,$J$86:$O$86,$J88:$O88),0) ->  | T88: =IF(T$86>0,interp(T$86,$J$86:$O$86,$J88:$O88),0) ->  | U88: =IF(U$86>0,interp(U$86,$J$86:$O$86,$J88:$O88),0) ->  | V88: =IF(V$86>0,interp(V$86,$J$86:$O$86,$J88:$O88),0) ->  | W88: =IF(W$86>0,interp(W$86,$J$86:$O$86,$J88:$O88),0) ->  | X88: =IF(X$86>0,interp(X$86,$J$86:$O$86,$J88:$O88),0) ->  | Y88: =IF(Y$86>0,interp(Y$86,$J$86:$O$86,$J88:$O88),0) -> 
B89: PSW | C89: 500 | D89: 248859.7383 | E89: 343254.6892 | F89: 521746.9383 | G89: 600696.0017 | H89: 739713.7191 | I89: 1024614.65 | J89: 248859.7383 | K89: 343254.6892 | L89: 521746.9383 | M89: 600696.0017 | N89: 739713.7191 | O89: 1024614.65 | P89: =IF(P$86>0,interp(P$86,$J$86:$O$86,$J89:$O89),0) ->  | Q89: =IF(Q$86>0,interp(Q$86,$J$86:$O$86,$J89:$O89),0) ->  | R89: =IF(R$86>0,interp(R$86,$J$86:$O$86,$J89:$O89),0) ->  | S89: =IF(S$86>0,interp(S$86,$J$86:$O$86,$J89:$O89),0) ->  | T89: =IF(T$86>0,interp(T$86,$J$86:$O$86,$J89:$O89),0) ->  | U89: =IF(U$86>0,interp(U$86,$J$86:$O$86,$J89:$O89),0) ->  | V89: =IF(V$86>0,interp(V$86,$J$86:$O$86,$J89:$O89),0) ->  | W89: =IF(W$86>0,interp(W$86,$J$86:$O$86,$J89:$O89),0) ->  | X89: =IF(X$86>0,interp(X$86,$J$86:$O$86,$J89:$O89),0) ->  | Y89: =IF(Y$86>0,interp(Y$86,$J$86:$O$86,$J89:$O89),0) -> 
B90: PSW | C90: 700 | D90: 300348.0008 | E90: 405040.6042 | F90: 595546.5841 | G90: 689941.5349 | H90: 846122.4007 | I90: 1151618.637 | J90: 300348.0008 | K90: 405040.6042 | L90: 595546.5841 | M90: 689941.5349 | N90: 846122.4007 | O90: 1151618.637 | P90: =IF(P$86>0,interp(P$86,$J$86:$O$86,$J90:$O90),0) ->  | Q90: =IF(Q$86>0,interp(Q$86,$J$86:$O$86,$J90:$O90),0) ->  | R90: =IF(R$86>0,interp(R$86,$J$86:$O$86,$J90:$O90),0) ->  | S90: =IF(S$86>0,interp(S$86,$J$86:$O$86,$J90:$O90),0) ->  | T90: =IF(T$86>0,interp(T$86,$J$86:$O$86,$J90:$O90),0) ->  | U90: =IF(U$86>0,interp(U$86,$J$86:$O$86,$J90:$O90),0) ->  | V90: =IF(V$86>0,interp(V$86,$J$86:$O$86,$J90:$O90),0) ->  | W90: =IF(W$86>0,interp(W$86,$J$86:$O$86,$J90:$O90),0) ->  | X90: =IF(X$86>0,interp(X$86,$J$86:$O$86,$J90:$O90),0) ->  | Y90: =IF(Y$86>0,interp(Y$86,$J$86:$O$86,$J90:$O90),0) -> 
B91: PSW | C91: 1000 | D91: 394742.9517 | E91: 518314.7817 | F91: 732848.2232 | G91: 852987.8966 | H91: 1043493.877 | I91: 1388464.644 | J91: 394742.9517 | K91: 518314.7817 | L91: 732848.2232 | M91: 852987.8966 | N91: 1043493.877 | O91: 1388464.644 | P91: =IF(P$86>0,interp(P$86,$J$86:$O$86,$J91:$O91),0) ->  | Q91: =IF(Q$86>0,interp(Q$86,$J$86:$O$86,$J91:$O91),0) ->  | R91: =IF(R$86>0,interp(R$86,$J$86:$O$86,$J91:$O91),0) ->  | S91: =IF(S$86>0,interp(S$86,$J$86:$O$86,$J91:$O91),0) ->  | T91: =IF(T$86>0,interp(T$86,$J$86:$O$86,$J91:$O91),0) ->  | U91: =IF(U$86>0,interp(U$86,$J$86:$O$86,$J91:$O91),0) ->  | V91: =IF(V$86>0,interp(V$86,$J$86:$O$86,$J91:$O91),0) ->  | W91: =IF(W$86>0,interp(W$86,$J$86:$O$86,$J91:$O91),0) ->  | X91: =IF(X$86>0,interp(X$86,$J$86:$O$86,$J91:$O91),0) ->  | Y91: =IF(Y$86>0,interp(Y$86,$J$86:$O$86,$J91:$O91),0) -> 
B92: PSW | C92: 1500 | D92: 552639.8958 | E92: 708820.7616 | F92: 959396.5783 | G92: 1125875.097 | H92: 1369585.417 | I92: 1779775.439 | J92: 552639.8958 | K92: 708820.7616 | L92: 959396.5783 | M92: 1125875.097 | N92: 1369585.417 | O92: 1779775.439 | P92: =IF(P$86>0,interp(P$86,$J$86:$O$86,$J92:$O92),0) ->  | Q92: =IF(Q$86>0,interp(Q$86,$J$86:$O$86,$J92:$O92),0) ->  | R92: =IF(R$86>0,interp(R$86,$J$86:$O$86,$J92:$O92),0) ->  | S92: =IF(S$86>0,interp(S$86,$J$86:$O$86,$J92:$O92),0) ->  | T92: =IF(T$86>0,interp(T$86,$J$86:$O$86,$J92:$O92),0) ->  | U92: =IF(U$86>0,interp(U$86,$J$86:$O$86,$J92:$O92),0) ->  | V92: =IF(V$86>0,interp(V$86,$J$86:$O$86,$J92:$O92),0) ->  | W92: =IF(W$86>0,interp(W$86,$J$86:$O$86,$J92:$O92),0) ->  | X92: =IF(X$86>0,interp(X$86,$J$86:$O$86,$J92:$O92),0) ->  | Y92: =IF(Y$86>0,interp(Y$86,$J$86:$O$86,$J92:$O92),0) -> 
B93: PSW | C93: 2000 | D93: 710536.8399 | E93: 897610.6633 | F93: 1185944.933 | G93: 1398762.297 | H93: 1697394.219 | I93: 2172801.13 | J93: 710536.8399 | K93: 897610.6633 | L93: 1185944.933 | M93: 1398762.297 | N93: 1697394.219 | O93: 2172801.13 | P93: =IF(P$86>0,interp(P$86,$J$86:$O$86,$J93:$O93),0) ->  | Q93: =IF(Q$86>0,interp(Q$86,$J$86:$O$86,$J93:$O93),0) ->  | R93: =IF(R$86>0,interp(R$86,$J$86:$O$86,$J93:$O93),0) ->  | S93: =IF(S$86>0,interp(S$86,$J$86:$O$86,$J93:$O93),0) ->  | T93: =IF(T$86>0,interp(T$86,$J$86:$O$86,$J93:$O93),0) ->  | U93: =IF(U$86>0,interp(U$86,$J$86:$O$86,$J93:$O93),0) ->  | V93: =IF(V$86>0,interp(V$86,$J$86:$O$86,$J93:$O93),0) ->  | W93: =IF(W$86>0,interp(W$86,$J$86:$O$86,$J93:$O93),0) ->  | X93: =IF(X$86>0,interp(X$86,$J$86:$O$86,$J93:$O93),0) ->  | Y93: =IF(Y$86>0,interp(Y$86,$J$86:$O$86,$J93:$O93),0) -> 
B94: ASR | C94: 150 | D94: 157896.9441 | E94: 243710.3207 | F94: 423919.8309 | G94: 478840.25 | H94: 597262.6624 | I94: 880447.5149 | J94: 157896.9441 | K94: 243710.3207 | L94: 423919.8309 | M94: 478840.25 | N94: 597262.6624 | O94: 880447.5149 | P94: =IF(P$86>0,interp(P$86,$J$86:$O$86,$J94:$O94),0) ->  | Q94: =IF(Q$86>0,interp(Q$86,$J$86:$O$86,$J94:$O94),0) ->  | R94: =IF(R$86>0,interp(R$86,$J$86:$O$86,$J94:$O94),0) ->  | S94: =IF(S$86>0,interp(S$86,$J$86:$O$86,$J94:$O94),0) ->  | T94: =IF(T$86>0,interp(T$86,$J$86:$O$86,$J94:$O94),0) ->  | U94: =IF(U$86>0,interp(U$86,$J$86:$O$86,$J94:$O94),0) ->  | V94: =IF(V$86>0,interp(V$86,$J$86:$O$86,$J94:$O94),0) ->  | W94: =IF(W$86>0,interp(W$86,$J$86:$O$86,$J94:$O94),0) ->  | X94: =IF(X$86>0,interp(X$86,$J$86:$O$86,$J94:$O94),0) ->  | Y94: =IF(Y$86>0,interp(Y$86,$J$86:$O$86,$J94:$O94),0) -> 
B95: ASR | C95: 300 | D95: 207669.1283 | E95: 302064.0792 | F95: 494286.1374 | G95: 564653.6266 | H95: 698523.1091 | I95: 1002303.267 | J95: 207669.1283 | K95: 302064.0792 | L95: 494286.1374 | M95: 564653.6266 | N95: 698523.1091 | O95: 1002303.267 | P95: =IF(P$86>0,interp(P$86,$J$86:$O$86,$J95:$O95),0) ->  | Q95: =IF(Q$86>0,interp(Q$86,$J$86:$O$86,$J95:$O95),0) ->  | R95: =IF(R$86>0,interp(R$86,$J$86:$O$86,$J95:$O95),0) ->  | S95: =IF(S$86>0,interp(S$86,$J$86:$O$86,$J95:$O95),0) ->  | T95: =IF(T$86>0,interp(T$86,$J$86:$O$86,$J95:$O95),0) ->  | U95: =IF(U$86>0,interp(U$86,$J$86:$O$86,$J95:$O95),0) ->  | V95: =IF(V$86>0,interp(V$86,$J$86:$O$86,$J95:$O95),0) ->  | W95: =IF(W$86>0,interp(W$86,$J$86:$O$86,$J95:$O95),0) ->  | X95: =IF(X$86>0,interp(X$86,$J$86:$O$86,$J95:$O95),0) ->  | Y95: =IF(Y$86>0,interp(Y$86,$J$86:$O$86,$J95:$O95),0) -> 
B96: ASR | C96: 500 | D96: 264305.6258 | E96: 372431.5684 | F96: 576667.3574 | G96: 662481.9167 | H96: 818662.7825 | I96: 1144754.323 | J96: 264305.6258 | K96: 372431.5684 | L96: 576667.3574 | M96: 662481.9167 | N96: 818662.7825 | O96: 1144754.323 | P96: =IF(P$86>0,interp(P$86,$J$86:$O$86,$J96:$O96),0) ->  | Q96: =IF(Q$86>0,interp(Q$86,$J$86:$O$86,$J96:$O96),0) ->  | R96: =IF(R$86>0,interp(R$86,$J$86:$O$86,$J96:$O96),0) ->  | S96: =IF(S$86>0,interp(S$86,$J$86:$O$86,$J96:$O96),0) ->  | T96: =IF(T$86>0,interp(T$86,$J$86:$O$86,$J96:$O96),0) ->  | U96: =IF(U$86>0,interp(U$86,$J$86:$O$86,$J96:$O96),0) ->  | V96: =IF(V$86>0,interp(V$86,$J$86:$O$86,$J96:$O96),0) ->  | W96: =IF(W$86>0,interp(W$86,$J$86:$O$86,$J96:$O96),0) ->  | X96: =IF(X$86>0,interp(X$86,$J$86:$O$86,$J96:$O96),0) ->  | Y96: =IF(Y$86>0,interp(Y$86,$J$86:$O$86,$J96:$O96),0) -> 
B97: ASR | C97: 700 | D97: 317509.9666 | E97: 434217.4834 | F97: 652184.2642 | G97: 751727.4499 | H97: 923355.3859 | I97: 1273474.388 | J97: 317509.9666 | K97: 434217.4834 | L97: 652184.2642 | M97: 751727.4499 | N97: 923355.3859 | O97: 1273474.388 | P97: =IF(P$86>0,interp(P$86,$J$86:$O$86,$J97:$O97),0) ->  | Q97: =IF(Q$86>0,interp(Q$86,$J$86:$O$86,$J97:$O97),0) ->  | R97: =IF(R$86>0,interp(R$86,$J$86:$O$86,$J97:$O97),0) ->  | S97: =IF(S$86>0,interp(S$86,$J$86:$O$86,$J97:$O97),0) ->  | T97: =IF(T$86>0,interp(T$86,$J$86:$O$86,$J97:$O97),0) ->  | U97: =IF(U$86>0,interp(U$86,$J$86:$O$86,$J97:$O97),0) ->  | V97: =IF(V$86>0,interp(V$86,$J$86:$O$86,$J97:$O97),0) ->  | W97: =IF(W$86>0,interp(W$86,$J$86:$O$86,$J97:$O97),0) ->  | X97: =IF(X$86>0,interp(X$86,$J$86:$O$86,$J97:$O97),0) ->  | Y97: =IF(Y$86>0,interp(Y$86,$J$86:$O$86,$J97:$O97),0) -> 
B98: ASR | C98: 1000 | D98: 410188.8391 | E98: 547491.6609 | F98: 787769.825 | G98: 914773.8117 | H98: 1120726.862 | I98: 1508604.317 | J98: 410188.8391 | K98: 547491.6609 | L98: 787769.825 | M98: 914773.8117 | N98: 1120726.862 | O98: 1508604.317 | P98: =IF(P$86>0,interp(P$86,$J$86:$O$86,$J98:$O98),0) ->  | Q98: =IF(Q$86>0,interp(Q$86,$J$86:$O$86,$J98:$O98),0) ->  | R98: =IF(R$86>0,interp(R$86,$J$86:$O$86,$J98:$O98),0) ->  | S98: =IF(S$86>0,interp(S$86,$J$86:$O$86,$J98:$O98),0) ->  | T98: =IF(T$86>0,interp(T$86,$J$86:$O$86,$J98:$O98),0) ->  | U98: =IF(U$86>0,interp(U$86,$J$86:$O$86,$J98:$O98),0) ->  | V98: =IF(V$86>0,interp(V$86,$J$86:$O$86,$J98:$O98),0) ->  | W98: =IF(W$86>0,interp(W$86,$J$86:$O$86,$J98:$O98),0) ->  | X98: =IF(X$86>0,interp(X$86,$J$86:$O$86,$J98:$O98),0) ->  | Y98: =IF(Y$86>0,interp(Y$86,$J$86:$O$86,$J98:$O98),0) -> 
B99: ASR | C99: 1500 | D99: 569803.0442 | E99: 736281.5625 | F99: 1014316.997 | G99: 1187661.012 | H99: 1446818.402 | I99: 1899913.93 | J99: 569803.0442 | K99: 736281.5625 | L99: 1014316.997 | M99: 1187661.012 | N99: 1446818.402 | O99: 1899913.93 | P99: =IF(P$86>0,interp(P$86,$J$86:$O$86,$J99:$O99),0) ->  | Q99: =IF(Q$86>0,interp(Q$86,$J$86:$O$86,$J99:$O99),0) ->  | R99: =IF(R$86>0,interp(R$86,$J$86:$O$86,$J99:$O99),0) ->  | S99: =IF(S$86>0,interp(S$86,$J$86:$O$86,$J99:$O99),0) ->  | T99: =IF(T$86>0,interp(T$86,$J$86:$O$86,$J99:$O99),0) ->  | U99: =IF(U$86>0,interp(U$86,$J$86:$O$86,$J99:$O99),0) ->  | V99: =IF(V$86>0,interp(V$86,$J$86:$O$86,$J99:$O99),0) ->  | W99: =IF(W$86>0,interp(W$86,$J$86:$O$86,$J99:$O99),0) ->  | X99: =IF(X$86>0,interp(X$86,$J$86:$O$86,$J99:$O99),0) ->  | Y99: =IF(Y$86>0,interp(Y$86,$J$86:$O$86,$J99:$O99),0) -> 
B100: ASR | C100: 2000 | D100: 725983.91 | E100: 925071.4642 | F100: 1240865.352 | G100: 1460548.212 | H100: 1774626.022 | I100: 2292940.803 | J100: 725983.91 | K100: 925071.4642 | L100: 1240865.352 | M100: 1460548.212 | N100: 1774626.022 | O100: 2292940.803 | P100: =IF(P$86>0,interp(P$86,$J$86:$O$86,$J100:$O100),0) ->  | Q100: =IF(Q$86>0,interp(Q$86,$J$86:$O$86,$J100:$O100),0) ->  | R100: =IF(R$86>0,interp(R$86,$J$86:$O$86,$J100:$O100),0) ->  | S100: =IF(S$86>0,interp(S$86,$J$86:$O$86,$J100:$O100),0) ->  | T100: =IF(T$86>0,interp(T$86,$J$86:$O$86,$J100:$O100),0) ->  | U100: =IF(U$86>0,interp(U$86,$J$86:$O$86,$J100:$O100),0) ->  | V100: =IF(V$86>0,interp(V$86,$J$86:$O$86,$J100:$O100),0) ->  | W100: =IF(W$86>0,interp(W$86,$J$86:$O$86,$J100:$O100),0) ->  | X100: =IF(X$86>0,interp(X$86,$J$86:$O$86,$J100:$O100),0) ->  | Y100: =IF(Y$86>0,interp(Y$86,$J$86:$O$86,$J100:$O100),0) -> 
B101: IRG | C101: 150 | D101: 78949.06341 | E101: 121855.7517 | F101: 207669.1283 | G101: 238562.0858 | H101: 302064.0792 | I101: 435933.5617 | J101: 78949.06341 | K101: 121855.7517 | L101: 207669.1283 | M101: 238562.0858 | N101: 302064.0792 | O101: 435933.5617 | P101: =IF(P$86>0,interp(P$86,$J$86:$O$86,$J101:$O101),0) ->  | Q101: =IF(Q$86>0,interp(Q$86,$J$86:$O$86,$J101:$O101),0) ->  | R101: =IF(R$86>0,interp(R$86,$J$86:$O$86,$J101:$O101),0) ->  | S101: =IF(S$86>0,interp(S$86,$J$86:$O$86,$J101:$O101),0) ->  | T101: =IF(T$86>0,interp(T$86,$J$86:$O$86,$J101:$O101),0) ->  | U101: =IF(U$86>0,interp(U$86,$J$86:$O$86,$J101:$O101),0) ->  | V101: =IF(V$86>0,interp(V$86,$J$86:$O$86,$J101:$O101),0) ->  | W101: =IF(W$86>0,interp(W$86,$J$86:$O$86,$J101:$O101),0) ->  | X101: =IF(X$86>0,interp(X$86,$J$86:$O$86,$J101:$O101),0) ->  | Y101: =IF(Y$86>0,interp(Y$86,$J$86:$O$86,$J101:$O101),0) -> 
B102: IRG | C102: 300 | D102: 104692.6033 | E102: 156180.8658 | F102: 254007.9732 | G102: 300348.0008 | H102: 381013.1426 | I102: 532044.5908 | J102: 104692.6033 | K102: 156180.8658 | L102: 254007.9732 | M102: 300348.0008 | N102: 381013.1426 | O102: 532044.5908 | P102: =IF(P$86>0,interp(P$86,$J$86:$O$86,$J102:$O102),0) ->  | Q102: =IF(Q$86>0,interp(Q$86,$J$86:$O$86,$J102:$O102),0) ->  | R102: =IF(R$86>0,interp(R$86,$J$86:$O$86,$J102:$O102),0) ->  | S102: =IF(S$86>0,interp(S$86,$J$86:$O$86,$J102:$O102),0) ->  | T102: =IF(T$86>0,interp(T$86,$J$86:$O$86,$J102:$O102),0) ->  | U102: =IF(U$86>0,interp(U$86,$J$86:$O$86,$J102:$O102),0) ->  | V102: =IF(V$86>0,interp(V$86,$J$86:$O$86,$J102:$O102),0) ->  | W102: =IF(W$86>0,interp(W$86,$J$86:$O$86,$J102:$O102),0) ->  | X102: =IF(X$86>0,interp(X$86,$J$86:$O$86,$J102:$O102),0) ->  | Y102: =IF(Y$86>0,interp(Y$86,$J$86:$O$86,$J102:$O102),0) -> 
B103: IRG | C103: 500 | D103: 130437.3259 | E103: 195655.3975 | F103: 303780.1575 | G103: 367282.1508 | H103: 466826.5192 | I103: 643602.69 | J103: =D103*(1+($Q$13/$Q$14))^($Q$14*$P$19) -> 130437.3259 | K103: 195655.3975 | L103: =F103*(1+($Q$13/$Q$14))^($Q$14*$P$19) -> 303780.1575 | M103: 367282.1508 | N103: 466826.5192 | O103: 643602.69 | P103: =IF(P$86>0,interp(P$86,$J$86:$O$86,$J103:$O103),0) ->  | Q103: =IF(Q$86>0,interp(Q$86,$J$86:$O$86,$J103:$O103),0) ->  | R103: =IF(R$86>0,interp(R$86,$J$86:$O$86,$J103:$O103),0) ->  | S103: =IF(S$86>0,interp(S$86,$J$86:$O$86,$J103:$O103),0) ->  | T103: =IF(T$86>0,interp(T$86,$J$86:$O$86,$J103:$O103),0) ->  | U103: =IF(U$86>0,interp(U$86,$J$86:$O$86,$J103:$O103),0) ->  | V103: =IF(V$86>0,interp(V$86,$J$86:$O$86,$J103:$O103),0) ->  | W103: =IF(W$86>0,interp(W$86,$J$86:$O$86,$J103:$O103),0) ->  | X103: =IF(X$86>0,interp(X$86,$J$86:$O$86,$J103:$O103),0) ->  | Y103: =IF(Y$86>0,interp(Y$86,$J$86:$O$86,$J103:$O103),0) -> 
B104: IRG | C104: 700 | D104: 151031.4482 | E104: 224832.2767 | F104: 346686.8458 | G104: 423919.8309 | H104: 542342.2433 | I104: 739713.7191 | J104: 151031.4482 | K104: 224832.2767 | L104: 346686.8458 | M104: 423919.8309 | N104: 542342.2433 | O104: 739713.7191 | P104: =IF(P$86>0,interp(P$86,$J$86:$O$86,$J104:$O104),0) ->  | Q104: =IF(Q$86>0,interp(Q$86,$J$86:$O$86,$J104:$O104),0) ->  | R104: =IF(R$86>0,interp(R$86,$J$86:$O$86,$J104:$O104),0) ->  | S104: =IF(S$86>0,interp(S$86,$J$86:$O$86,$J104:$O104),0) ->  | T104: =IF(T$86>0,interp(T$86,$J$86:$O$86,$J104:$O104),0) ->  | U104: =IF(U$86>0,interp(U$86,$J$86:$O$86,$J104:$O104),0) ->  | V104: =IF(V$86>0,interp(V$86,$J$86:$O$86,$J104:$O104),0) ->  | W104: =IF(W$86>0,interp(W$86,$J$86:$O$86,$J104:$O104),0) ->  | X104: =IF(X$86>0,interp(X$86,$J$86:$O$86,$J104:$O104),0) ->  | Y104: =IF(Y$86>0,interp(Y$86,$J$86:$O$86,$J104:$O104),0) -> 
B105: IRG | C105: 1000 | D105: 197371.4758 | E105: 290050.3483 | F105: 435933.5617 | G105: 540626.165 | H105: 691657.6132 | I105: 928503.6208 | J105: 197371.4758 | K105: 290050.3483 | L105: 435933.5617 | M105: 540626.165 | N105: 691657.6132 | O105: 928503.6208 | P105: =IF(P$86>0,interp(P$86,$J$86:$O$86,$J105:$O105),0) ->  | Q105: =IF(Q$86>0,interp(Q$86,$J$86:$O$86,$J105:$O105),0) ->  | R105: =IF(R$86>0,interp(R$86,$J$86:$O$86,$J105:$O105),0) ->  | S105: =IF(S$86>0,interp(S$86,$J$86:$O$86,$J105:$O105),0) ->  | T105: =IF(T$86>0,interp(T$86,$J$86:$O$86,$J105:$O105),0) ->  | U105: =IF(U$86>0,interp(U$86,$J$86:$O$86,$J105:$O105),0) ->  | V105: =IF(V$86>0,interp(V$86,$J$86:$O$86,$J105:$O105),0) ->  | W105: =IF(W$86>0,interp(W$86,$J$86:$O$86,$J105:$O105),0) ->  | X105: =IF(X$86>0,interp(X$86,$J$86:$O$86,$J105:$O105),0) ->  | Y105: =IF(Y$86>0,interp(Y$86,$J$86:$O$86,$J105:$O105),0) -> 
B106: IRG | C106: 1500 | D106: 276320.5392 | E106: 401608.4476 | F106: 583532.8533 | G106: 734564.3015 | H106: 938801.2733 | I106: 1240865.352 | J106: 276320.5392 | K106: 401608.4476 | L106: 583532.8533 | M106: 734564.3015 | N106: 938801.2733 | O106: 1240865.352 | P106: =IF(P$86>0,interp(P$86,$J$86:$O$86,$J106:$O106),0) ->  | Q106: =IF(Q$86>0,interp(Q$86,$J$86:$O$86,$J106:$O106),0) ->  | R106: =IF(R$86>0,interp(R$86,$J$86:$O$86,$J106:$O106),0) ->  | S106: =IF(S$86>0,interp(S$86,$J$86:$O$86,$J106:$O106),0) ->  | T106: =IF(T$86>0,interp(T$86,$J$86:$O$86,$J106:$O106),0) ->  | U106: =IF(U$86>0,interp(U$86,$J$86:$O$86,$J106:$O106),0) ->  | V106: =IF(V$86>0,interp(V$86,$J$86:$O$86,$J106:$O106),0) ->  | W106: =IF(W$86>0,interp(W$86,$J$86:$O$86,$J106:$O106),0) ->  | X106: =IF(X$86>0,interp(X$86,$J$86:$O$86,$J106:$O106),0) ->  | Y106: =IF(Y$86>0,interp(Y$86,$J$86:$O$86,$J106:$O106),0) -> 
B107: IRG | C107: 2000 | D107: 353552.3417 | E107: 509733.2075 | F107: 731132.1449 | G107: 926787.5425 | H107: 1187661.012 | I107: 1554943.162 | J107: 353552.3417 | K107: 509733.2075 | L107: 731132.1449 | M107: 926787.5425 | N107: 1187661.012 | O107: 1554943.162 | P107: =IF(P$86>0,interp(P$86,$J$86:$O$86,$J107:$O107),0) ->  | Q107: =IF(Q$86>0,interp(Q$86,$J$86:$O$86,$J107:$O107),0) ->  | R107: =IF(R$86>0,interp(R$86,$J$86:$O$86,$J107:$O107),0) ->  | S107: =IF(S$86>0,interp(S$86,$J$86:$O$86,$J107:$O107),0) ->  | T107: =IF(T$86>0,interp(T$86,$J$86:$O$86,$J107:$O107),0) ->  | U107: =IF(U$86>0,interp(U$86,$J$86:$O$86,$J107:$O107),0) ->  | V107: =IF(V$86>0,interp(V$86,$J$86:$O$86,$J107:$O107),0) ->  | W107: =IF(W$86>0,interp(W$86,$J$86:$O$86,$J107:$O107),0) ->  | X107: =IF(X$86>0,interp(X$86,$J$86:$O$86,$J107:$O107),0) ->  | Y107: =IF(Y$86>0,interp(Y$86,$J$86:$O$86,$J107:$O107),0) -> 
A114: Treatment Module
C116: =$P$17 -> 2017 | K116: =$P$18 -> 2017 | U116: =$P$17 -> 2017 | AC116: =$P$18 -> 2017
B117: Capital Costs $1000/MGD | G117: Treatment Types | N117: Treatment Types | T117: O&M Cost $1000/MGD | Y117: Treatment Types | AG117: Treatment Types
B118: MGD | C118: Direct Filtration | D118: Conventional | E118: Conventional + Enhanced Coagulation | F118: Conventional + Lime Softening | G118: Conventional + Ozone/UV | H118: Conventional + GAC | I118: Conventional + Membranes | J118: Conventional + Nanofiltration/Reverse Osmosis | K118: Direct Filtration | L118: Conventional | M118: Conventional + Enhanced Coagulation | N118: Conventional + Lime Softening | O118: Conventional + Ozone/UV | P118: Conventional + GAC | Q118: Conventional + Membranes | R118: Conventional + Nanofiltration/Reverse Osmosis | T118: MGD | U118: Direct Filtration | V118: Conventional | W118: Conventional + Enhanced Coagulation | X118: Conventional + Lime Softening | Y118: Conventional + Ozone/UV | Z118: Conventional + GAC | AA118: Conventional + Membranes | AB118: Conventional + Nanofiltration/Reverse Osmosis | AC118: Direct Filtration | AD118: Conventional | AE118: Conventional + Enhanced Coagulation | AF118: Conventional + Lime Softening | AG118: Conventional + Ozone/UV | AH118: Conventional + GAC | AI118: Conventional + Membranes | AJ118: Conventional + Nanofiltration/Reverse Osmosis
B119: 0.5 | C119: 4353.33368 | D119: 5857.677017 | E119: 6178.432997 | F119: 6499.188978 | G119: 5939.523631 | H119: 7697.078887 | I119: 4034.499514 | J119: 9667.917681 | K119: =C119*(1+($Q$13/$Q$14))^($Q$14*$P$19) -> 4353.33368 | L119: =D119*(1+($Q$13/$Q$14))^($Q$14*$P$19) -> 5857.677017 | M119: =E119*(1+($Q$13/$Q$14))^($Q$14*$P$19) -> 6178.432997 | N119: =F119*(1+($Q$13/$Q$14))^($Q$14*$P$19) -> 6499.188978 | O119: =G119*(1+($Q$13/$Q$14))^($Q$14*$P$19) -> 5939.523631 | P119: =H119*(1+($Q$13/$Q$14))^($Q$14*$P$19) -> 7697.078887 | Q119: =I119*(1+($Q$13/$Q$14))^($Q$14*$P$19) -> 4034.499514 | R119: =J119*(1+($Q$13/$Q$14))^($Q$14*$P$19) -> 9667.917681 | T119: 0.5 | U119: 483.9929422 | V119: 487.136035 | W119: 457.7887 | X119: 428.441365 | Y119: 649.6984047 | Z119: 673.5597243 | AA119: 448.5477207 | AB119: 2109.879997 | AC119: =U119*(1+($Q$13/$Q$14))^($Q$14*$P$19) -> 483.9929422 | AD119: =V119*(1+($Q$13/$Q$14))^($Q$14*$P$19) -> 487.136035 | AE119: =W119*(1+($Q$13/$Q$14))^($Q$14*$P$19) -> 457.7887 | AF119: =X119*(1+($Q$13/$Q$14))^($Q$14*$P$19) -> 428.441365 | AG119: =Y119*(1+($Q$13/$Q$14))^($Q$14*$P$19) -> 649.6984047 | AH119: =Z119*(1+($Q$13/$Q$14))^($Q$14*$P$19) -> 673.5597243 | AI119: =AA119*(1+($Q$13/$Q$14))^($Q$14*$P$19) -> 448.5477207 | AJ119: =AB119*(1+($Q$13/$Q$14))^($Q$14*$P$19) -> 2109.879997
B120: 1 | C120: 6730.532289 | D120: 8852.154599 | E120: 9224.498156 | F120: 9596.841713 | G120: 8855.950921 | H120: 11476.50167 | I120: 7173.06506 | J120: 15974.25411 | K120: 6730.532289 | L120: 8852.154599 | M120: 9224.498156 | N120: 9596.841713 | O120: 8855.950921 | P120: 11476.50167 | Q120: 7173.06506 | R120: 15974.25411 | T120: 1 | U120: 567.9193271 | V120: 597.4941997 | W120: 568.9415001 | X120: 540.3888006 | Y120: 806.6652806 | Z120: 836.2914855 | AA120: 605.2627146 | AB120: 3304.71943 | AC120: =U120*(1+($Q$13/$Q$14))^($Q$14*$P$19) -> 567.9193271 | AD120: 597.4941997 | AE120: 568.9415001 | AF120: 540.3888006 | AG120: 806.6652806 | AH120: 836.2914855 | AI120: 605.2627146 | AJ120: 3304.71943
B121: 1.5 | C121: 8684.411175 | D121: 11270.58745 | E121: 11662.47774 | F121: 12054.36803 | G121: 11187.07613 | H121: 14497.42654 | I121: 10043.74628 | J121: 21428.67917 | K121: 8684.411175 | L121: 11270.58745 | M121: 11662.47774 | N121: 12054.36803 | O121: 11187.07613 | P121: 14497.42654 | Q121: 10043.74628 | R121: 21428.67917 | T121: 1.5 | U121: 623.6068859 | V121: 673.3024248 | W121: 646.1431264 | X121: 618.9838279 | Y121: 915.5225718 | Z121: 949.1467527 | AA121: 721.2206826 | AB121: 4296.661803 | AC121: 623.6068859 | AD121: 673.3024248 | AE121: 646.1431264 | AF121: 618.9838279 | AG121: 915.5225718 | AH121: 949.1467527 | AI121: 721.2206826 | AJ121: 4296.661803
B122: 2 | C122: 10405.83337 | D122: 13377.42604 | E122: 13774.16408 | F122: 14170.90212 | G122: 13204.40352 | H122: 17111.69815 | I122: 12753.22061 | J122: 26394.409 | K122: 10405.83337 | L122: 13377.42604 | M122: 13774.16408 | N122: 14170.90212 | O122: 13204.40352 | P122: 17111.69815 | Q122: 12753.22061 | R122: 26394.409 | T122: 2 | U122: 666.3988955 | V122: 732.8534393 | W122: 707.2202093 | X122: 681.5869794 | Y122: 1001.555291 | Z122: 1038.339175 | AA122: 816.731279 | AB122: 5176.228579 | AC122: 666.3988955 | AD122: 732.8534393 | AE122: 707.2202093 | AF122: 681.5869794 | AG122: 1001.555291 | AH122: 1038.339175 | AI122: 816.731279 | AJ122: 5176.228579
B123: 2.5 | C123: 11972.76619 | D123: 15279.24354 | E123: 15672.2932 | F123: 16065.34286 | G123: 15016.47606 | H123: 19459.97828 | I123: 15348.80488 | J123: 31025.76248 | K123: 11972.76619 | L123: 15279.24354 | M123: 15672.2932 | N123: 16065.34286 | O123: 15016.47606 | P123: 19459.97828 | Q123: 15348.80488 | R123: 31025.76248 | T123: 2.5 | U123: 701.6029535 | V123: 782.6486134 | W123: 758.5613254 | X123: 734.4740374 | Y123: 1073.816903 | Z123: 1113.254722 | AA123: 899.4424633 | AB123: 5980.68392 | AC123: 701.6029535 | AD123: 782.6486134 | AE123: 758.5613254 | AF123: 734.4740374 | AG123: 1073.816903 | AH123: 1113.254722 | AI123: 899.4424633 | AJ123: 5980.68392
B124: 3 | C124: 13426.65509 | D124: 17032.17543 | E124: 17415.95678 | F124: 17799.73814 | G124: 16680.15877 | H124: 21615.95877 | I124: 17857.09609 | J124: 35406.98284 | K124: 13426.65509 | L124: 17032.17543 | M124: 17415.95678 | N124: 17799.73814 | O124: 16680.15877 | P124: 21615.95877 | Q124: 17857.09609 | R124: 35406.98284 | T124: 3 | U124: 731.7429081 | V124: 825.8356282 | W124: 803.276864 | X124: 780.7180999 | Y124: 1136.712461 | Z124: 1178.46023 | AA124: 973.2030016 | AB124: 6729.940055 | AC124: 731.7429081 | AD124: 825.8356282 | AE124: 803.276864 | AF124: 780.7180999 | AG124: 1136.712461 | AH124: 1178.46023 | AI124: 973.2030016 | AJ124: 6729.940055
B125: 3.5 | C125: 14792.80678 | D125: 18670.2582 | E125: 19040.84998 | F125: 19411.44175 | G125: 18229.78787 | H125: 23624.13622 | I125: 20295.04695 | J125: 39590.57125 | K125: 14792.80678 | L125: 18670.2582 | M125: 19040.84998 | N125: 19411.44175 | O125: 18229.78787 | P125: 23624.13622 | Q125: 20295.04695 | R125: 39590.57125 | T125: 3.5 | U125: 758.2338109 | V125: 864.203736 | W125: 843.1424787 | X125: 822.0812214 | Y125: 1192.755447 | Z125: 1236.561494 | AA125: 1040.266318 | AB125: 7436.204217 | AC125: 758.2338109 | AD125: 864.203736 | AE125: 843.1424787 | AF125: 822.0812214 | AG125: 1192.755447 | AH125: 1236.561494 | AI125: 1040.266318 | AJ125: 7436.204217
B126: 4 | C126: 16088.08391 | D126: 20216.0418 | E126: 20570.54977 | F126: 20925.05773 | G126: 19688.03506 | H126: 25513.89108 | I126: 22674.35672 | J126: 43612.09942 | K126: 16088.08391 | L126: 20216.0418 | M126: 20570.54977 | N126: 20925.05773 | O126: 19688.03506 | P126: 25513.89108 | Q126: 22674.35672 | R126: 43612.09942 | T126: 4 | U126: 781.9552298 | V126: 898.8776188 | W126: 879.2782232 | X126: 859.6788275 | Y126: 1243.530651 | Z126: 1289.201507 | AA126: 1102.083386 | AB126: 8107.637086 | AC126: 781.9552298 | AD126: 898.8776188 | AE126: 879.2782232 | AF126: 859.6788275 | AG126: 1243.530651 | AH126: 1289.201507 | AI126: 1102.083386 | AJ126: 8107.637086
B127: 4.5 | C127: 17324.42376 | D127: 21685.41234 | E127: 22021.62319 | F127: 22357.83405 | G127: 21070.82658 | H127: 27305.8623 | I127: 25003.55718 | J127: 47497.10745 | K127: 17324.42376 | L127: 21685.41234 | M127: 22021.62319 | N127: 22357.83405 | O127: 21070.82658 | P127: 27305.8623 | Q127: 25003.55718 | R127: 47497.10745 | T127: 4.5 | U127: 803.4942543 | V127: 930.615111 | W127: 912.4410615 | X127: 894.267012 | Y127: 1290.108723 | Z127: 1337.490241 | AA127: 1159.652026 | AB127: 8750.031735 | AC127: 803.4942543 | AD127: 930.615111 | AE127: 912.4410615 | AF127: 894.267012 | AG127: 1290.108723 | AH127: 1337.490241 | AI127: 1159.652026 | AJ127: 8750.031735
B128: 5 | C128: 18510.66226 | D128: 23090.07915 | E128: 23406.25434 | F128: 23722.42953 | G128: 22389.87219 | H128: 29015.22466 | I128: 27289.12857 | J128: 51264.73336 | K128: 18510.66226 | L128: 23090.07915 | M128: 23406.25434 | N128: 23722.42953 | O128: 22389.87219 | P128: 29015.22466 | Q128: 27289.12857 | R128: 51264.73336 | T128: 5 | U128: 823.2638176 | V128: 959.9536337 | W128: 943.1691888 | X128: 926.3847438 | Y128: 1333.250639 | Z128: 1382.216619 | AA128: 1213.692461 | AB128: 9367.68647 | AC128: 823.2638176 | AD128: 959.9536337 | AE128: 943.1691888 | AF128: 926.3847438 | AG128: 1333.250639 | AH128: 1382.216619 | AI128: 1213.692461 | AJ128: 9367.68647
B129: 6 | C129: 20758.46748 | D129: 25739.11972 | E129: 26011.29724 | F129: 26283.47476 | G129: 24870.45706 | H129: 32229.83556 | I129: 31748.69933 | J129: 58504.07672 | K129: 20758.46748 | L129: 25739.11972 | M129: 26011.29724 | N129: 26283.47476 | O129: 24870.45706 | P129: 32229.83556 | Q129: 31748.69933 | R129: 58504.07672 | T129: 6 | U129: 858.6301654 | V129: 1012.924445 | W129: 998.8181805 | X129: 984.7119164 | Y129: 1411.341739 | Z129: 1463.175753 | AA129: 1313.223685 | AB129: 10541.27676 | AC129: 858.6301654 | AD129: 1012.924445 | AE129: 998.8181805 | AF129: 984.7119164 | AG129: 1411.341739 | AH129: 1463.175753 | AI129: 1313.223685 | AJ129: 10541.27676
B130: 7 | C130: 22870.62537 | D130: 28214.59967 | E130: 28438.97526 | F130: 28663.35085 | G130: 27180.98566 | H130: 35224.06912 | I130: 36083.20974 | J130: 65416.87551 | K130: 22870.62537 | L130: 28214.59967 | M130: 28438.97526 | N130: 28663.35085 | O130: 27180.98566 | P130: 35224.06912 | Q130: 36083.20974 | R130: 65416.87551 | T130: 7 | U130: 889.7147007 | V130: 1059.98465 | W130: 1048.433729 | X130: 1036.882807 | Y130: 1480.924688 | Z130: 1535.314258 | AA130: 1403.71779 | AB130: 11647.52819 | AC130: 889.7147007 | AD130: 1059.98465 | AE130: 1048.433729 | AF130: 1036.882807 | AG130: 1480.924688 | AH130: 1535.314258 | AI130: 1403.71779 | AJ130: 11647.52819
B131: 8 | C131: 24873.20664 | D131: 30550.59658 | E131: 30724.49261 | F131: 30898.38864 | G131: 29355.26198 | H131: 38041.73217 | I131: 40313.46028 | J131: 72061.90385 | K131: 24873.20664 | L131: 30550.59658 | M131: 30724.49261 | N131: 30898.38864 | O131: 29355.26198 | P131: 38041.73217 | Q131: 40313.46028 | R131: 72061.90385 | T131: 8 | U131: 917.549512 | V131: 1102.513723 | W131: 1093.409007 | X131: 1084.304291 | Y131: 1543.967161 | Z131: 1600.672078 | AA131: 1487.132698 | AB131: 12699.22287 | AC131: 917.549512 | AD131: 1102.513723 | AE131: 1093.409007 | AF131: 1084.304291 | AG131: 1543.967161 | AH131: 1600.672078 | AI131: 1487.132698 | AJ131: 12699.22287
B132: 9 | C132: 26784.66713 | D132: 32771.11764 | E132: 32892.58724 | F132: 33014.05685 | G132: 31417.03235 | H132: 40713.59783 | I132: 44454.6199 | J132: 78481.36103 | K132: 26784.66713 | L132: 32771.11764 | M132: 32892.58724 | N132: 33014.05685 | O132: 31417.03235 | P132: 40713.59783 | Q132: 44454.6199 | R132: 78481.36103 | T132: 9 | U132: 942.8234928 | V132: 1141.441181 | W132: 1134.685601 | X132: 1127.930022 | Y132: 1601.798477 | Z132: 1660.627351 | AA132: 1564.814847 | AB132: 13705.43454 | AC132: 942.8234928 | AD132: 1141.441181 | AE132: 1134.685601 | AF132: 1127.930022 | AG132: 1601.798477 | AH132: 1660.627351 | AI132: 1564.814847 | AJ132: 13705.43454
B133: 10 | C133: 28618.66771 | D133: 34893.85806 | E133: 34961.45292 | F133: 35029.04778 | G133: 33383.75627 | H133: 43262.29199 | I133: 48518.21 | J133: 84706.86835 | K133: 28618.66771 | L133: 34893.85806 | M133: 34961.45292 | N133: 35029.04778 | O133: 33383.75627 | P133: 43262.29199 | Q133: 48518.21 | R133: 84706.86835 | T133: 10 | U133: 966.0211804 | V133: 1177.426195 | W133: 1172.932995 | X133: 1168.439795 | Y133: 1655.363462 | Z133: 1716.159604 | AA133: 1637.736097 | AB133: 14672.89567 | AC133: 966.0211804 | AD133: 1177.426195 | AE133: 1172.932995 | AF133: 1168.439795 | AG133: 1655.363462 | AH133: 1716.159604 | AI133: 1637.736097 | AJ133: 14672.89567
B134: 15 | C134: 36926.68975 | D134: 44426.95553 | E134: 44213.06087 | F134: 43999.16622 | G134: 42171.2616 | H134: 54650.09444 | I134: 67935.33686 | J134: 113631.9883 | K134: 36926.68975 | L134: 44426.95553 | M134: 44213.06087 | N134: 43999.16622 | O134: 42171.2616 | P134: 54650.09444 | Q134: 67935.33686 | R134: 113631.9883 | T134: 15 | U134: 1060.744777 | V134: 1326.814407 | W134: 1332.596994 | X134: 1338.379582 | Y134: 1878.750271 | Z134: 1947.750687 | AA134: 1951.498279 | AB134: 19077.27215 | AC134: 1060.744777 | AD134: 1326.814407 | AE134: 1332.596994 | AF134: 1338.379582 | AG134: 1878.750271 | AH134: 1947.750687 | AI134: 1951.498279 | AJ134: 19077.27215
B135: 20 | C135: 44246.2906 | D135: 52731.79542 | E135: 52228.219 | F135: 51724.64258 | G135: 49775.86175 | H135: 64504.96006 | I135: 86262.06936 | J135: 139965.8939 | K135: =C135*(1+($Q$13/$Q$14))^($Q$14*$P$19) -> 44246.2906 | L135: 52731.79542 | M135: 52228.219 | N135: 51724.64258 | O135: 49775.86175 | P135: 64504.96006 | Q135: 86262.06936 | R135: 139965.8939 | T135: 20 | U135: 1133.533262 | V135: 1444.166047 | W135: 1458.953726 | X135: 1473.741405 | Y135: 2055.298616 | Z135: 2130.783081 | AA135: 2209.933414 | AB135: 22982.71266 | AC135: 1133.533262 | AD135: 1444.166047 | AE135: 1458.953726 | AF135: 1473.741405 | AG135: 2055.298616 | AH135: 2130.783081 | AI135: 2209.933414 | AJ135: 22982.71266
B139: Direct Filtration
B140: Conventional
B141: Conventional + Enhanced Coagulation
B142: Conventional + Lime Softening
B143: Conventional + Ozone/UV
B144: Conventional + GAC
B145: Conventional + Membranes
B146: Conventional + Nanofiltration/Reverse Osmosis
S166: O&M Cost Curve Equations
S167: Direct Filtration | T167: y = 319.55x^0.2307
S168: Conventional | T168: y = 336.19x^0.2946
S169: Conventional + Enhanced Coagulation | T169: y = 320.09x^0.3142
S170: Conventional + Lime Softening | T170: y = 304.06x^0.3349
S171: Conventional + Ozone/UV | T171: y = 453.89x^0.3122
S172: Conventional + GAC | T172: y = 470.56x^0.3122
S173: Conventional + Membranes | T173: y = 340.56x^0.4323
S174: Conventional + Nanofiltration/Reverse Osmosis | T174: y = 1859.5x^0.6474
A176: Reservoir Module
F178: 2017 | H178: =$P$18 -> 2017
F179: 1 | G179: 2 | H179: 1 | I179: 2
B180: Project Type | C180: Reference | E180: Storage (AF) | F180: New Reservoir Cost in Millions ($) | G180: Reservoir Expansion Cost in Millions ($) | H180: New Reservoir Cost in Millions ($) | I180: Reservoir Expansion Cost in Millions ($) | K180: Reservoir Rehab | M180: Level of Rehab
C181: 0 | E181: 0 | F181: 0 | G181: 0 | H181: =F181*(1+($Q$13/$Q$14))^($Q$14*$P$19) -> 0 | I181: =G181*(1+($Q$13/$Q$14))^($Q$14*$P$19) -> 0 | K181: Dam Crest Raise | M181: 1
B182: New Reservoir | C182: 1 | E182: 500 | F182: 150.438355 | G182: 1.234005 | H182: =F182*(1+($Q$13/$Q$14))^($Q$14*$P$19) -> 150.438355 | I182: =G182*(1+($Q$13/$Q$14))^($Q$14*$P$19) -> 1.234005 | K182: Spillway Improvements | M182: 2
B183: Reservoir Expansion | C183: 2 | E183: 1000 | F183: 150.87671 | G183: 2.46801 | H183: 150.87671 | I183: 2.46801 | K183: Outlet Works Improvements | M183: 3
E184: 2000 | F184: 151.75342 | G184: 4.93602 | H184: 151.75342 | I184: 4.93602 | K184: Seepage Control | M184: 4
E185: 5000 | F185: 154.38355 | G185: 12.34005 | H185: 154.38355 | I185: 12.34005 | K185: Sediment Removal
E186: 10000 | F186: 158.7671 | G186: 24.6801 | H186: 158.7671 | I186: 24.6801
E187: 15000 | F187: 163.15065 | G187: 37.02015 | H187: 163.15065 | I187: 37.02015
E188: 20000 | F188: 167.5342 | G188: 49.3602 | H188: 167.5342 | I188: 49.3602
E189: 25000 | F189: 171.91775 | G189: 61.70025 | H189: 171.91775 | I189: 61.70025
E190: 30000 | F190: 176.3013 | G190: 74.0403 | H190: 176.3013 | I190: 74.0403
E191: 35000 | F191: 180.68485 | G191: 86.38035 | H191: 180.68485 | I191: 86.38035
E192: 40000 | F192: 185.0684 | G192: 98.7204 | H192: 185.0684 | I192: 98.7204
E193: 45000 | F193: 189.45195 | G193: 111.06045 | H193: 189.45195 | I193: 111.06045
E194: 50000 | F194: 193.8355 | G194: 123.4005 | H194: 193.8355 | I194: 123.4005
E195: 55000 | F195: 198.21905 | G195: 135.74055 | H195: 198.21905 | I195: 135.74055
E196: 60000 | F196: 202.6026 | G196: 148.0806 | H196: 202.6026 | I196: 148.0806
E197: 65000 | F197: 206.98615 | G197: 160.42065 | H197: 206.98615 | I197: 160.42065
E198: 70000 | F198: 211.3697 | G198: 172.7607 | H198: 211.3697 | I198: 172.7607
E199: 75000 | F199: 215.75325 | G199: 185.10075 | H199: 215.75325 | I199: 185.10075
E200: 80000 | F200: 220.1368 | G200: 197.4408 | H200: 220.1368 | I200: 197.4408
E201: 85000 | F201: 224.52035 | G201: 209.78085 | H201: 224.52035 | I201: 209.78085
E202: 90000 | F202: 228.9039 | G202: 222.1209 | H202: 228.9039 | I202: 222.1209
E203: 95000 | F203: 233.28745 | G203: 234.46095 | H203: 233.28745 | I203: 234.46095
E204: 100000 | F204: 237.671 | G204: 246.801 | H204: 237.671 | I204: 246.801
A206: Water Rights Module
B208: Water Rights Type
B210: Leased Right
B211: Permanent Purchase
A213: Ditches and Diversions Module
H214: New Ditch | T214: Ditch Rehabilitation | U214: Ditch Rehabilitation Projects account for only MATERIAL costs
H215: Ditch cost per linear foot | I215: 2017 | N215: =$P$18 -> 2017 | T215: Ditch cost per linear foot | U215: 2017 | Z215: =$P$18 -> 2017 | AF215: DIVERSION STRUCTURE | AG215: y = 3,641.6x + 391,631
B216: Diversion Structures | D216: Ditch Type | F216: Type of Project | H216: Discharge (cfs) | I216: Non-Reinforced Concreted Lined | J216: Reinforced Concreted Lined | K216: Synthetic Lining | L216: Closed Conduit (PVC) | M216: Closed Conduit (DIP) | N216: Non-Reinforced Concreted Lined2 | O216: Reinforced Concreted Lined3 | P216: Synthetic Lining4 | Q216: Closed Conduit (PVC)5 | R216: Closed Conduit (DIP)6 | T216: Discharge (cfs) | U216: Non-Reinforced Concreted Lined | V216: Reinforced Concreted Lined | W216: Synthetic Lining | X216: Closed Conduit (PVC) | Y216: Closed Conduit (DIP) | Z216: Non-Reinforced Concreted Lined2 | AA216: Reinforced Concreted Lined3 | AB216: Synthetic Lining4 | AC216: Closed Conduit (PVC)5 | AD216: Closed Conduit (DIP)6 | AF216: Discharge (cfs) | AG216: Cost of Diversion
B217: None | H217: 0 | I217: =13.974*H217^0.1644 -> 0 | J217: =19.368*H217^0.1379 -> 0 | K217: =7.0901*H217^0.1786 -> 0 | L217: =35.518*H217^0.7899 -> 0 | M217: =126.5*H217^0.3836 -> 0 | N217: =I217*(1+($Q$13/$Q$14))^($Q$14*$P$19) -> 0 | O217: =J217*(1+($Q$13/$Q$14))^($Q$14*$P$19) -> 0 | P217: =K217*(1+($Q$13/$Q$14))^($Q$14*$P$19) -> 0 | Q217: =L217*(1+($Q$13/$Q$14))^($Q$14*$P$19) -> 0 | R217: =M217*(1+($Q$13/$Q$14))^($Q$14*$P$19) -> 0 | T217: 0 | U217: =3.8528*T217^0.3295 -> 0 | V217: =8.1268*T217^0.2258 -> 0 | W217: =4.3749*T217^0.2307 -> 0 | X217: =33.52*T217^0.7918 -> 0 | Y217: =120.35*T217^0.3838 -> 0 | Z217: =U217*(1+($Q$13/$Q$14))^($Q$14*$P$19) -> 0 | AA217: =V217*(1+($Q$13/$Q$14))^($Q$14*$P$19) -> 0 | AB217: =W217*(1+($Q$13/$Q$14))^($Q$14*$P$19) -> 0 | AC217: =X217*(1+($Q$13/$Q$14))^($Q$14*$P$19) -> 0 | AD217: =Y217*(1+($Q$13/$Q$14))^($Q$14*$P$19) -> 0 | AF217: 0 | AG217: 0
B218: Concrete Check Dam | D218: Non-Reinforced Concreted Lined | F218: New Ditch | H218: 1 | I218: =13.974*H218^0.1644 -> 13.974 | J218: =19.368*H218^0.1379 -> 19.368 | K218: =7.0901*H218^0.1786 -> 7.0901 | L218: =35.518*H218^0.7899 -> 35.518 | M218: =126.5*H218^0.3836 -> 126.5 | N218: =I218*(1+($Q$13/$Q$14))^($Q$14*$P$19) -> 13.974 | O218: =J218*(1+($Q$13/$Q$14))^($Q$14*$P$19) -> 19.368 | P218: =K218*(1+($Q$13/$Q$14))^($Q$14*$P$19) -> 7.0901 | Q218: =L218*(1+($Q$13/$Q$14))^($Q$14*$P$19) -> 35.518 | R218: =M218*(1+($Q$13/$Q$14))^($Q$14*$P$19) -> 126.5 | T218: 1 | U218: =3.8528*T218^0.3295 -> 3.8528 | V218: =8.1268*T218^0.2258 -> 8.1268 | W218: =4.3749*T218^0.2307 -> 4.3749 | X218: =33.52*T218^0.7918 -> 33.52 | Y218: =120.35*T218^0.3838 -> 120.35 | Z218: =U218*(1+($Q$13/$Q$14))^($Q$14*$P$19) -> 3.8528 | AA218: =V218*(1+($Q$13/$Q$14))^($Q$14*$P$19) -> 8.1268 | AB218: =W218*(1+($Q$13/$Q$14))^($Q$14*$P$19) -> 4.3749 | AC218: =X218*(1+($Q$13/$Q$14))^($Q$14*$P$19) -> 33.52 | AD218: =Y218*(1+($Q$13/$Q$14))^($Q$14*$P$19) -> 120.35 | AF218: 1 | AG218: =3641.6*AF218 + 391631 -> 395272.6
B219: Bladder Dam | D219: Reinforced Concreted Lined | F219: Ditch Rehabilitation | H219: 5 | I219: 18.20670719 | J219: 24.18091553 | K219: 9.451231552 | L219: 126.6382526 | M219: 234.539189 | N219: 18.20670719 | O219: 24.18091553 | P219: 9.451231552 | Q219: 126.6382526 | R219: 234.539189 | T219: 5 | U219: 6.547674503 | V219: 11.6881829 | W219: 6.341916367 | X219: 119.8804762 | Y219: 223.2085274 | Z219: 6.547674503 | AA219: 11.6881829 | AB219: 6.341916367 | AC219: 119.8804762 | AD219: 223.2085274 | AF219: 5 | AG219: =3641.6*AF219 + 391631 -> 409839
B220: Concrete Dam with Gates | D220: Synthetic Lining | H220: 10 | I220: 20.40425483 | J220: 26.60631794 | K220: 10.69676268 | L220: 218.9517914 | M220: 305.9782282 | N220: 20.40425483 | O220: 26.60631794 | P220: 10.69676268 | Q220: 218.9517914 | R220: 305.9782282 | T220: 10 | U220: 8.227662437 | V220: 13.66845955 | W220: 7.441630986 | X220: 207.5410502 | Y220: 291.2366954 | Z220: 8.227662437 | AA220: 13.66845955 | AB220: 7.441630986 | AC220: 207.5410502 | AD220: 291.2366954 | AF220: 10 | AG220: 428047
B221: Rock Weir or Vane | D221: Closed Conduit (PVC) | H221: 15 | I221: 21.810727 | J221: 28.13635022 | K221: 11.50011702 | L221: 301.6080914 | M221: 357.4696149 | N221: 21.810727 | O221: 28.13635022 | P221: 11.50011702 | Q221: 301.6080914 | R221: 357.4696149 | T221: 15 | U221: 9.403695008 | V221: 14.97893645 | W221: 8.171323115 | X221: 286.1100208 | Y221: 340.2749038 | Z221: 9.403695008 | AA221: 14.97893645 | AB221: 8.171323115 | AC221: 286.1100208 | AD221: 340.2749038 | AF221: 15 | AG221: 446255
D222: Closed Conduit (DIP) | H222: 20 | I222: 22.86704625 | J222: 29.27499387 | K222: 12.1064362 | L222: 378.5577106 | M222: 399.1771121 | N222: 22.86704625 | O222: 29.27499387 | P222: 12.1064362 | Q222: 378.5577106 | R222: 399.1771121 | T222: 20 | U222: 10.33869798 | V222: 15.98424564 | W222: 8.732040684 | X222: 359.3019387 | Y222: 379.9980841 | Z222: 10.33869798 | AA222: 15.98424564 | AB222: 8.732040684 | AC222: 359.3019387 | AD222: 379.9980841 | AF222: 20 | AG222: 464463
H223: 30 | I223: 24.44327947 | J223: 30.95849197 | K223: 13.01566064 | L223: 521.466702 | M223: 466.3524244 | N223: 24.44327947 | O223: 30.95849197 | P223: 13.01566064 | Q223: 521.466702 | R223: 466.3524244 | T223: 30 | U223: 11.81647441 | V223: 17.51675079 | W223: 9.588264458 | X223: 495.3231424 | Y223: 443.981866 | Z223: 11.81647441 | AA223: 17.51675079 | AB223: 9.588264458 | AC223: 495.3231424 | AD223: 443.981866 | AF223: 30 | AG223: 500879
H224: 40 | I224: 25.62709634 | J224: 32.21134425 | K224: 13.70188364 | L224: 654.5091013 | M224: 520.763741 | N224: 25.62709634 | O224: 32.21134425 | P224: 13.70188364 | Q224: 654.5091013 | R224: 520.763741 | T224: 40 | U224: 12.99137839 | V224: 18.69238502 | W224: 10.24621278 | X224: 622.0354144 | Y224: 495.8116411 | Z224: 12.99137839 | AA224: 18.69238502 | AB224: 10.24621278 | AC224: 622.0354144 | AD224: 495.8116411 | AF224: 40 | AG224: 537295
B225: Diversion Structure | D225: Project Options | H225: 50 | I225: 26.5846782 | J225: 33.21794334 | K225: 14.25897815 | L225: 780.6653604 | M225: 567.3034428 | N225: 26.5846782 | O225: 33.21794334 | P225: 14.25897815 | Q225: 780.6653604 | R225: 567.3034428 | T225: 50 | U225: 13.98257256 | V225: 19.6583471 | W225: 10.78749259 | X225: 742.2470144 | Y225: 540.1455248 | Z225: 13.98257256 | AA225: 19.6583471 | AB225: 10.78749259 | AC225: 742.2470144 | AD225: 540.1455248 | AF225: 50 | AG225: 573711
B226: Yes | H226: 60 | I226: 27.39358073 | J226: 34.06370114 | K226: 14.73093028 | L226: 901.5922618 | M226: 608.4001958 | N226: 27.39358073 | O226: 34.06370114 | P226: 14.73093028 | Q226: 901.5922618 | R226: 608.4001958 | T226: 60 | U226: 14.84831944 | V226: 20.48453568 | W226: 11.25090931 | X226: 857.5198264 | Y226: 579.2960197 | Z226: 14.84831944 | AA226: 20.48453568 | AB226: 11.25090931 | AC226: 857.5198264 | AD226: 579.2960197 | AF226: 60 | AG226: 610127
B227: No | D227: Diversion Structure | H227: 70 | I227: 28.09667039 | J227: 34.79555725 | K227: 15.14212652 | L227: 1018.336815 | M227: 645.461189 | N227: 28.09667039 | O227: 34.79555725 | P227: 15.14212652 | Q227: 1018.336815 | R227: 645.461189 | T227: 70 | U227: 15.62198691 | V227: 21.21009967 | W227: 11.65822005 | X227: 968.8412873 | Y227: 614.6030659 | Z227: 15.62198691 | AA227: 21.21009967 | AB227: 11.65822005 | AC227: 968.8412873 | AD227: 614.6030659 | AF227: 70 | AG227: 646543
D228: Ditch | H228: 80 | I228: 28.72028418 | J228: 35.44221744 | K228: 15.50758721 | L228: 1131.616532 | M228: 679.3848288 | N228: 28.72028418 | O228: 35.44221744 | P228: 15.50758721 | Q228: 1131.616532 | R228: 679.3848288 | T228: 80 | U228: 16.32467771 | V228: 21.85935237 | W228: 12.0229486 | X228: 1076.888308 | Y228: 646.9221655 | Z228: 16.32467771 | AA228: 21.85935237 | AB228: 12.0229486 | AC228: 1076.888308 | AD228: 646.9221655 | AF228: 80 | AG228: 682959
D229: Ditch and Diversion Structure | H229: 90 | I229: 29.2818295 | J229: 36.02258033 | K229: 15.83726096 | L229: 1241.951571 | M229: 710.7845057 | N229: 29.2818295 | O229: 36.02258033 | P229: 15.83726096 | Q229: 1241.951571 | R229: 710.7845057 | T229: 90 | U229: 16.97068499 | V229: 22.44851053 | W229: 12.35412176 | X229: 1182.151749 | Y229: 676.8374331 | Z229: 16.97068499 | AA229: 22.44851053 | AB229: 12.35412176 | AC229: 1182.151749 | AD229: 676.8374331 | AF229: 90 | AG229: 719375
H230: 100 | I230: 29.79344607 | J230: 36.54978078 | K230: 16.13809845 | L230: 1349.734979 | M230: 740.1002067 | N230: 29.79344607 | O230: 36.54978078 | P230: 16.13809845 | Q230: 1349.734979 | R230: 740.1002067 | T230: 100 | U230: 17.5701903 | V230: 22.98897309 | W230: 12.65808858 | X230: 1285.002611 | Y230: 704.7678668 | Z230: 17.5701903 | AA230: 22.98897309 | AB230: 12.65808858 | AC230: 1285.002611 | AD230: 704.7678668 | AF230: 100 | AG230: 755791
H231: 120 | I231: 30.69998306 | J231: 37.48037006 | K231: 16.67224682 | L231: 1558.812103 | M231: 793.7147507 | N231: 30.69998306 | O231: 37.48037006 | P231: 16.67224682 | Q231: 1558.812103 | R231: 793.7147507 | T231: 120 | U231: 18.65806861 | V231: 23.95513911 | W231: 13.20186368 | X231: 1484.56672 | Y231: 755.8504167 | Z231: 18.65806861 | AA231: 23.95513911 | AB231: 13.20186368 | AC231: 1484.56672 | AD231: 755.8504167 | AF231: 120 | AG231: 828623
H232: 140 | I232: 31.48793556 | J232: 38.28563305 | K232: 17.13763259 | L232: 1760.658137 | M232: 842.06427 | N232: 31.48793556 | O232: 38.28563305 | P232: 17.13763259 | Q232: 1760.658137 | R232: 842.06427 | T232: 140 | U232: 19.63024197 | V232: 24.80363218 | W232: 13.67980379 | X232: 1677.290119 | Y232: 801.9181345 | Z232: 19.63024197 | AA232: 24.80363218 | AB232: 13.67980379 | AC232: 1677.290119 | AD232: 801.9181345 | AF232: 140 | AG232: 901455
H233: 160 | I233: 32.18681946 | J233: 38.99715477 | K233: 17.55125554 | L233: 1956.513628 | M233: 886.3208194 | N233: 32.18681946 | O233: 38.99715477 | P233: 17.55125554 | Q233: 1956.513628 | R233: 886.3208194 | T233: 160 | U233: 20.51322764 | V233: 25.56288487 | W233: 14.10777779 | X233: 1864.344699 | Y233: 844.0872572 | Z233: 20.51322764 | AA233: 25.56288487 | AB233: 14.10777779 | AC233: 1864.344699 | AD233: 844.0872572 | AF233: 160 | AG233: 974287
H234: 180 | I234: 32.81614324 | J234: 39.63572941 | K234: 17.92437536 | L234: 2147.277902 | M234: 927.284624 | N234: 32.81614324 | O234: 39.63572941 | P234: 17.92437536 | Q234: 2147.277902 | R234: 927.284624 | T234: 180 | U234: 21.32498605 | V234: 26.25186145 | W234: 14.49637775 | X234: 2046.580253 | Y234: 883.1199222 | Z234: 21.32498605 | AA234: 26.25186145 | AB234: 14.49637775 | AC234: 2046.580253 | AD234: 883.1199222 | AF234: 180 | AG234: 1047119
H235: 200 | I235: 33.38951188 | J235: 40.2158093 | K235: 18.26485874 | L235: 2333.630523 | M235: 965.5296878 | N235: 33.38951188 | O235: 40.2158093 | P235: 18.26485874 | Q235: 2333.630523 | R235: 965.5296878 | T235: 200 | U235: 22.07831111 | V235: 26.88389218 | W235: 14.85305368 | X235: 2224.639072 | Y235: 919.5628274 | Z235: 22.07831111 | AA235: 26.88389218 | AB235: 14.85305368 | AC235: 2224.639072 | AD235: 919.5628274 | AF235: 200 | AG235: 1119951
H236: 300 | I236: 35.6910622 | J236: 42.52847378 | K236: 19.63659652 | L236: 3214.597347 | M236: 1128.013348 | N236: 35.6910622 | O236: 42.52847378 | P236: 19.63659652 | Q236: 3214.597347 | R236: 1128.013348 | T236: 300 | U236: 25.23410575 | V236: 29.46141158 | W236: 16.30947585 | X236: 3066.822349 | Y236: 1074.398101 | Z236: 25.23410575 | AA236: 29.46141158 | AB236: 16.30947585 | AC236: 3066.822349 | AD236: 1074.398101 | AF236: 300 | AG236: 1484111
H237: 400 | I237: 37.41962247 | J237: 44.24954906 | K237: 20.67189427 | L237: 4034.741265 | M237: 1259.623453 | N237: 37.41962247 | O237: 44.24954906 | P237: 20.67189427 | Q237: 4034.741265 | R237: 1259.623453 | T237: 400 | U237: 27.74311566 | V237: 31.43871002 | W237: 17.42863483 | X237: 3851.368829 | Y237: 1199.821719 | Z237: 27.74311566 | AA237: 31.43871002 | AB237: 17.42863483 | AC237: 3851.368829 | AD237: 1199.821719 | AF237: 400 | AG237: 1848271
H238: 500 | I238: 38.81784376 | J238: 45.63234003 | K238: 21.51237716 | L238: 4812.435362 | M238: 1372.193694 | N238: 38.81784376 | O238: 45.63234003 | P238: 21.51237716 | Q238: 4812.435362 | R238: 1372.193694 | T238: 500 | U238: 29.85981287 | V238: 33.063361 | W238: 18.34934265 | X238: 4595.666016 | Y238: 1307.105922 | Z238: 29.85981287 | AA238: 33.063361 | AB238: 18.34934265 | AC238: 4595.666016 | AD238: 1307.105922 | AF238: 500 | AG238: 2212431
A241: Stream Restoration
H243: 2017 | L243: =$P$18 -> 2017
B244: Level of Restoration | D244: Stream Environment | F244: Width Range | H244: Restoration Level | I244: Width Range | J244: Rural | K244: Urban | L244: Restoration Level | M244: Width Range | N244: Rural | O244: Urban
H245: Level 1 | I245: 5 to 20 | J245: 289.5577045 | K245: 304.9458048 | L245: Level 1 | M245: 5 to 20 | N245: =J245*(1+($Q$13/$Q$14))^($Q$14*$P$19) -> 289.5577045 | O245: =K245*(1+($Q$13/$Q$14))^($Q$14*$P$19) -> 304.9458048
B246: Level 1 | D246: Urban | F246: 5 to 20 | I246: 20 to 50 | J246: 490.5609912 | K246: 500.886041 | L246: Level 1 | M246: 20 to 50 | N246: =J246*(1+($Q$13/$Q$14))^($Q$14*$P$19) -> 490.5609912 | O246: =K246*(1+($Q$13/$Q$14))^($Q$14*$P$19) -> 500.886041
B247: Level 2 | D247: Rural | F247: 20 to 50 | I247: 50 to 100 | J247: 490.5609912 | K247: 500.886041 | L247: Level 1 | M247: 50 to 100 | N247: 490.5609912 | O247: 500.886041
B248: Level 3 | F248: 50 to 100 | I248: >100 | J248: 624.1126415 | K248: 623.795806 | L248: Level 1 | M248: >100 | N248: 624.1126415 | O248: 623.795806
B249: Level 4 | F249: >100 | H249: Level 2 | I249: 5 to 20 | J249: 409.3563165 | K249: 374.1005667 | L249: Level 2 | M249: 5 to 20 | N249: 409.3563165 | O249: 374.1005667
I250: 20 to 50 | J250: 693.5206255 | K250: 614.475585 | L250: Level 2 | M250: 20 to 50 | N250: 693.5206255 | O250: 614.475585
I251: 50 to 100 | J251: 693.5206255 | K251: 614.475585 | L251: Level 2 | M251: 50 to 100 | N251: 693.5206255 | O251: 614.475585
I252: >100 | J252: 882.3265553 | K252: 765.2584848 | L252: Level 2 | M252: >100 | N252: 882.3265553 | O252: 765.2584848
... 8 more rows

Sheet HW C Factor
B2: Table A-4. Hazen-Williams Constants for Various Water Pipe Materials
B3: Type of Pipe or Surface | C3: range | D3: clean | E3: designb | G3: Click Here to Return to Pipelines Module
G4: Click Here to Return to Well Fields Module
B5: steel
B6: welded and seamless | C6: 150–80 | D6: 140 | E6: 100
B7: interior riveted, no projecting rivets | D7: 139 | E7: 100
B8: projecting girth rivets | D8: 130 | E8: 100
B9: projecting girth and horizontal rivets | D9: 115 | E9: 100
B10: vitrified, spiral-riveted, flow with lap | D10: 110 | E10: 100
B11: vitrified, spiral-riveted, flow against lap | D11: 100 | E11: 90
B12: corrugated | C12: 80–40 | D12: 80 | E12: 60
B13: mineral
B14: concrete | C14: 150–60 | D14: 120 | E14: 100
B15: cement-asbestos | C15: 160–140 | D15: 150 | E15: 140
B16: vitrified clays | E16: 110
B17: brick sewer | E17: 100
B18: iron
B19: cast, plain | C19: 150–80 | D19: 130 | E19: 100
B20: cast, tar (asphalt) coated | C20: 145–50 | D20: 130 | E20: 100
B21: cast, cement lined | D21: 150 | E21: 140
B22: cast, bituminous lined | C22: 160–130 | D22: 148 | E22: 140
B23: ductile iron | C23: 150–100 | D23: 150 | E23: 140
B24: cement lined | C24: 150–120 | D24: 150 | E24: 140
B25: asphalt coated | C25: 145–50 | D25: 130 | E25: 160
B26: wrought, plain | C26: 150–80 | D26: 130 | E26: 100
B27: miscellaneous
B28: aluminum, irrigation pipe | C28: 135–100 | D28: 135 | E28: 130
B29: copper and brass | C29: 150–120 | D29: 140 | E29: 130
B30: wood stave | C30: 145–110 | D30: 120 | E30: 110
B31: transite
B32: lead, tin, glass | C32: 150–120 | D32: 140 | E32: 130
B33: plastic (PVC, ABS, and HDPE) | C33: 150–120 | D33: 155 | E33: 150
B34: aC values for sludge pipes are 20% to 40% less than the corresponding water pipe values.
B35: bThe following guidelines are provided for selecting Hazen-Williams coefficients for cast-iron pipes of different ages. Values for welded steel pipe are similar to those of cast-iron pipe five years older. New pipe, all sizes: C = 130.5 yr old pipe: C = 120 (d < 24 in); C = 115 (d ≥ 24 in). 10 yr old pipe: C = 105 (d = 4 in); C = 110 (d = 12 in); C = 85 (d ≥ 30 in). 40 yr old pipe: C = 65 (d = 4 in); C = 80 (d = 16 in).
B36: Table Referenced From PE Civil Reference Manual, Sixteenth Edition, Appendix 17.A Specific Roughness and Hazen-Williams Constants for Various Water Pipe Materials

Sheet Table B-1
B2: Table B-1 Estimated Reservoir Rehabilitation Costs from 2015 Basin Implementation Plans
B3: Basin | C3: Project Name | D3: BIP Project Description | E3: Estimated BIP Cost | G3: Notes | J3: Click Here to Return to Reservoirs Module
B4: Gunnison | C4: Paonia Reservoir Sediment Removal and Outlet Modification Project (Part 2) | D4: Paonia Reservoir was designed to store 21,000 AF of water which is used for irrigation, flat-water recreation, fishing, augmentation, and improved late season flows to the North Fork of the Gunnison. Over the last fifty years, the reservoir has lost 24% of its total capacity due to sedimentation build up. The goal of this project is so investigate long-term sediment management options with the intent of minimizing future losses and possibly restoring current capacity losses. | E4: 8000000
B5: Gunnision | C5: West Reservoir #1 Outlet Pipe Replacement | D5: West Reservoir is currently under a no-fill restriction from the State Engineers Office because of concerns about a deteriorating outlet pipe. The owners propose to replace the existing pipe and restore the reservoir to use, thus helping preserve a pre-1922 water right. | E5: 426317
B6: Gunnison | C6: Lake San cristobal Controlled Outlet Structure (Part 1) | D6: Hinsdale County and the Upper Gunnison River Water Conservancy District (UGRWCD) explored the feasibility of constructing a new permanent control structure at the outlet of Lake San Cristobal. The new structure allows for more controlled releases to regulate the lake level and prevent failure of the structure during flood events. The additional stored water res ulting from the project will be used primarily as augmentation water within the Lake Fork of the Gunnison River other beneficial uses include agriculture, recreation and releases for instream flows. | E6: 40000 | F6: *
B7: Gunnison | C7: Lake San Cristobal Outlet Structure Modification (Part 2) | D7: No detailed rehabilitation activities | E7: 120960 | F7: *
B8: Gunnison | C8: Engineering for Lake San Cristobal Outlet Modification (Part 3) | D8: No detailed rehabilitation activities | E8: 75265 | F8: *
B9: Gunnison | C9: Juniata Reservoir Spillway Modification | D9: No detailed rehabilitation activities | E9: 97000 | F9: *
B10: Gunnison | C10: Hanson Reservoir Outlet Rehabilitation | D10: No detailed rehabilitation activities | E10: 50000 | F10: *
B11: Gunnison | C11: Lake San CristobaI Outlet Structure (Part 4) | D11: No detailed rehabilitation activities | E11: 150000 | F11: *
B12: Gunnison | C12: Hartland Dam Improvements | D12: No detailed rehabilitation activities | E12: 2200000 | F12: *
B13: Gunnison | C13: Lining Outlet Pipe for Grand Mesa Reservoir #6 | D13: No detailed rehabilitation activities | E13: 19840 | F13: *
B14: Gunnison | C14: Relief Ditch Diversion Dam Design | D14: No detailed rehabilitation activities | E14: 800000 | F14: *
B15: Gunnison | C15: Tunnel Reconstruction Project | D15: No detailed rehabilitation activities | E15: 730110 | F15: *
B16: Gunnison | C16: Dam Outlet Structure Repair | D16: No detailed rehabilitation activities | E16: 31372 | F16: *
B17: Rio Grande | C17: Mountain Home Reservoir Dam Repair | D17: Rehabilitation of the Mountain Home Reservoir dam outlet works will improve dam safety and reliable water level management of the reservoir. The State is now requiring TIC to repair or upgrade the gates and to restore full operating capability at Mountain Home Reservoir. The Project will also provide improved water storage management and reduced storage loss (which currently amounts to 1,350 to 2,250 AF annually). Finally, improved outlet works will provide protection of the CPW conservation pool and enhancement of environmental, recreational, and wildlife habitat assets. | E17: 500000 | G17: Preliminary Design: $20,000 Final Design: $20,000 Construction: $350,000 Admin, etc.: $100,00 Contingency: $10,000
B18: Projects listed are not inclusive of all Reservoir Rehabilitation projects provided in the 2015 BIPs, but only represent those projects with an estimated cost for Reservoir Rehabilitation.
B19: *Estimated cost reflects only WSRA requested funds in 2015 dollars. This may or may not represent the actual total cost of the rehabilitation

Sheet Table B-2
B2: Table B-2 Diversion Structure Costs from Various CO DNR Projects
B3: Project ID | C3: Project Stream | D3: Project County | E3: Diversion Structure Type | F3: Maximum Diversion Capacity (CFS) | G3: Approximate Diversion Structure Cost | H3: Description of Project Costs
B4: 1 | C4: Saint Vrain | D4: Boulder | E4: Grouted Boulder Dam | F4: 92.2 | G4: 324210 | J4: Click Here to Return to Ditches and Diversions
B5: 2 | C5: Arkansas | D5: Chaffee | E5: Earthen Dike | F5: 28.95 | G5: 205000
B6: 3 | C6: South Platte | D6: -- | E6: Adjustable-Height Check Dam | F6: 295.43 | G6: 2020000 | H6: Demolition of existing structures and reconstruction of headworks; Channel stabilization
B7: 4 | C7: -- | D7: -- | E7: -- | F7: 0 | G7: 519140 | H7: Diversion dam and headgate repair, Parshall flume, ditch embankment rebuild
B8: 5 | C8: South Platte | D8: Logan/ Sedgwick | E8: Parshall Flume | F8: 210.8740511 | G8: 224000 | H8: Bypass of residual flows, dewatering, excavation, constructing new weir, riprap, removal of old structure
B9: 6 | C9: Conejos River | D9: -- | E9: Automated Headgate | F9: 146.3 | G9: 213000 | H9: Remove and replace diversion and headgate structures
B10: 7 | C10: Little Thompson | D10: Larimer | E10: -- | F10: 95 | G10: 808000 | H10: Headgate rehabilitation, siphon construction, flood clean up
B11: 8 | C11: Conejos | D11: -- | E11: Automated Headgate | F11: 47.09746102 | G11: 101000 | H11: Diversion dam, headgate, sluice gates, 5 flumes, 5 stilling wells, telemetry
B12: 9 | C12: South Platte | D12: Logan | E12: -- | F12: 167.3573118 | G12: 2067470 | H12: Replacement of river diversion structure, replacement of ditch headgate structure, installation of hydraulic bladders and controls
B13: 10 | C13: South Platte | D13: Adams | E13: -- | F13: 159.6619395 | G13: 2027070 | H13: Construction and installation of gantry crane grate cleaning system, rehabilitate trash rack, replace diversion gates and operators
B14: 11 | C14: Saint Vrain | D14: Boulder | E14: -- | F14: 333.2307473 | G14: 750000 | H14: Diversion dam and trash rack construction
B15: 12 | C15: Rio Grande | D15: South Fork/ Alamosa | E15: Radial Gates with Automation | F15: 21.8712379 | G15: 826000 | H15: 88 ft diversion dam with fish and boat passage; 2 radial gates with automation; 1,054 LF of 36" HDPE pipe
B16: 13 | C16: Saint Vrain | D16: Boulder | E16: -- | F16: 237.51 | G16: 1262500 | H16: Diversion structure, sluice and flume gates, headgates, and fish ladder
B17: 14 | C17: Rio Grande | D17: Rio Grande | E17: -- | F17: 276.7782298 | G17: 975000 | H17: 120 LF grouted boulder diversion dam, trash rack structure, 4 slide headgates and structure, 1 radial sluice gate, structure and channel, headgate automation
B18: 15 | C18: Saint Vrain | D18: Boulder | E18: -- | F18: 81.42047715 | G18: 1843250 | H18: Diversion dam with fish ladder, headgates, conveyance ditch, river turnout structure
B19: 16 | C19: Clear Creek | D19: Adams/ Jefferson | E19: Slide Gate | F19: 339.43525 | G19: 2209597 | H19: Diversion dam and headgate rehabilitation including SCADA installation, rehabilitation of two siphon structures, and replacement of a storm drain pipe
B20: 17 | C20: Little Thompson | D20: Boulder/ Larimer | E20: -- | F20: 66.72 | G20: 160000 | H20: Removing debris from the dam and diversion structure; forming and pouring new wing wall; rechanneling river
B21: 18 | C21: Clear Creek | D21: Denver | E21: -- | F21: 35.45218683 | G21: 110781 | H21: Repair Fisher Ditch headgate, install sand-out gate and pipeline, replace 650 LF of damaged CMP with RCP

Sheet Change Log (hidden)
A1: Change Log
A3: Item | B3: Staff | C3: Date | D3: Change | E3: Other Notes
A4: 1 | B4: D. Schultze | C4: 2018-09-29 | D4: There are a lot of conversion factors hard-coded in. For consistency across the tool, these have all be changed to refrence the Conversion table in the Module References.
A5: 2 | B5: D. Schultze | C5: 2018-09-29 | D5: In Well Fields, the HP calculation in the Booster Pump Parmeters table was different than the well field pipeline booster pump requirements table. I couldn't figure out why. These how match.
A6: 3 | B6: D. Schultze | C6: 2018-09-29 | D6: General Formatting. All rows are now uniform heights for the costing module (Titles=24; inputs=18; total costs =20)
A7: 4 | B7: D. Schultze | C7: 2018-09-29 | D7: Normalized Cost was added to the Project Summary Sheet
A8: 5 | B8: D. Schultze | C8: 2018-09-29 | D8: Project useful life was added to Global Inputs. Currently does not attribute to any other modules, but could be used to estimate mainteance costs over the life of the project
A9: 6 | B9: D. Schultze | C9: 2018-09-29 | D9: Total project yield (Project yeilds from all modules combined) is now in Global Inputs. This is used to estimate the normalized cost.
A10: 7 | B10: E. Gruber | C10: 2018-11-21 | D10: Adjusted pipelines pumpstation functionality - if multiple pumps required and user selects "intake", first pump is set as intake and remaining pumps are assumed to be booster pumps. Cost moidule sheet updated to separately account for intake and booster pumps
A11: 8 | B11: E. Gruber | C11: 2018-11-21 | D11: Updated diversion structure to reference a simple cost curve to produce a recommended value for the user. The user must input their own cost but can simply copy the recommended cost using a button if they don't have any better cost data. There is also a link to the reference table with project cost data used to develop the cost curve
A12: 9 | B12: E. Gruber | C12: 2018-11-21 | D12: Reservoir Rehab project option added. Requires a user-specified cost - reference table provided with all available cost information available to help guide user in determining a cost. New cost line added to the costing module
